Workbook

Sheet macro
A2: header_name | B2: ELECTRIC CASE NO: 2006-00172
A3: case_name | B3: =header_name -> ELECTRIC CASE NO: 2006-00172 | F3: LINKS ON ORIG_ALLOC PAGE TO ALLOCATOR FILE.
A4: time_period | B4: TWELVE MONTHS ENDING DECEMBER 31, 2007 | F4: LINKS ON SFR TIE PAGE
A5: VERSION | B5: =RIGHT([1]INPUT!F8,7)&" "&+RIGHT(orig_alloc!B13,21) -> FR-9v-1 KW ( 12 COIN PEAK ) | F5: LINK ON VERSION
A6: date | B6: =NOW() -> 2017-11-09T18:49:21.450
A7: NOTE: - MUST PUT SUBSIDY EXCESS OR PRIOR TO SUBSIDY EXCESS ON COSS COLUMN F ROW 2 FOR SUBSIDY EXCESS CALCULATION TO WORK PROPERLY. Controls Rate of Return Row 338 & proposed rev row 724.
A8: Add Date to Class File
B9: Print buttons
A14: COSS w/summary
A16: COSS with summary & Alloc
B20: Go to buttons
A44: ALL | B44: =coss!$A$47:$X$791
A45: Allocator_A1 | B45: =orig_alloc!$B$1
A46: allocator_body | B46: =orig_alloc!$B$12:$Y$166
A47: Allocators | B47: =orig_alloc!$B$12:$Y$166
A48: BLANK | B48: =coss!$U$6:$U$789
A49: BODY_RS | B49: =coss!$E$6:$E$789
A50: BODY_DS | B50: =coss!$F$6:$F$789
A51: BODY_DS_RTPincr | B51: =coss!$G$6:$G$789
A52: BODY_GSFL | B52: =coss!$H$6:$H$789
A53: BODY_eh | B53: =coss!$I$6:$I$789
A54: BODY_sp | B54: =coss!$J$6:$J$789
A55: BODY_DP | B55: =coss!$K$6:$K$789
A56: BODY_DP_RTPincr | B56: =coss!$L$6:$L$789
A57: BODY_DSDT | B57: =coss!$M$6:$M$789
A58: BODY_DSDT_RTPincr | B58: =coss!$N$6:$N$789
A59: BODY_PDDT | B59: =coss!$O$6:$O$789
A60: BODY_PDDT_RTP_incr | B60: =coss!$P$6:$P$789
A61: BODY_TT | B61: =coss!$Q$6:$Q$789
A62: BODY_TT_RTPincr | B62: =coss!$R$6:$R$789
A63: BODY_LT | B63: =coss!$S$6:$S$789
A64: BODY_BLANK | B64: =coss!$T$6:$T$789
A65: BODY_Other | B65: =coss!$U$6:$U$789
A66: CAPITAL | B66: =coss!$D$683:$E$704
A67: case_name | B67: =macro!$B$3
A68: CLASS_BODY | B68: =coss!$A$10:$X$792
A69: COSS_A1 | B69: =coss!$A$1
A70: coss_summary | B70: =coss!$D$12:$X$46
A71: deprecExp | B71: =coss!$D$417
A72: depreciation | B72: =coss!$D$99
A73: DEPRESERVE | B73: =coss!$A$99:$X$198
A74: DEPREXPENSE | B74: =coss!$A$417:$X$444
A75: DL | B75: =coss!$U$51:$U$789
A76: ds | B76: =coss!$F$51:$F$789
A77: dsDT | B77: =coss!$M$51:$M$789
A78: fit | B78: =coss!$D$475
A79: gross_plant | B79: =coss!$D$49
A80: GROSSPLANT | B80: =coss!$A$98:$X$791
A81: header_name | B81: =macro!$B$2
A82: INCOMETAX | B82: =coss!$A$475:$X$637
A83: INCTAXREV | B83: =coss!$A$735:$X$789
A84: LT | B84: =coss!$T$51:$T$789
A85: Netplant | B85: =coss!$D$149
A86: O_M | B86: =coss!$A$415
A87: O_MEXPENSE | B87: =coss!$A$328:$X$416
A88: OandM | B88: =coss!$D$328
A89: other | B89: =coss!$V$51:$V$789
A90: otherRev | B90: =coss!$D$638
A91: OTHERREVENUE | B91: =coss!$A$638:$X$679
A92: OTHERTAX | B92: =coss!$A$445:$X$474
A93: otherTaxes | B93: =coss!$D$445
A94: PD | B94: =coss!$K$51:$K$789
A95: PDDT | B95: =coss!$P$51:$P$789
A96: print_home | B96: =macro!$A$1
A97: propertytax | B97: =coss!$D$447:$X$450
A98: ratebase | B98: =coss!$D$323
A99: RATEBASEADJ | B99: =coss!$A$233:$X$327
A100: RATEOFRETURN | B100: =coss!$A$680:$X$711
A101: rb_additive | B101: =coss!$D$264
A102: RB_Subtractive | B102: =coss!$D$233
A103: revenue | B103: =coss!$D$713
A104: RS | B104: =coss!$E$51:$E$789
A105: rs_body | B105: =coss!$E$51:$E$789
A106: SE_FLAP | B106: =#REF!$A$1:$B$62
A107: sit | B107: =coss!$D$565
A108: SUMMARY | B108: =coss!$A$790:$X$791
A109: summary_body | B109: =coss!$D$9:$X$46
A110: TABLE | B110: =orig_alloc!$D$1:$Y$66
A111: table2 | B111: =orig_alloc!$D$69:$Y$168
A112: taxrates | B112: =coss!$D$706
A113: time_period | B113: =macro!$B$4
A114: totcapstructure | B114: =coss!$D$683:$E$704
A115: TOTCO | B115: =coss!$D$51:$D$789
A116: TOTELEC | B116: =coss!$W$51:$W$789
A117: TRANS | B117: =coss!$T$51:$T$789
A118: TS | B118: =coss!$R$51:$R$789
A119: WEIGHTEDRATIOS | B119: =coss!$A$51:$X$704
A120: workingcapital | B120: =coss!$D$295
A121: xs_tax | B121: =coss!$D$673:$X$678

Sheet orig_alloc
B1: =+COSS_A1 -> DUKE ENERGY KENTUCKY
B3: COST OF SERVICE STUDY | W3: =NOW() -> 2017-11-09T18:49:21.450
B4: =+time_period -> TWELVE MONTHS ENDING DECEMBER 31, 2007
B5: =VERSION -> FR-9v-1 KW ( 12 COIN PEAK )
B6: =+case_name -> ELECTRIC CASE NO: 2006-00172
F8: =+coss!E6 -> RS | G8: =+coss!F6 -> DS | H8: =+coss!G6 -> DS_RTP | I8: =+coss!H6 -> GSFL | J8: =+coss!I6 -> EH | K8: =+coss!J6 -> SP | L8: =+coss!K6 -> DT_SEC | M8: =+coss!L6 -> DT_SEC_RTP | N8: =+coss!M6 -> DT_PRI | O8: =+coss!N6 -> DT_PRI_RTP | P8: =+coss!O6 -> DP | Q8: =+coss!P6 -> DP_RTP | R8: =+coss!Q6 -> TT | S8: =+coss!R6 -> TT_RTP | T8: =+coss!S6 -> LT
E9: TOTAL | F9: =+coss!E7 ->  | G9: =+coss!F7 -> SECONDARY | H9: =+coss!G7 -> INCR. | I9: =+coss!H7 -> SECONDARY | J9: =+coss!I7 -> SECONDARY | K9: =+coss!J7 -> SECONDARY | L9: =+coss!K7 -> SECONDARY | M9: =+coss!L7 -> INCR. | N9: =+coss!M7 -> PRIMARY | O9: =+coss!N7 -> INCR. | P9: =+coss!O7 -> PRIMARY | Q9: =+coss!P7 -> INCR. | R9: =+coss!Q7 -> TRANSMISSION | S9: =+coss!R7 -> INCR. TRANS | T9: =+coss!S7 ->  | W9: TOTAL | X9: ALL
B10: ALLOCATORS | C10: ITEM | D10: ALLOC | E10: ELECTRIC | F10: =+coss!E8 -> RESIDENTIAL | G10: =+coss!F8 -> DISTRIBUTION | H10: =+coss!G8 -> SEC. DISTR. | I10: =+coss!H8 -> DISTRIBUTION | J10: =+coss!I8 -> DISTRIBUTION | K10: =+coss!J8 -> DISTRIBUTION | L10: =+coss!K8 -> DISTRIBUTION | M10: =+coss!L8 -> SEC. DIST | N10: =+coss!M8 -> DISTRIBUTION | O10: =+coss!N8 -> PRI. DIST | P10: =+coss!O8 -> DISTRIBUTION | Q10: =+coss!P8 -> PRI. DISTR. | R10: =+coss!Q8 -> TIME OF DAY | S10: =+coss!R8 -> TIME OF DAY | T10: =+coss!S8 -> LIGHTING | U10: BLANK | V10: OTHER | W10: AT ISSUE | X10: OTHER
B12: DEMAND ENERGY & SPEC. ASSIGN | C12: SCHEDULE: 13
A13: K201 | B13: =+[1]INPUT!$F$10 -> TOTAL KW ( 12 COIN PEAK ) | E13: =+'[1]alloc1-gen'!$D$36 -> 717083 | F13: =+'[1]alloc1-gen'!$D$15 -> 320629 | G13: =+'[1]alloc1-gen'!$D$16 -> 190669 | H13: =+'[1]alloc1-gen'!$D$29 -> 156 | I13: =+'[1]alloc1-gen'!$D$17 -> 841 | J13: =+'[1]alloc1-gen'!$D$18 -> 2430 | K13: =+'[1]alloc1-gen'!$D$19 -> 76 | L13: =+'[1]alloc1-gen'!$D$20 -> 106156 | M13: =+'[1]alloc1-gen'!$D$30 -> 1170 | N13: =+'[1]alloc1-gen'!$D$21 -> 59508 | O13: =+'[1]alloc1-gen'!$D$31 -> 2747 | P13: =+'[1]alloc1-gen'!$D$22 -> 5771 | Q13: =+'[1]alloc1-gen'!$D$32 -> 0 | R13: =+'[1]alloc1-gen'!$D$23 -> 23135 | S13: =+'[1]alloc1-gen'!$D$33 -> 1465 | T13: =+'[1]alloc1-gen'!$D$24 -> 2276 | U13: 0 | V13: =+'[1]alloc1-gen'!$D$25 -> 54 | W13: =SUM(F13:V13) -> 717083 | X13: =+E13-E13 -> 0 | Y13: K201 | Z13: linked
B14: RATIO TO TOTAL ELECTRIC | C14: K201 | D14: =+C14 -> K201 | E14: 1 | F14: =IF($E13=0,0,ROUND(F13/$E13,9)) -> 0.447129551 | G14: 0.265895301 | H14: 0.000217548 | I14: =IF($E13=0,0,ROUND(I13/$E13,9)) -> 0.001172807 | J14: =IF($E13=0,0,ROUND(J13/$E13,9)) -> 0.003388729 | K14: =IF($E13=0,0,ROUND(K13/$E13,9)) -> 0.000105985 | L14: 0.148038651 | M14: 0.00163161 | N14: 0.082986209 | O14: =IF($E13=0,0,ROUND(O13/$E13,9)) -> 0.003830798 | P14: =IF($E13=0,0,ROUND(P13/$E13,9)) -> 0.008047883 | Q14: =IF($E13=0,0,ROUND(Q13/$E13,9)) -> 0 | R14: 0.032262653 | S14: 0.002042999 | T14: 0.00317397 | U14: 0 | V14: =IF($E13=0,0,1-SUM(F14:U14)-ROUND(X13/E13,9)) -> 7.5306e-05 | W14: 1 | X14: =E14-W14 -> 0
A15: K203 | B15: SECONDARY NON-COIN PEAK (KW) | E15: =+'[1]alloc2-dist'!$D$36 -> 1353588 | F15: =+'[1]alloc2-dist'!$D$15 -> 894767 | G15: =+'[1]alloc2-dist'!$D$16 -> 304504 | H15: =+'[1]alloc2-dist'!$D$29 -> 301 | I15: =+'[1]alloc2-dist'!$D$17 -> 796 | J15: =+'[1]alloc2-dist'!$D$18 -> 7027 | K15: =+'[1]alloc2-dist'!$D$19 -> 150 | L15: =+'[1]alloc2-dist'!$D$20 -> 136277 | M15: =+'[1]alloc2-dist'!$D$30 -> 2524 | N15: =+'[1]alloc2-dist'!$D$21 -> 0 | O15: =+'[1]alloc2-dist'!$D$31 -> 0 | P15: =+'[1]alloc2-dist'!$D$22 -> 0 | Q15: =+'[1]alloc2-dist'!$D$32 -> 0 | R15: =+'[1]alloc2-dist'!$D$23 -> 0 | S15: =+'[1]alloc2-dist'!$D$33 -> 0 | T15: =+'[1]alloc2-dist'!$D$24 -> 6927 | U15: 0 | V15: =+'[1]alloc2-dist'!$D$25 -> 315 | W15: 1353588 | X15: 0 | Y15: K203 | Z15: linked
B16: RATIO TO TOTAL ELECTRIC | C16: K203 | D16: =C16 -> K203 | E16: 1 | F16: =IF($E15=0,0,ROUND(F15/$E15,9)) -> 0.66103349 | G16: 0.224960623 | H16: 0.000222372 | I16: =IF($E15=0,0,ROUND(I15/$E15,9)) -> 0.000588067 | J16: =IF($E15=0,0,ROUND(J15/$E15,9)) -> 0.005191388 | K16: =IF($E15=0,0,ROUND(K15/$E15,9)) -> 0.000110817 | L16: 0.100678345 | M16: 0.001864674 | N16: 0 | O16: =IF($E15=0,0,ROUND(O15/$E15,9)) -> 0 | P16: =IF($E15=0,0,ROUND(P15/$E15,9)) -> 0 | Q16: =IF($E15=0,0,ROUND(Q15/$E15,9)) -> 0 | R16: 0 | S16: 0 | T16: 0.00511751 | U16: 0 | V16: =IF($E15=0,0,1-SUM(F16:U16)-ROUND(X15/E15,9)) -> 0.000232714 | W16: 1 | X16: 0
A17: K205 | B17: DISTRIBUTION LINE - WTD. DIVERSIFIED CLASS | E17: =+'[1]alloc5-Distlines'!$G$36 -> 690947 | F17: =+'[1]alloc5-Distlines'!$G$15 -> 317008 | G17: =+'[1]alloc5-Distlines'!$G$16 -> 188948 | H17: =+'[1]alloc5-Distlines'!$G$29 -> 179 | I17: =+'[1]alloc5-Distlines'!$G$17 -> 738 | J17: =+'[1]alloc5-Distlines'!$G$18 -> 2494 | K17: =+'[1]alloc5-Distlines'!$G$19 -> 74 | L17: =+'[1]alloc5-Distlines'!$G$20 -> 112875 | M17: =+'[1]alloc5-Distlines'!$G$30 -> 1248 | N17: =+'[1]alloc5-Distlines'!$G$21 -> 53885 | O17: =+'[1]alloc5-Distlines'!$G$31 -> 2481 | P17: =+'[1]alloc5-Distlines'!$G$22 -> 4656 | Q17: =+'[1]alloc5-Distlines'!$G$32 -> 0 | R17: =+'[1]alloc5-Distlines'!$G$23 -> 0 | S17: =+'[1]alloc5-Distlines'!$G$33 -> 0 | T17: =+'[1]alloc5-Distlines'!$G$24 -> 6304 | U17: 0 | V17: =+'[1]alloc5-Distlines'!$G$25 -> 57 | W17: =SUM(F17:V17) -> 690947 | X17: =E17-W17 -> 0 | Y17: K205 | Z17: linked
B18: RATIO TO TOTAL ELECTRIC | C18: K205 | D18: =C18 -> K205 | E18: 1 | F18: =IF($E17=0,0,ROUND(F17/$E17,9)) -> 0.458802195 | G18: 0.273462364 | H18: 0.000259065 | I18: 0.001068099 | J18: 0.003609539 | K18: 0.000107099 | L18: 0.163362747 | M18: 0.001806217 | N18: 0.077987168 | O18: 0.003590724 | P18: 0.006738578 | Q18: 0 | R18: 0 | S18: 0 | T18: 0.00912371 | U18: 0 | V18: =IF($E17=0,0,1-SUM(F18:U18)-ROUND(X17/E17,9)) -> 8.2495e-05 | W18: =SUM(F18:V18) -> 1 | X18: =E18-W18 -> 0
A19: K207 | B19: JURISDICTIONAL KW DEMAND (COIN PEAK) | E19: =W13 -> 717083 | F19: =F13 -> 320629 | G19: 190669 | H19: 156 | I19: 841 | J19: 2430 | K19: 76 | L19: 106156 | M19: 1170 | N19: =N13 -> 59508 | O19: =O13 -> 2747 | P19: =P13 -> 5771 | Q19: =Q13 -> 0 | R19: 23135 | S19: 1465 | T19: 2276 | U19: 0 | V19: 54 | W19: 717083 | X19: 0 | Y19: K207
B20: RATIO TO TOTAL ELECTRIC | C20: K207 | D20: =C20 -> K207 | E20: 1 | F20: =IF($E19=0,0,ROUND(F19/$E19,9)) -> 0.447129551 | G20: 0.265895301 | H20: 0.000217548 | I20: =IF($E19=0,0,ROUND(I19/$E19,9)) -> 0.001172807 | J20: =IF($E19=0,0,ROUND(J19/$E19,9)) -> 0.003388729 | K20: =IF($E19=0,0,ROUND(K19/$E19,9)) -> 0.000105985 | L20: 0.148038651 | M20: 0.00163161 | N20: 0.082986209 | O20: =IF($E19=0,0,ROUND(O19/$E19,9)) -> 0.003830798 | P20: =IF($E19=0,0,ROUND(P19/$E19,9)) -> 0.008047883 | Q20: =IF($E19=0,0,ROUND(Q19/$E19,9)) -> 0 | R20: 0.032262653 | S20: 0.002042999 | T20: 0.00317397 | U20: 0 | V20: =IF($E19=0,0,1-SUM(F20:U20)-ROUND(X19/E19,9)) -> 7.5306e-05 | W20: 1 | X20: 0
A21: K209 | B21: GROSS DISTRIBUTION PLANT EXCL. CCNC | E21: =+E61 -> 276674000 | F21: =+F61 -> 143953206 | G21: 66750141 | H21: 61054 | I21: 249564 | J21: 1031325 | K21: 32665 | L21: 36883708 | M21: 440619 | N21: 15787211 | O21: 724951 | P21: 1365242 | Q21: 0 | R21: 14751 | S21: 0 | T21: 9350404 | U21: 0 | V21: 29159 | W21: =SUM(F21:V21) -> 276674000 | X21: =E21-W21 -> 0 | Y21: K209
B22: RATIO TO TOTAL ELECTRIC | C22: K209 | D22: =C22 -> K209 | E22: 1 | F22: =IF($E21=0,0,ROUND(F21/$E21,9)) -> 0.520299002 | G22: 0.241259175 | H22: 0.000220671 | I22: 0.000902015 | J22: 0.003727582 | K22: 0.000118063 | L22: 0.133311074 | M22: 0.001592557 | N22: 0.057060696 | O22: 0.002620235 | P22: 0.004934479 | Q22: 0 | R22: 5.3315e-05 | S22: 0 | T22: 0.033795745 | U22: 0 | V22: =IF($E21=0,0,1-SUM(F22:U22)-ROUND(X21/E21,9)) -> 0.000105391 | W22: =SUM(F22:V22) -> 1 | X22: =E22-W22 -> 0
A23: K215 | B23: TOTAL DIVERSIFIED CLASS DEMANDS | E23: =+'[1]alloc2-dist'!$K$36 -> 702571 | F23: =+'[1]alloc2-dist'!$K$15 -> 317008 | G23: =+'[1]alloc2-dist'!$K$16 -> 188948 | H23: =+'[1]alloc2-dist'!$K$29 -> 179 | I23: =+'[1]alloc2-dist'!$K$17 -> 738 | J23: =+'[1]alloc2-dist'!$K$18 -> 2494 | K23: =+'[1]alloc2-dist'!$K$19 -> 74 | L23: =+'[1]alloc2-dist'!$K$20 -> 112875 | M23: =+'[1]alloc2-dist'!$K$30 -> 1248 | N23: =+'[1]alloc2-dist'!$K$21 -> 64149 | O23: =+'[1]alloc2-dist'!$K$31 -> 2954 | P23: =+'[1]alloc2-dist'!$K$22 -> 5543 | Q23: =+'[1]alloc2-dist'!$K$32 -> 0 | R23: =+'[1]alloc2-dist'!$K$23 -> 0 | S23: =+'[1]alloc2-dist'!$K$33 -> 0 | T23: =+'[1]alloc2-dist'!$K$24 -> 6304 | U23: 0 | V23: =+'[1]alloc2-dist'!$K$25 -> 57 | W23: =SUM(F23:V23) -> 702571 | X23: =E23-W23 -> 0 | Y23: K215 | Z23: linked
B24: RATIO TO TOTAL ELECTRIC | C24: K215 | D24: =+C24 -> K215 | E24: 1 | F24: =IF($E23=0,0,ROUND(F23/$E23,9)) -> 0.451211337 | G24: 0.268937944 | H24: 0.000254779 | I24: 0.001050428 | J24: 0.003549819 | K24: 0.000105327 | L24: 0.160659919 | M24: 0.001776333 | N24: 0.091306074 | O24: 0.004204557 | P24: 0.007889594 | Q24: 0 | R24: 0 | S24: 0 | T24: 0.008972759 | U24: 0 | V24: =IF($E23=0,0,1-SUM(F24:U24)-ROUND(X23/E23,9)) -> 8.113e-05 | W24: 1 | X24: 0
A25: K217 | B25: WEIGHTED CUSTOMER SERVICE | E25: =+'[1]alloc6-Wtd services'!$H$36 -> 136161 | F25: =+'[1]alloc6-Wtd services'!$H$15 -> 121452 | G25: =+'[1]alloc6-Wtd services'!$H$16 -> 12293 | H25: =+'[1]alloc6-Wtd services'!$H$29 -> 0 | I25: =+'[1]alloc6-Wtd services'!$H$17 -> 147 | J25: =+'[1]alloc6-Wtd services'!$H$18 -> 357 | K25: =+'[1]alloc6-Wtd services'!$H$19 -> 27 | L25: =+'[1]alloc6-Wtd services'!$H$20 -> 1520 | M25: =+'[1]alloc6-Wtd services'!$H$30 -> 0 | N25: =+'[1]alloc6-Wtd services'!$H$21 -> 0 | O25: =+'[1]alloc6-Wtd services'!$H$31 -> 0 | P25: =+'[1]alloc6-Wtd services'!$H$22 -> 0 | Q25: =+'[1]alloc6-Wtd services'!$H$32 -> 0 | R25: =+'[1]alloc6-Wtd services'!$H$23 -> 0 | S25: =+'[1]alloc6-Wtd services'!$H$33 -> 0 | T25: =+'[1]alloc6-Wtd services'!$H$24 -> 343 | U25: 0 | V25: =+'[1]alloc6-Wtd services'!$H$25 -> 22 | W25: 136161 | X25: 0 | Y25: K217 | Z25: linked
B26: RATIO TO TOTAL ELECTRIC | C26: K217 | D26: =+C26 -> K217 | E26: 1 | F26: =IF($E25=0,0,ROUND(F25/$E25,9)) -> 0.891973473 | G26: 0.090282827 | H26: 0 | I26: 0.001079604 | J26: 0.002621896 | K26: 0.000198295 | L26: 0.011163255 | M26: 0 | N26: 0 | O26: 0 | P26: 0 | Q26: 0 | R26: 0 | S26: 0 | T26: 0.002519077 | U26: 0 | V26: =IF($E25=0,0,1-SUM(F26:U26)-ROUND(X25/E25,9)) -> 0.000161573 | W26: 1 | X26: 0
A27: K301 | B27: TOTAL KWH | E27: =+'[1]alloc1-gen'!$F$36 -> 4318019707 | F27: =+'[1]alloc1-gen'!$F$15 -> 1633623871 | G27: =+'[1]alloc1-gen'!$F$16 -> 1118383192 | H27: =+'[1]alloc1-gen'!$F$29 -> 1085288 | I27: =+'[1]alloc1-gen'!$F$17 -> 6714746 | J27: =+'[1]alloc1-gen'!$F$18 -> 15149755 | K27: =+'[1]alloc1-gen'!$F$19 -> 434115 | L27: =+'[1]alloc1-gen'!$F$20 -> 782930553 | M27: =+'[1]alloc1-gen'!$F$30 -> 8700822 | N27: =+'[1]alloc1-gen'!$F$21 -> 467034883 | O27: =+'[1]alloc1-gen'!$F$31 -> 21489618 | P27: =+'[1]alloc1-gen'!$F$22 -> 36757242 | Q27: =+'[1]alloc1-gen'!$F$32 -> 0 | R27: =+'[1]alloc1-gen'!$F$23 -> 186542548 | S27: =+'[1]alloc1-gen'!$F$33 -> 11905892 | T27: =+'[1]alloc1-gen'!$F$24 -> 26919458 | U27: 0 | V27: =+'[1]alloc1-gen'!$F$25 -> 347724 | W27: 4318019707 | X27: 0 | Y27: K301 | Z27: linked
B28: RATIO TO TOTAL ELECTRIC | C28: K301 | D28: =C28 -> K301 | E28: 1 | F28: =IF($E27=0,0,ROUND(F27/$E27,9)) -> 0.378327099 | G28: 0.259003726 | H28: 0.000251339 | I28: 0.001555052 | J28: 0.003508496 | K28: 0.000100536 | L28: 0.18131704 | M28: 0.002015003 | N28: 0.108159507 | O28: 0.00497673 | P28: 0.008512523 | Q28: 0 | R28: 0.043200949 | S28: 0.002757257 | T28: 0.006234214 | U28: 0 | V28: =IF($E27=0,0,1-SUM(F28:U28)-ROUND(X27/E27,9)) -> 8.0529e-05 | W28: 1 | X28: 0
A29: K303 | B29: DISTRIBUTION KWH | E29: =SUM(F27:V27)-R27-S27 -> 4119571267 | F29: =F27 -> 1633623871 | G29: 1118383192 | H29: 1085288 | I29: 6714746 | J29: 15149755 | K29: 434115 | L29: =+L27 -> 782930553 | M29: =M27 -> 8700822 | N29: =+N27 -> 467034883 | O29: =O27 -> 21489618 | P29: =+P27 -> 36757242 | Q29: =Q27 -> 0 | R29: 0 | S29: 0 | T29: =+T27 -> 26919458 | U29: =U27 -> 0 | V29: =V27 -> 347724 | W29: 4119571267 | X29: 0 | Y29: K303
B30: RATIO TO TOTAL ELECTRIC | C30: K303 | D30: =C30 -> K303 | E30: 1 | F30: =IF($E29=0,0,ROUND(F29/$E29,9)) -> 0.396551914 | G30: 0.271480482 | H30: 0.000263447 | I30: 0.001629962 | J30: 0.003677508 | K30: 0.000105379 | L30: 0.190051465 | M30: 0.00211207 | N30: 0.113369779 | O30: 0.00521647 | P30: 0.008922589 | Q30: 0 | R30: 0 | S30: 0 | T30: 0.006534529 | U30: 0 | V30: =IF($E29=0,0,1-SUM(F30:U30)-ROUND(X29/E29,9)) -> 8.4406e-05 | W30: 1 | X30: 0
A31: K305 | B31: TOTAL KWH LESS LIGHTING | E31: =+E27-T27 -> 4291100249 | F31: =+F27 -> 1633623871 | G31: 1118383192 | H31: 1085288 | I31: 6714746 | J31: 15149755 | K31: 434115 | L31: 782930553 | M31: 8700822 | N31: =+N27 -> 467034883 | O31: =+O27 -> 21489618 | P31: =+P27 -> 36757242 | Q31: =+Q27 -> 0 | R31: 186542548 | S31: 11905892 | T31: 0 | U31: =+U27 -> 0 | V31: =+V27 -> 347724 | W31: 4291100249 | X31: 0 | Y31: K305
B32: RATIO TO TOTAL ELECTRIC | C32: K305 | D32: =C32 -> K305 | E32: 1 | F32: =IF($E31=0,0,ROUND(F31/$E31,9)) -> 0.380700468 | G32: 0.26062854 | H32: 0.000252916 | I32: 0.001564808 | J32: 0.003530506 | K32: 0.000101166 | L32: 0.182454501 | M32: 0.002027644 | N32: 0.108838027 | O32: 0.005007951 | P32: 0.008565925 | Q32: 0 | R32: 0.043471962 | S32: 0.002774555 | T32: 0 | U32: 0 | V32: =IF($E31=0,0,1-SUM(F32:U32)-ROUND(X31/E31,9)) -> 8.1031e-05 | W32: 1 | X32: 0
A33: K307 | B33: ASSIGN 100% TO RESIDENTIAL | E33: 1 | F33: 1 | G33: 0 | H33: 0 | I33: 0 | J33: 0 | K33: 0 | L33: 0 | M33: 0 | N33: 0 | O33: 0 | P33: 0 | Q33: 0 | R33: 0 | S33: 0 | T33: 0 | U33: 0 | V33: 0 | W33: 1 | X33: 0 | Y33: K307
B34: RATIO TO TOTAL ELECTRIC | C34: K307 | D34: =C34 -> K307 | E34: 1 | F34: =IF($E33=0,0,ROUND(F33/$E33,9)) -> 1 | G34: 0 | H34: 0 | I34: 0 | J34: 0 | K34: 0 | L34: 0 | M34: 0 | N34: 0 | O34: 0 | P34: 0 | Q34: 0 | R34: 0 | S34: 0 | T34: 0 | U34: 0 | V34: =IF($E33=0,0,1-SUM(F34:U34)-ROUND(X33/E33,9)) -> 0 | W34: 1 | X34: 0
A35: K401 | B35: ASSIGN 100% TO LIGHTING | E35: 1 | F35: 0 | G35: 0 | H35: 0 | I35: 0 | J35: 0 | K35: 0 | L35: 0 | M35: 0 | N35: 0 | O35: 0 | P35: 0 | Q35: 0 | R35: 0 | S35: 0 | T35: 1 | U35: 0 | V35: 0 | W35: 1 | X35: 0 | Y35: K401
B36: RATIO TO TOTAL ELECTRIC | C36: K401 | D36: =C36 -> K401 | E36: 1 | F36: =IF($E35=0,0,ROUND(F35/$E35,9)) -> 0 | G36: 0 | H36: 0 | I36: 0 | J36: 0 | K36: 0 | L36: 0 | M36: 0 | N36: 0 | O36: 0 | P36: 0 | Q36: 0 | R36: 0 | S36: 0 | T36: 1 | U36: 0 | V36: =IF($E35=0,0,1-SUM(F36:U36)-ROUND(X35/E35,9)) -> 0 | W36: 1 | X36: 0
A37: K405 | B37: DISTRIBUTION CUSTOMERS | E37: =+'[1]alloc2-dist'!$H$36 -> 134630 | F37: =+'[1]alloc2-dist'!$H$15 -> 121452 | G37: =+'[1]alloc2-dist'!$H$16 -> 12293 | H37: =+'[1]alloc2-dist'!$H$29 -> 0 | I37: =+'[1]alloc2-dist'!$H$17 -> 147 | J37: =+'[1]alloc2-dist'!$H$18 -> 119 | K37: =+'[1]alloc2-dist'!$H$19 -> 27 | L37: =+'[1]alloc2-dist'!$H$20 -> 190 | M37: =+'[1]alloc2-dist'!$H$30 -> 0 | N37: =+'[1]alloc2-dist'!$H$21 -> 37 | O37: =+'[1]alloc2-dist'!$H$31 -> 0 | P37: =+'[1]alloc2-dist'!$H$22 -> 11 | Q37: =+'[1]alloc2-dist'!$H$32 -> 0 | R37: =+'[1]alloc2-dist'!$H$23 -> 0 | S37: =+'[1]alloc2-dist'!$H$33 -> 0 | T37: =+'[1]alloc2-dist'!$H$24 -> 343 | U37: 0 | V37: =+'[1]alloc2-dist'!$H$25 -> 11 | W37: 134630 | X37: 0 | Y37: K405 | Z37: linked
B38: RATIO TO TOTAL ELECTRIC | C38: K405 | D38: =C38 -> K405 | E38: 1 | F38: =IF($E37=0,0,ROUND(F37/$E37,9)) -> 0.902116913 | G38: 0.091309515 | H38: 0 | I38: 0.001091881 | J38: 0.000883904 | K38: 0.00020055 | L38: 0.001411275 | M38: 0 | N38: 0.000274827 | O38: 0 | P38: 8.1705e-05 | Q38: 0 | R38: 0 | S38: 0 | T38: 0.002547723 | U38: 0 | V38: =IF($E37=0,0,1-SUM(F38:U38)-ROUND(X37/E37,9)) -> 8.1707e-05 | W38: 1 | X38: 0
A39: K407 | B39: METERS | E39: =+'[1]alloc3-meters'!$E$36 -> 40596398 | F39: =+'[1]alloc3-meters'!$E$15 -> 35086187 | G39: =+'[1]alloc3-meters'!$E$16 -> 4804971 | H39: =+'[1]alloc3-meters'!$E$29 -> 0 | I39: =+'[1]alloc3-meters'!$E$17 -> 0 | J39: =+'[1]alloc3-meters'!$E$18 -> 141678 | K39: =+'[1]alloc3-meters'!$E$19 -> 11862 | L39: =+'[1]alloc3-meters'!$E$20 -> 367725 | M39: =+'[1]alloc3-meters'!$E$30 -> 0 | N39: =+'[1]alloc3-meters'!$E$21 -> 124275 | O39: =+'[1]alloc3-meters'!$E$31 -> 0 | P39: =+'[1]alloc3-meters'!$E$22 -> 14025 | Q39: =+'[1]alloc3-meters'!$E$32 -> 0 | R39: =+'[1]alloc3-meters'!$E$23 -> 43200 | S39: =+'[1]alloc3-meters'!$E$33 -> 0 | T39: =+'[1]alloc3-meters'!$E$24 -> 2475 | U39: 0 | V39: =+'[1]alloc3-meters'!$E$25 -> 0 | W39: 40596398 | X39: 0 | Y39: K407 | Z39: linked
B40: RATIO TO TOTAL ELECTRIC | C40: K407 | D40: =C40 -> K407 | E40: 1 | F40: =IF($E39=0,0,ROUND(F39/$E39,9)) -> 0.864268475 | G40: 0.11835954 | H40: 0 | I40: 0 | J40: 0.003489916 | K40: 0.000292193 | L40: 0.00905807 | M40: 0 | N40: 0.003061232 | O40: 0 | P40: 0.000345474 | Q40: 0 | R40: 0.001064134 | S40: 0 | T40: 6.0966e-05 | U40: 0 | V40: =IF($E39=0,0,1-ROUND(SUM(F40:U40),9)-ROUND(X39/E39,9)) -> 0 | W40: 1 | X40: 0
A41: K409 | B41: CUSTOMER ACCOUNTS 901-3, 905 | E41: =+'[1]alloc4-CA'!$D$36 -> 3915187 | F41: =+'[1]alloc4-CA'!$D$15 -> 3457929 | G41: =+'[1]alloc4-CA'!$D$16 -> 430386 | H41: =+'[1]alloc4-CA'!$D$29 -> 426 | I41: =+'[1]alloc4-CA'!$D$17 -> 2636 | J41: =+'[1]alloc4-CA'!$D$18 -> 4168 | K41: =+'[1]alloc4-CA'!$D$19 -> 663 | L41: =+'[1]alloc4-CA'!$D$20 -> 7208 | M41: =+'[1]alloc4-CA'!$D$30 -> 224 | N41: =+'[1]alloc4-CA'!$D$21 -> 1266 | O41: =+'[1]alloc4-CA'!$D$31 -> 184 | P41: =+'[1]alloc4-CA'!$D$22 -> 481 | Q41: =+'[1]alloc4-CA'!$D$32 -> 0 | R41: =+'[1]alloc4-CA'!$D$23 -> 466 | S41: =+'[1]alloc4-CA'!$D$33 -> 144 | T41: =+'[1]alloc4-CA'!$D$24 -> 8606 | U41: 0 | V41: =+'[1]alloc4-CA'!$D$25 -> 400 | W41: 3915187 | X41: 0 | Y41: K409 | Z41: linked
B42: RATIO TO TOTAL ELECTRIC | C42: K409 | D42: =C42 -> K409 | E42: 1 | F42: =IF($E41=0,0,ROUND(F41/$E41,9)) -> 0.883209155 | G42: 0.109927316 | H42: 0.000108807 | I42: 0.000673276 | J42: 0.001064572 | K42: 0.000169341 | L42: 0.001841036 | M42: 5.7213e-05 | N42: 0.000323356 | O42: 4.6996e-05 | P42: 0.000122855 | Q42: 0 | R42: 0.000119024 | S42: 3.678e-05 | T42: 0.002198107 | U42: 0 | V42: =IF($E41=0,0,1-SUM(F42:U42)-ROUND(X41/E41,9)) -> 0.000102166 | W42: 1 | X42: 0
A43: K411 | B43: UNCOLLECTIBLE ACCOUNT 904 | E43: =+'[1]alloc4-CA'!$G$36 -> 2607059 | F43: =+'[1]alloc4-CA'!$G$15 -> 2331577 | G43: =+'[1]alloc4-CA'!$G$16 -> 244370 | H43: =+'[1]alloc4-CA'!$G$29 -> 0 | I43: =+'[1]alloc4-CA'!$G$17 -> 0 | J43: =+'[1]alloc4-CA'!$G$18 -> 0 | K43: =+'[1]alloc4-CA'!$G$19 -> 0 | L43: =+'[1]alloc4-CA'!$G$20 -> 31075 | M43: =+'[1]alloc4-CA'!$G$30 -> 0 | N43: =+'[1]alloc4-CA'!$G$21 -> 0 | O43: =+'[1]alloc4-CA'!$G$31 -> 0 | P43: =+'[1]alloc4-CA'!$G$22 -> 0 | Q43: =+'[1]alloc4-CA'!$G$32 -> 0 | R43: =+'[1]alloc4-CA'!$G$23 -> 0 | S43: =+'[1]alloc4-CA'!$G$33 -> 0 | T43: =+'[1]alloc4-CA'!$G$24 -> 37 | U43: 0 | V43: =+'[1]alloc4-CA'!$G$25 -> 0 | W43: 2607059 | X43: 0 | Y43: K411 | Z43: linked
B44: RATIO TO TOTAL ELECTRIC | C44: K411 | D44: =C44 -> K411 | E44: 1 | F44: =IF($E43=0,0,ROUND(F43/$E43,9)) -> 0.894332272 | G44: 0.093733974 | H44: 0 | I44: 0 | J44: 0 | K44: 0 | L44: 0.011919561 | M44: 0 | N44: 0 | O44: 0 | P44: 0 | Q44: 0 | R44: 0 | S44: 0 | T44: 1.4192e-05 | U44: 0 | V44: =IF($E43=0,0,1-SUM(F44:U44)-ROUND(X43/E43,9)) -> 9.999999717e-10 | W44: =SUM(F44:V44) -> 1 | X44: 0
A45: K413 | B45: CUST SERVICE & INFORM ACCOUNTS 908-10 | E45: =+'[1]alloc4-CA'!$J$36 -> 646790 | F45: =+'[1]alloc4-CA'!$J$15 -> 427763 | G45: =+'[1]alloc4-CA'!$J$16 -> 201745 | H45: =+'[1]alloc4-CA'!$J$29 -> 160 | I45: =+'[1]alloc4-CA'!$J$17 -> 2452 | J45: =+'[1]alloc4-CA'!$J$18 -> 1974 | K45: =+'[1]alloc4-CA'!$J$19 -> 458 | L45: =+'[1]alloc4-CA'!$J$20 -> 2910 | M45: =+'[1]alloc4-CA'!$J$30 -> 99 | N45: =+'[1]alloc4-CA'!$J$21 -> 537 | O45: =+'[1]alloc4-CA'!$J$31 -> 79 | P45: =+'[1]alloc4-CA'!$J$22 -> 200 | Q45: =+'[1]alloc4-CA'!$J$32 -> 0 | R45: =+'[1]alloc4-CA'!$J$23 -> 180 | S45: =+'[1]alloc4-CA'!$J$33 -> 59 | T45: =+'[1]alloc4-CA'!$J$24 -> 7994 | U45: 0 | V45: =+'[1]alloc4-CA'!$J$25 -> 180 | W45: =SUM(F45:V45) -> 646790 | X45: 0 | Y45: K413 | Z45: linked
B46: RATIO TO TOTAL ELECTRIC | C46: K413 | D46: =C46 -> K413 | E46: 1 | F46: =IF($E45=0,0,ROUND(F45/$E45,9)) -> 0.661363039 | G46: 0.311917315 | H46: 0.000247376 | I46: 0.00379103 | J46: 0.003051995 | K46: 0.000708112 | L46: 0.004499142 | M46: 0.000153064 | N46: 0.000830254 | O46: 0.000122142 | P46: 0.000309219 | Q46: 0 | R46: 0.000278297 | S46: 9.122e-05 | T46: 0.012359498 | U46: 0 | V46: =IF($E45=0,0,1-SUM(F46:U46)-ROUND(X45/E45,9)) -> 0.000278297 | W46: 1 | X46: 0
A47: K419 | B47: SALES ACCOUNTS 911, 913 | E47: =+'[1]alloc4-CA'!$M$36 -> 72135 | F47: =+'[1]alloc4-CA'!$M$15 -> 48948 | G47: =+'[1]alloc4-CA'!$M$16 -> 21360 | H47: =+'[1]alloc4-CA'!$M$29 -> 17 | I47: =+'[1]alloc4-CA'!$M$17 -> 260 | J47: =+'[1]alloc4-CA'!$M$18 -> 209 | K47: =+'[1]alloc4-CA'!$M$19 -> 48 | L47: =+'[1]alloc4-CA'!$M$20 -> 308 | M47: =+'[1]alloc4-CA'!$M$30 -> 10 | N47: =+'[1]alloc4-CA'!$M$21 -> 56 | O47: =+'[1]alloc4-CA'!$M$31 -> 8 | P47: =+'[1]alloc4-CA'!$M$22 -> 21 | Q47: =+'[1]alloc4-CA'!$M$32 -> 0 | R47: =+'[1]alloc4-CA'!$M$23 -> 19 | S47: =+'[1]alloc4-CA'!$M$33 -> 6 | T47: =+'[1]alloc4-CA'!$M$24 -> 846 | U47: 0 | V47: =+'[1]alloc4-CA'!$M$25 -> 19 | W47: =SUM(F47:V47) -> 72135 | X47: 0 | Y47: K419 | Z47: linked
B48: RATIO TO TOTAL ELECTRIC | C48: K419 | D48: =C48 -> K419 | E48: 1 | F48: =IF($E47=0,0,ROUND(F47/$E47,9)) -> 0.678561031 | G48: 0.296111458 | H48: 0.000235669 | I48: 0.003604353 | J48: 0.002897345 | K48: 0.000665419 | L48: 0.004269772 | M48: 0.000138629 | N48: 0.000776322 | O48: 0.000110903 | P48: 0.000291121 | Q48: 0 | R48: 0.000263395 | S48: 8.3177e-05 | T48: 0.01172801 | U48: 0 | V48: =IF($E47=0,0,1-SUM(F48:U48)-ROUND(X47/E47,9)) -> 0.000263396 | W48: 1 | X48: 0
A49: K302 | B49: KWH SALES LESS RTP | E49: 4274838087 | F49: =F27 -> 1633623871 | G49: 1118383192 | H49: 0 | I49: 6714746 | J49: 15149755 | K49: 434115 | L49: 782930553 | M49: 0 | N49: 467034883 | O49: 0 | P49: 36757242 | Q49: 0 | R49: 186542548 | S49: 0 | T49: 26919458 | U49: 0 | V49: 347724 | W49: =SUM(F49:V49) -> 4274838087 | X49: 0 | Y49: K302
B50: RATIO TO TOTAL ELECTRIC | C50: K302 | D50: =C50 -> K302 | E50: 1 | F50: =IF($E49=0,0,ROUND(F49/$E49,9)) -> 0.382148712 | G50: 0.261620012 | H50: 0 | I50: 0.00157076 | J50: 0.003543937 | K50: 0.000101551 | L50: 0.183148586 | M50: 0 | N50: 0.109252064 | O50: 0 | P50: 0.008598511 | Q50: 0 | R50: 0.043637336 | S50: 0 | T50: 0.006297188 | U50: 0 | V50: =IF($E49=0,0,1-SUM(F50:U50)-ROUND(X49/E49,9)) -> 8.1343e-05 | W50: 1 | X50: 0
B51: ALLOCATORS & WEIGHTED RATIOS | Y51: SCHEDULE: 13
B52: SPECIAL ALLOCATOR INFO FOR K209 | C52: SCHEDULE: 13a
B53: SUBSTATIONS | E53: =+coss!D63 -> 37605000 | F53: =+coss!E63 -> 16967803 | G53: =+coss!F63 -> 10113411 | H53: =+coss!G63 -> 9581 | I53: =+coss!H63 -> 39501 | J53: =+coss!I63 -> 133491 | K53: =+coss!J63 -> 3961 | L53: =+coss!K63 -> 6041616 | M53: =+coss!L63 -> 66799 | N53: =+coss!M63 -> 3433565 | O53: =+coss!N63 -> 158112 | P53: =+coss!O63 -> 296688 | Q53: =+coss!P63 -> 0 | R53: =+coss!Q63 -> 0 | S53: =+coss!R63 -> 0 | T53: =+coss!S63 -> 337421 | U53: =+coss!T63 -> 0 | V53: =+coss!U63 -> 3051 | W53: =SUM(F53:V53) -> 37605000 | X53: =+E53-W53 -> 0
B54: POLES, TOWERS & FIXTURES | E54: =+coss!D64 -> 48820000 | F54: =+coss!E64 -> 22398721 | G54: =+coss!F64 -> 13350433 | H54: =+coss!G64 -> 12648 | I54: =+coss!H64 -> 52145 | J54: =+coss!I64 -> 176218 | K54: =+coss!J64 -> 5229 | L54: =+coss!K64 -> 7975369 | M54: =+coss!L64 -> 88180 | N54: =+coss!M64 -> 3807334 | O54: =+coss!N64 -> 175299 | P54: =+coss!O64 -> 328977 | Q54: =+coss!P64 -> 0 | R54: =+coss!Q64 -> 0 | S54: =+coss!R64 -> 0 | T54: =+coss!S64 -> 445420 | U54: =+coss!T64 -> 0 | V54: =+coss!U64 -> 4027 | W54: 48820000 | X54: 0
B55: CONDUCTORS | E55: =+coss!D65 -> 109042000 | F55: =+coss!E65 -> 50028708 | G55: =+coss!F65 -> 29818883 | H55: =+coss!G65 -> 28249 | I55: =+coss!H65 -> 116468 | J55: =+coss!I65 -> 393591 | K55: =+coss!J65 -> 11678 | L55: =+coss!K65 -> 17813401 | M55: =+coss!L65 -> 196954 | N55: =+coss!M65 -> 8503877 | O55: =+coss!N65 -> 391540 | P55: =+coss!O65 -> 734788 | Q55: =+coss!P65 -> 0 | R55: =+coss!Q65 -> 0 | S55: =+coss!R65 -> 0 | T55: =+coss!S65 -> 994868 | U55: =+coss!T65 -> 0 | V55: =+coss!U65 -> 8995 | W55: 109042000 | X55: 0
B56: TRANSFORMERS | E56: =+coss!D66 -> 47561000 | F56: =+coss!E66 -> 31439413 | G56: =+coss!F66 -> 10699352 | H56: =+coss!G66 -> 10576 | I56: =+coss!H66 -> 27969 | J56: =+coss!I66 -> 246908 | K56: =+coss!J66 -> 5271 | L56: =+coss!K66 -> 4788363 | M56: =+coss!L66 -> 88686 | N56: =+coss!M66 -> 0 | O56: =+coss!N66 -> 0 | P56: =+coss!O66 -> 0 | Q56: =+coss!P66 -> 0 | R56: =+coss!Q66 -> 0 | S56: =+coss!R66 -> 0 | T56: =+coss!S66 -> 243394 | U56: =+coss!T66 -> 0 | V56: =+coss!U66 -> 11068 | W56: 47561000 | X56: 0
B57: SERVICES | E57: =+coss!D67 -> 12487000 | F57: =+coss!E67 -> 11138071 | G57: =+coss!F67 -> 1127362 | H57: =+coss!G67 -> 0 | I57: =+coss!H67 -> 13481 | J57: =+coss!I67 -> 32740 | K57: =+coss!J67 -> 2476 | L57: =+coss!K67 -> 139396 | M57: =+coss!L67 -> 0 | N57: =+coss!M67 -> 0 | O57: =+coss!N67 -> 0 | P57: =+coss!O67 -> 0 | Q57: =+coss!P67 -> 0 | R57: =+coss!Q67 -> 0 | S57: =+coss!R67 -> 0 | T57: =+coss!S67 -> 31456 | U57: =+coss!T67 -> 0 | V57: =+coss!U67 -> 2018 | W57: 12487000 | X57: 0
B58: METERS | E58: =+coss!D68 -> 13862000 | F58: =+coss!E68 -> 11980490 | G58: =+coss!F68 -> 1640700 | H58: =+coss!G68 -> 0 | I58: =+coss!H68 -> 0 | J58: =+coss!I68 -> 48377 | K58: =+coss!J68 -> 4050 | L58: =+coss!K68 -> 125563 | M58: =+coss!L68 -> 0 | N58: =+coss!M68 -> 42435 | O58: =+coss!N68 -> 0 | P58: =+coss!O68 -> 4789 | Q58: =+coss!P68 -> 0 | R58: =+coss!Q68 -> 14751 | S58: =+coss!R68 -> 0 | T58: =+coss!S68 -> 845 | U58: =+coss!T68 -> 0 | V58: =+coss!U68 -> 0 | W58: 13862000 | X58: 0
B59: OTHERS | E59: =+coss!D69 -> 0 | F59: =+coss!E69 -> 0 | G59: =+coss!F69 -> 0 | H59: =+coss!G69 -> 0 | I59: =+coss!H69 -> 0 | J59: =+coss!I69 -> 0 | K59: =+coss!J69 -> 0 | L59: =+coss!K69 -> 0 | M59: =+coss!L69 -> 0 | N59: =+coss!M69 -> 0 | O59: =+coss!N69 -> 0 | P59: =+coss!O69 -> 0 | Q59: =+coss!P69 -> 0 | R59: =+coss!Q69 -> 0 | S59: =+coss!R69 -> 0 | T59: =+coss!S69 -> 0 | U59: =+coss!T69 -> 0 | V59: =+coss!U69 -> 0 | W59: 0 | X59: 0
B60: STREET LIGHTS | E60: =+coss!D70 -> 7297000 | F60: =+coss!E70 -> 0 | G60: =+coss!F70 -> 0 | H60: =+coss!G70 -> 0 | I60: =+coss!H70 -> 0 | J60: =+coss!I70 -> 0 | K60: =+coss!J70 -> 0 | L60: =+coss!K70 -> 0 | M60: =+coss!L70 -> 0 | N60: =+coss!M70 -> 0 | O60: =+coss!N70 -> 0 | P60: =+coss!O70 -> 0 | Q60: =+coss!P70 -> 0 | R60: =+coss!Q70 -> 0 | S60: =+coss!R70 -> 0 | T60: =+coss!S70 -> 7297000 | U60: =+coss!T70 -> 0 | V60: =+coss!U70 -> 0 | W60: 7297000 | X60: 0
B61: GROSS DISTR PLANT N0T INCL. ACCT 106 | E61: =SUM(E53:E60) -> 276674000 | F61: 143953206 | G61: 66750141 | H61: 61054 | I61: 249564 | J61: 1031325 | K61: 32665 | L61: 36883708 | M61: 440619 | N61: 15787211 | O61: 724951 | P61: 1365242 | Q61: 0 | R61: 14751 | S61: 0 | T61: 9350404 | U61: 0 | V61: 29159 | W61: 276674000 | X61: 0
B62: GROSS DISTR RESEV. NOT INCL. ACCT 106 | E62: =-SUM(coss!D113:D120) -> -108147766 | F62: =-SUM(coss!E113:E120) -> -56613150 | G62: =-SUM(coss!F113:F120) -> -25059424 | H62: =-SUM(coss!G113:G120) -> -22941 | I62: =-SUM(coss!H113:H120) -> -95756 | J62: =-SUM(coss!I113:I120) -> -399833 | K62: =-SUM(coss!J113:J120) -> -12371 | L62: =-SUM(coss!K113:K120) -> -13658671 | M62: =-SUM(coss!L113:L120) -> -167285 | N62: =-SUM(coss!M113:M120) -> -5473770 | O62: =-SUM(coss!N113:N120) -> -251636 | P62: =-SUM(coss!O113:O120) -> -473197 | Q62: =-SUM(coss!P113:P120) -> 0 | R62: =-SUM(coss!Q113:Q120) -> -2982 | S62: =-SUM(coss!R113:R120) -> 0 | T62: =-SUM(coss!S113:S120) -> -5904336 | U62: =-SUM(coss!T113:T120) -> 0 | V62: =-SUM(coss!U113:U120) -> -12414 | W62: =SUM(F62:V62) -> -108147766 | X62: =E62-W62 -> 0
B63: NET DIST.PLT LESS ACCT 106 | E63: =SUM(E61:E62) -> 168526234 | F63: =SUM(F61:F62) -> 87340056 | G63: 41690717 | H63: 38113 | I63: =SUM(I61:I62) -> 153808 | J63: =SUM(J61:J62) -> 631492 | K63: =SUM(K61:K62) -> 20294 | L63: 23225037 | M63: 273334 | N63: 10313441 | O63: 473315 | P63: =SUM(P61:P62) -> 892045 | Q63: =SUM(Q61:Q62) -> 0 | R63: 11769 | S63: 0 | T63: 3446068 | U63: 0 | V63: 16745 | W63: 168526234 | X63: 0 | Y63: K211
C64: K211 | D64: =+C64 -> K211 | E64: 1 | F64: =IF($E63=0,0,ROUND(F63/$E63,9)) -> 0.518257923 | G64: 0.247384137 | H64: 0.000226155 | I64: =IF($E63=0,0,ROUND(I63/$E63,9)) -> 0.000912665 | J64: =IF($E63=0,0,ROUND(J63/$E63,9)) -> 0.003747144 | K64: =IF($E63=0,0,ROUND(K63/$E63,9)) -> 0.00012042 | L64: 0.137812591 | M64: 0.001621908 | N64: 0.061197837 | O64: 0.002808554 | P64: =IF($E63=0,0,ROUND(P63/$E63,9)) -> 0.005293212 | Q64: =IF($E63=0,0,ROUND(Q63/$E63,9)) -> 0 | R64: 6.9835e-05 | S64: 0 | T64: 0.020448259 | U64: 0 | V64: =IF($E63=0,0,1-SUM(F64:U64)-ROUND(X63/E63,9)) -> 9.936e-05 | W64: =SUM(F64:V64) -> 1 | X64: =E64-W64 -> 0
B65: WEIGHTED RATIOS
A66: P129 | B66: GROSS ELECTRIC PLANT IN SERVICE | Y66: P129
A67: P129 | B67: WTD GROSS PROD PLANT RATIOS | C67: P129 | D67: =C67 -> P129 | E67: 1 | F67: =ROUND(IF(coss!$D$53=0,0,+coss!E$53/coss!$D$53),9) -> 0.447129548 | G67: =ROUND(IF(coss!$D$53=0,0,+coss!F$53/coss!$D$53),9) -> 0.2658953 | H67: =ROUND(IF(coss!$D$53=0,0,+coss!G$53/coss!$D$53),9) -> 0.000217548 | I67: =ROUND(IF(coss!$D$53=0,0,+coss!H$53/coss!$D$53),9) -> 0.001172808 | J67: =ROUND(IF(coss!$D$53=0,0,+coss!I$53/coss!$D$53),9) -> 0.003388729 | K67: =ROUND(IF(coss!$D$53=0,0,+coss!J$53/coss!$D$53),9) -> 0.000105985 | L67: =ROUND(IF(coss!$D$53=0,0,+coss!K$53/coss!$D$53),9) -> 0.148038652 | M67: =ROUND(IF(coss!$D$53=0,0,+coss!L$53/coss!$D$53),9) -> 0.001631611 | N67: =ROUND(IF(coss!$D$53=0,0,+coss!M$53/coss!$D$53),9) -> 0.082986208 | O67: =ROUND(IF(coss!$D$53=0,0,+coss!N$53/coss!$D$53),9) -> 0.003830798 | P67: =ROUND(IF(coss!$D$53=0,0,+coss!O$53/coss!$D$53),9) -> 0.008047884 | Q67: =ROUND(IF(coss!$D$53=0,0,+coss!P$53/coss!$D$53),9) -> 0 | R67: =ROUND(IF(coss!$D$53=0,0,+coss!Q$53/coss!$D$53),9) -> 0.032262653 | S67: =ROUND(IF(coss!$D$53=0,0,+coss!R$53/coss!$D$53),9) -> 0.002042999 | T67: =ROUND(IF(coss!$D$53=0,0,+coss!S$53/coss!$D$53),9) -> 0.003173971 | U67: =ROUND(IF(coss!$D$53=0,0,+coss!T$53/coss!$D$53),9) -> 0 | V67: =IF(coss!$D$53=0,0,1-SUM(F67:U67)-ROUND(coss!$W$53/coss!$D$53,9)) -> 7.5306e-05 | W67: =SUM(F67:V67) -> 1 | X67: =E67-W67 -> 0 | Y67: T129
A68: T129 | B68: WTD GROSS TRANS PLANT RATIOS | C68: T129 | D68: T129 | E68: 1 | F68: =ROUND(IF(coss!$D$58=0,0,+coss!E$58/coss!$D$58),9) -> 0.447129471 | G68: =ROUND(IF(coss!$D$58=0,0,+coss!F$58/coss!$D$58),9) -> 0.265895313 | H68: =ROUND(IF(coss!$D$58=0,0,+coss!G$58/coss!$D$58),9) -> 0.000217538 | I68: =ROUND(IF(coss!$D$58=0,0,+coss!H$58/coss!$D$58),9) -> 0.00117281 | J68: =ROUND(IF(coss!$D$58=0,0,+coss!I$58/coss!$D$58),9) -> 0.003388749 | K68: =ROUND(IF(coss!$D$58=0,0,+coss!J$58/coss!$D$58),9) -> 0.000105992 | L68: =ROUND(IF(coss!$D$58=0,0,+coss!K$58/coss!$D$58),9) -> 0.148038669 | M68: =ROUND(IF(coss!$D$58=0,0,+coss!L$58/coss!$D$58),9) -> 0.001631617 | N68: =ROUND(IF(coss!$D$58=0,0,+coss!M$58/coss!$D$58),9) -> 0.082986199 | O68: =ROUND(IF(coss!$D$58=0,0,+coss!N$58/coss!$D$58),9) -> 0.003830809 | P68: =ROUND(IF(coss!$D$58=0,0,+coss!O$58/coss!$D$58),9) -> 0.008047884 | Q68: =ROUND(IF(coss!$D$58=0,0,+coss!P$58/coss!$D$58),9) -> 0 | R68: =ROUND(IF(coss!$D$58=0,0,+coss!Q$58/coss!$D$58),9) -> 0.032262644 | S68: =ROUND(IF(coss!$D$58=0,0,+coss!R$58/coss!$D$58),9) -> 0.002043003 | T68: =ROUND(IF(coss!$D$58=0,0,+coss!S$58/coss!$D$58),9) -> 0.003173988 | U68: =ROUND(IF(coss!$D$58=0,0,+coss!T$58/coss!$D$58),9) -> 0 | V68: =IF(coss!$D$58=0,0,1-SUM(F68:U68)-ROUND(coss!$W$58/coss!$D$58,9)) -> 7.5314e-05 | W68: 1 | X68: 0 | Y68: PT29
A69: PT29 | B69: WTD GROSS P & T PLT RATIOS | C69: PT29 | D69: PT29 | E69: 1 | F69: =ROUND(IF(coss!$D$60=0,0,+coss!E$60/coss!$D$60),9) -> 0.447129545 | G69: =ROUND(IF(coss!$D$60=0,0,+coss!F$60/coss!$D$60),9) -> 0.265895301 | H69: =ROUND(IF(coss!$D$60=0,0,+coss!G$60/coss!$D$60),9) -> 0.000217548 | I69: =ROUND(IF(coss!$D$60=0,0,+coss!H$60/coss!$D$60),9) -> 0.001172808 | J69: =ROUND(IF(coss!$D$60=0,0,+coss!I$60/coss!$D$60),9) -> 0.00338873 | K69: =ROUND(IF(coss!$D$60=0,0,+coss!J$60/coss!$D$60),9) -> 0.000105985 | L69: =ROUND(IF(coss!$D$60=0,0,+coss!K$60/coss!$D$60),9) -> 0.148038652 | M69: =ROUND(IF(coss!$D$60=0,0,+coss!L$60/coss!$D$60),9) -> 0.001631611 | N69: =ROUND(IF(coss!$D$60=0,0,+coss!M$60/coss!$D$60),9) -> 0.082986208 | O69: =ROUND(IF(coss!$D$60=0,0,+coss!N$60/coss!$D$60),9) -> 0.003830798 | P69: =ROUND(IF(coss!$D$60=0,0,+coss!O$60/coss!$D$60),9) -> 0.008047884 | Q69: =ROUND(IF(coss!$D$60=0,0,+coss!P$60/coss!$D$60),9) -> 0 | R69: =ROUND(IF(coss!$D$60=0,0,+coss!Q$60/coss!$D$60),9) -> 0.032262652 | S69: =ROUND(IF(coss!$D$60=0,0,+coss!R$60/coss!$D$60),9) -> 0.002043 | T69: =ROUND(IF(coss!$D$60=0,0,+coss!S$60/coss!$D$60),9) -> 0.003173971 | U69: =ROUND(IF(coss!$D$60=0,0,+coss!T$60/coss!$D$60),9) -> 0 | V69: =IF(coss!$D$60=0,0,1-SUM(F69:U69)-ROUND(coss!$W$60/coss!$D$60,9)) -> 7.5307e-05 | W69: 1 | X69: 0 | Y69: D149
A70: D149 | B70: WTD GROSS DIST PLANT RATIOS | C70: D149 | D70: D149 | E70: 1 | F70: =ROUND(IF(coss!$D$72=0,0,+coss!E$72/coss!$D$72),9) -> 0.520298998 | G70: =ROUND(IF(coss!$D$72=0,0,+coss!F$72/coss!$D$72),9) -> 0.241259176 | H70: =ROUND(IF(coss!$D$72=0,0,+coss!G$72/coss!$D$72),9) -> 0.00022067 | I70: =ROUND(IF(coss!$D$72=0,0,+coss!H$72/coss!$D$72),9) -> 0.000902015 | J70: =ROUND(IF(coss!$D$72=0,0,+coss!I$72/coss!$D$72),9) -> 0.003727583 | K70: =ROUND(IF(coss!$D$72=0,0,+coss!J$72/coss!$D$72),9) -> 0.000118062 | L70: =ROUND(IF(coss!$D$72=0,0,+coss!K$72/coss!$D$72),9) -> 0.133311075 | M70: =ROUND(IF(coss!$D$72=0,0,+coss!L$72/coss!$D$72),9) -> 0.001592557 | N70: =ROUND(IF(coss!$D$72=0,0,+coss!M$72/coss!$D$72),9) -> 0.057060698 | O70: =ROUND(IF(coss!$D$72=0,0,+coss!N$72/coss!$D$72),9) -> 0.002620235 | P70: =ROUND(IF(coss!$D$72=0,0,+coss!O$72/coss!$D$72),9) -> 0.00493448 | Q70: =ROUND(IF(coss!$D$72=0,0,+coss!P$72/coss!$D$72),9) -> 0 | R70: =ROUND(IF(coss!$D$72=0,0,+coss!Q$72/coss!$D$72),9) -> 5.3314e-05 | S70: =ROUND(IF(coss!$D$72=0,0,+coss!R$72/coss!$D$72),9) -> 0 | T70: =ROUND(IF(coss!$D$72=0,0,+coss!S$72/coss!$D$72),9) -> 0.033795746 | U70: =ROUND(IF(coss!$D$72=0,0,+coss!T$72/coss!$D$72),9) -> 0 | V70: =IF(coss!$D$72=0,0,1-SUM(F70:U70)-ROUND(coss!$W$72/coss!$D$72,9)) -> 0.000105391 | W70: 1 | X70: 0 | Y70: TD29
A71: TD29 | B71: WTD GROSS TRANS & DIST RATIOS | C71: TD29 | D71: TD29 | E71: 1 | F71: =ROUND(IF(coss!$D$74=0,0,+coss!E$74/coss!$D$74),9) -> 0.514852534 | G71: =ROUND(IF(coss!$D$74=0,0,+coss!F$74/coss!$D$74),9) -> 0.243092997 | H71: =ROUND(IF(coss!$D$74=0,0,+coss!G$74/coss!$D$74),9) -> 0.000220437 | I71: =ROUND(IF(coss!$D$74=0,0,+coss!H$74/coss!$D$74),9) -> 0.000922172 | J71: =ROUND(IF(coss!$D$74=0,0,+coss!I$74/coss!$D$74),9) -> 0.003702362 | K71: =ROUND(IF(coss!$D$74=0,0,+coss!J$74/coss!$D$74),9) -> 0.000117164 | L71: =ROUND(IF(coss!$D$74=0,0,+coss!K$74/coss!$D$74),9) -> 0.134407342 | M71: =ROUND(IF(coss!$D$74=0,0,+coss!L$74/coss!$D$74),9) -> 0.001595465 | N71: =ROUND(IF(coss!$D$74=0,0,+coss!M$74/coss!$D$74),9) -> 0.058990494 | O71: =ROUND(IF(coss!$D$74=0,0,+coss!N$74/coss!$D$74),9) -> 0.002710345 | P71: =ROUND(IF(coss!$D$74=0,0,+coss!O$74/coss!$D$74),9) -> 0.00516623 | Q71: =ROUND(IF(coss!$D$74=0,0,+coss!P$74/coss!$D$74),9) -> 0 | R71: =ROUND(IF(coss!$D$74=0,0,+coss!Q$74/coss!$D$74),9) -> 0.002450855 | S71: =ROUND(IF(coss!$D$74=0,0,+coss!R$74/coss!$D$74),9) -> 0.000152073 | T71: =ROUND(IF(coss!$D$74=0,0,+coss!S$74/coss!$D$74),9) -> 0.031516377 | U71: =ROUND(IF(coss!$D$74=0,0,+coss!T$74/coss!$D$74),9) -> 0 | V71: =IF(coss!$D$74=0,0,1-SUM(F71:U71)-ROUND(coss!$W$74/coss!$D$74,9)) -> 0.000103153 | W71: 1 | X71: 0 | Y71: PD29
A72: PD29 | B72: WTD GROSS PTD PLT RATIOS | C72: PD29 | D72: PD29 | E72: 1 | F72: =ROUND(IF(coss!$D$75=0,0,+coss!E$75/coss!$D$75),9) -> 0.466817057 | G72: =ROUND(IF(coss!$D$75=0,0,+coss!F$75/coss!$D$75),9) -> 0.259266523 | H72: =ROUND(IF(coss!$D$75=0,0,+coss!G$75/coss!$D$75),9) -> 0.000218388 | I72: =ROUND(IF(coss!$D$75=0,0,+coss!H$75/coss!$D$75),9) -> 0.001099946 | J72: =ROUND(IF(coss!$D$75=0,0,+coss!I$75/coss!$D$75),9) -> 0.003479904 | K72: =ROUND(IF(coss!$D$75=0,0,+coss!J$75/coss!$D$75),9) -> 0.000109234 | L72: =ROUND(IF(coss!$D$75=0,0,+coss!K$75/coss!$D$75),9) -> 0.144075942 | M72: =ROUND(IF(coss!$D$75=0,0,+coss!L$75/coss!$D$75),9) -> 0.001621103 | N72: =ROUND(IF(coss!$D$75=0,0,+coss!M$75/coss!$D$75),9) -> 0.076010499 | O72: =ROUND(IF(coss!$D$75=0,0,+coss!N$75/coss!$D$75),9) -> 0.003505075 | P72: =ROUND(IF(coss!$D$75=0,0,+coss!O$75/coss!$D$75),9) -> 0.007210169 | Q72: =ROUND(IF(coss!$D$75=0,0,+coss!P$75/coss!$D$75),9) -> 0 | R72: =ROUND(IF(coss!$D$75=0,0,+coss!Q$75/coss!$D$75),9) -> 0.02359617 | S72: =ROUND(IF(coss!$D$75=0,0,+coss!R$75/coss!$D$75),9) -> 0.001493295 | T72: =ROUND(IF(coss!$D$75=0,0,+coss!S$75/coss!$D$75),9) -> 0.011413292 | U72: =ROUND(IF(coss!$D$75=0,0,+coss!T$75/coss!$D$75),9) -> 0 | V72: =IF(coss!$D$75=0,0,1-SUM(F72:U72)-ROUND(coss!$W$75/coss!$D$75,9)) -> 8.3403e-05 | W72: 1 | X72: 0 | Y72: G129
A73: G129 | B73: WTD GROSS G & I PLT RATIOS | C73: G129 | D73: G129 | E73: 1 | F73: =ROUND(IF(coss!$D$85=0,0,+coss!E$85/coss!$D$85),9) -> 0.521885007 | G73: =ROUND(IF(coss!$D$85=0,0,+coss!F$85/coss!$D$85),9) -> 0.237464629 | H73: =ROUND(IF(coss!$D$85=0,0,+coss!G$85/coss!$D$85),9) -> 0.000173799 | I73: =ROUND(IF(coss!$D$85=0,0,+coss!H$85/coss!$D$85),9) -> 0.001165357 | J73: =ROUND(IF(coss!$D$85=0,0,+coss!I$85/coss!$D$85),9) -> 0.003006987 | K73: =ROUND(IF(coss!$D$85=0,0,+coss!J$85/coss!$D$85),9) -> 0.000125473 | L73: =ROUND(IF(coss!$D$85=0,0,+coss!K$85/coss!$D$85),9) -> 0.126944687 | M73: =ROUND(IF(coss!$D$85=0,0,+coss!L$85/coss!$D$85),9) -> 0.001151092 | N73: =ROUND(IF(coss!$D$85=0,0,+coss!M$85/coss!$D$85),9) -> 0.07023377 | O73: =ROUND(IF(coss!$D$85=0,0,+coss!N$85/coss!$D$85),9) -> 0.00261048 | P73: =ROUND(IF(coss!$D$85=0,0,+coss!O$85/coss!$D$85),9) -> 0.006341776 | Q73: =ROUND(IF(coss!$D$85=0,0,+coss!P$85/coss!$D$85),9) -> 0 | R73: =ROUND(IF(coss!$D$85=0,0,+coss!Q$85/coss!$D$85),9) -> 0.023222999 | S73: =ROUND(IF(coss!$D$85=0,0,+coss!R$85/coss!$D$85),9) -> 0.001128967 | T73: =ROUND(IF(coss!$D$85=0,0,+coss!S$85/coss!$D$85),9) -> 0.004462591 | U73: =ROUND(IF(coss!$D$85=0,0,+coss!T$85/coss!$D$85),9) -> 0 | V73: =IF(coss!$D$85=0,0,1-SUM(F73:U73)-ROUND(coss!$W$85/coss!$D$85,9)) -> 8.2386e-05 | W73: 1 | X73: 0 | Y73: C129
A74: C129 | B74: WTD GROSS C & O PLANT RATIOS | C74: C129 | D74: C129 | E74: 1 | F74: =ROUND(IF(coss!$D$95=0,0,+coss!E$95/coss!$D$95),9) -> 0.521842063 | G74: =ROUND(IF(coss!$D$95=0,0,+coss!F$95/coss!$D$95),9) -> 0.23747457 | H74: =ROUND(IF(coss!$D$95=0,0,+coss!G$95/coss!$D$95),9) -> 0.000173721 | I74: =ROUND(IF(coss!$D$95=0,0,+coss!H$95/coss!$D$95),9) -> 0.001165426 | J74: =ROUND(IF(coss!$D$95=0,0,+coss!I$95/coss!$D$95),9) -> 0.0030073 | K74: =ROUND(IF(coss!$D$95=0,0,+coss!J$95/coss!$D$95),9) -> 0.000125421 | L74: =ROUND(IF(coss!$D$95=0,0,+coss!K$95/coss!$D$95),9) -> 0.126966014 | M74: =ROUND(IF(coss!$D$95=0,0,+coss!L$95/coss!$D$95),9) -> 0.001151017 | N74: =ROUND(IF(coss!$D$95=0,0,+coss!M$95/coss!$D$95),9) -> 0.070244727 | O74: =ROUND(IF(coss!$D$95=0,0,+coss!N$95/coss!$D$95),9) -> 0.002610513 | P74: =ROUND(IF(coss!$D$95=0,0,+coss!O$95/coss!$D$95),9) -> 0.006342418 | Q74: =ROUND(IF(coss!$D$95=0,0,+coss!P$95/coss!$D$95),9) -> 0 | R74: =ROUND(IF(coss!$D$95=0,0,+coss!Q$95/coss!$D$95),9) -> 0.023222069 | S74: =ROUND(IF(coss!$D$95=0,0,+coss!R$95/coss!$D$95),9) -> 0.001128786 | T74: =ROUND(IF(coss!$D$95=0,0,+coss!S$95/coss!$D$95),9) -> 0.004463478 | U74: =ROUND(IF(coss!$D$95=0,0,+coss!T$95/coss!$D$95),9) -> 0 | V74: =IF(coss!$D$95=0,0,1-SUM(F74:U74)-ROUND(coss!$W$95/coss!$D$95,9)) -> 8.2477e-05 | W74: 1 | X74: 0 | Y74: GP19
A75: GP19 | B75: WTD GROSS PLANT RATIOS | C75: GP19 | D75: GP19 | E75: 1 | F75: =ROUND(IF(coss!$D$97=0,0,+coss!E$97/coss!$D$97),9) -> 0.468019404 | G75: =ROUND(IF(coss!$D$97=0,0,+coss!F$97/coss!$D$97),9) -> 0.258790371 | H75: =ROUND(IF(coss!$D$97=0,0,+coss!G$97/coss!$D$97),9) -> 0.000217412 | I75: =ROUND(IF(coss!$D$97=0,0,+coss!H$97/coss!$D$97),9) -> 0.001101377 | J75: =ROUND(IF(coss!$D$97=0,0,+coss!I$97/coss!$D$97),9) -> 0.003469578 | K75: =ROUND(IF(coss!$D$97=0,0,+coss!J$97/coss!$D$97),9) -> 0.000109588 | L75: =ROUND(IF(coss!$D$97=0,0,+coss!K$97/coss!$D$97),9) -> 0.14370205 | M75: =ROUND(IF(coss!$D$97=0,0,+coss!L$97/coss!$D$97),9) -> 0.001610832 | N75: =ROUND(IF(coss!$D$97=0,0,+coss!M$97/coss!$D$97),9) -> 0.075884492 | O75: =ROUND(IF(coss!$D$97=0,0,+coss!N$97/coss!$D$97),9) -> 0.00348553 | P75: =ROUND(IF(coss!$D$97=0,0,+coss!O$97/coss!$D$97),9) -> 0.007191208 | Q75: =ROUND(IF(coss!$D$97=0,0,+coss!P$97/coss!$D$97),9) -> 0 | R75: =ROUND(IF(coss!$D$97=0,0,+coss!Q$97/coss!$D$97),9) -> 0.023588 | S75: =ROUND(IF(coss!$D$97=0,0,+coss!R$97/coss!$D$97),9) -> 0.001485332 | T75: =ROUND(IF(coss!$D$97=0,0,+coss!S$97/coss!$D$97),9) -> 0.011261446 | U75: =ROUND(IF(coss!$D$97=0,0,+coss!T$97/coss!$D$97),9) -> 0 | V75: =IF(coss!$D$97=0,0,1-SUM(F75:U75)-ROUND(coss!$W$97/coss!$D$97,9)) -> 8.338e-05 | W75: 1 | X75: 0 | Y75: DR19
A76: DR19 | B76: WTD TOTAL DEPRC RES RATIOS | C76: DR19 | D76: DR19 | E76: 1 | F76: =ROUND(IF(coss!$D$148=0,0,+coss!E$148/coss!$D$148),9) -> 0.465112956 | G76: =ROUND(IF(coss!$D$148=0,0,+coss!F$148/coss!$D$148),9) -> 0.25807069 | H76: =ROUND(IF(coss!$D$148=0,0,+coss!G$148/coss!$D$148),9) -> 0.000215527 | I76: =ROUND(IF(coss!$D$148=0,0,+coss!H$148/coss!$D$148),9) -> 0.001111294 | J76: =ROUND(IF(coss!$D$148=0,0,+coss!I$148/coss!$D$148),9) -> 0.003446714 | K76: =ROUND(IF(coss!$D$148=0,0,+coss!J$148/coss!$D$148),9) -> 0.000108268 | L76: =ROUND(IF(coss!$D$148=0,0,+coss!K$148/coss!$D$148),9) -> 0.143007716 | M76: =ROUND(IF(coss!$D$148=0,0,+coss!L$148/coss!$D$148),9) -> 0.001603353 | N76: =ROUND(IF(coss!$D$148=0,0,+coss!M$148/coss!$D$148),9) -> 0.075855547 | O76: =ROUND(IF(coss!$D$148=0,0,+coss!N$148/coss!$D$148),9) -> 0.003485397 | P76: =ROUND(IF(coss!$D$148=0,0,+coss!O$148/coss!$D$148),9) -> 0.007230744 | Q76: =ROUND(IF(coss!$D$148=0,0,+coss!P$148/coss!$D$148),9) -> 0 | R76: =ROUND(IF(coss!$D$148=0,0,+coss!Q$148/coss!$D$148),9) -> 0.025153986 | S76: =ROUND(IF(coss!$D$148=0,0,+coss!R$148/coss!$D$148),9) -> 0.001584829 | T76: =ROUND(IF(coss!$D$148=0,0,+coss!S$148/coss!$D$148),9) -> 0.013929183 | U76: =ROUND(IF(coss!$D$148=0,0,+coss!T$148/coss!$D$148),9) -> 0 | V76: =IF(coss!$D$148=0,0,1-SUM(F76:U76)-ROUND(coss!$W$148/coss!$D$148,9)) -> 8.3796e-05 | W76: 1 | X76: 0
B78: NET ELECTRIC PLANT | Y78: P229
A79: P229 | B79: WTD NET PROD PLANT RATIOS | C79: P229 | D79: =C79 -> P229 | E79: 1 | F79: =ROUND(IF(coss!$D$205=0,0,+coss!E$205/coss!$D$205),9) -> 0.447129543 | G79: =ROUND(IF(coss!$D$205=0,0,+coss!F$205/coss!$D$205),9) -> 0.265895299 | H79: =ROUND(IF(coss!$D$205=0,0,+coss!G$205/coss!$D$205),9) -> 0.000217547 | I79: =ROUND(IF(coss!$D$205=0,0,+coss!H$205/coss!$D$205),9) -> 0.001172811 | J79: =ROUND(IF(coss!$D$205=0,0,+coss!I$205/coss!$D$205),9) -> 0.003388731 | K79: =ROUND(IF(coss!$D$205=0,0,+coss!J$205/coss!$D$205),9) -> 0.000105985 | L79: =ROUND(IF(coss!$D$205=0,0,+coss!K$205/coss!$D$205),9) -> 0.148038652 | M79: =ROUND(IF(coss!$D$205=0,0,+coss!L$205/coss!$D$205),9) -> 0.001631611 | N79: =ROUND(IF(coss!$D$205=0,0,+coss!M$205/coss!$D$205),9) -> 0.082986209 | O79: =ROUND(IF(coss!$D$205=0,0,+coss!N$205/coss!$D$205),9) -> 0.0038308 | P79: =ROUND(IF(coss!$D$205=0,0,+coss!O$205/coss!$D$205),9) -> 0.008047882 | Q79: =ROUND(IF(coss!$D$205=0,0,+coss!P$205/coss!$D$205),9) -> 0 | R79: =ROUND(IF(coss!$D$205=0,0,+coss!Q$205/coss!$D$205),9) -> 0.032262654 | S79: =ROUND(IF(coss!$D$205=0,0,+coss!R$205/coss!$D$205),9) -> 0.002042998 | T79: =ROUND(IF(coss!$D$205=0,0,+coss!S$205/coss!$D$205),9) -> 0.00317397 | U79: =ROUND(IF(coss!$D$205=0,0,+coss!T$205/coss!$D$205),9) -> 0 | V79: =IF(coss!$D$205=0,0,1-SUM(F79:U79)-ROUND(coss!$W$205/coss!$D$205,9)) -> 7.5308e-05 | W79: =SUM(F79:V79) -> 1 | X79: =E79-W79 -> 0 | Y79: T229
A80: T229 | B80: WTD NET TRANS PLANT RATIOS | C80: T229 | D80: T229 | E80: 1 | F80: =ROUND(IF(coss!$D$210=0,0,+coss!E$210/coss!$D$210),9) -> 0.447129396 | G80: =ROUND(IF(coss!$D$210=0,0,+coss!F$210/coss!$D$210),9) -> 0.265895303 | H80: =ROUND(IF(coss!$D$210=0,0,+coss!G$210/coss!$D$210),9) -> 0.000217504 | I80: =ROUND(IF(coss!$D$210=0,0,+coss!H$210/coss!$D$210),9) -> 0.001172823 | J80: =ROUND(IF(coss!$D$210=0,0,+coss!I$210/coss!$D$210),9) -> 0.003388778 | K80: =ROUND(IF(coss!$D$210=0,0,+coss!J$210/coss!$D$210),9) -> 0.000106024 | L80: =ROUND(IF(coss!$D$210=0,0,+coss!K$210/coss!$D$210),9) -> 0.148038708 | M80: =ROUND(IF(coss!$D$210=0,0,+coss!L$210/coss!$D$210),9) -> 0.001631645 | N80: =ROUND(IF(coss!$D$210=0,0,+coss!M$210/coss!$D$210),9) -> 0.082986212 | O80: =ROUND(IF(coss!$D$210=0,0,+coss!N$210/coss!$D$210),9) -> 0.00383079 | P80: =ROUND(IF(coss!$D$210=0,0,+coss!O$210/coss!$D$210),9) -> 0.008047851 | Q80: =ROUND(IF(coss!$D$210=0,0,+coss!P$210/coss!$D$210),9) -> 0 | R80: =ROUND(IF(coss!$D$210=0,0,+coss!Q$210/coss!$D$210),9) -> 0.032262626 | S80: =ROUND(IF(coss!$D$210=0,0,+coss!R$210/coss!$D$210),9) -> 0.002042985 | T80: =ROUND(IF(coss!$D$210=0,0,+coss!S$210/coss!$D$210),9) -> 0.003174003 | U80: =ROUND(IF(coss!$D$210=0,0,+coss!T$210/coss!$D$210),9) -> 0 | V80: =IF(coss!$D$210=0,0,1-SUM(F80:U80)-ROUND(coss!$W$210/coss!$D$210,9)) -> 7.5352e-05 | W80: 1 | X80: 0 | Y80: S249
A81: S249 | B81: WTD NET DIST SUBSTATIONS PLANT RATIOS | C81: S249 | D81: S249 | E81: 1 | F81: =ROUND(IF(coss!$D$164=0,0,+coss!E$164/coss!$D$164),9) -> 0.451211362 | G81: =ROUND(IF(coss!$D$164=0,0,+coss!F$164/coss!$D$164),9) -> 0.268937946 | H81: =ROUND(IF(coss!$D$164=0,0,+coss!G$164/coss!$D$164),9) -> 0.000254765 | I81: =ROUND(IF(coss!$D$164=0,0,+coss!H$164/coss!$D$164),9) -> 0.001050432 | J81: =ROUND(IF(coss!$D$164=0,0,+coss!I$164/coss!$D$164),9) -> 0.003549815 | K81: =ROUND(IF(coss!$D$164=0,0,+coss!J$164/coss!$D$164),9) -> 0.000105321 | L81: =ROUND(IF(coss!$D$164=0,0,+coss!K$164/coss!$D$164),9) -> 0.160659901 | M81: =ROUND(IF(coss!$D$164=0,0,+coss!L$164/coss!$D$164),9) -> 0.00177633 | N81: =ROUND(IF(coss!$D$164=0,0,+coss!M$164/coss!$D$164),9) -> 0.091306089 | O81: =ROUND(IF(coss!$D$164=0,0,+coss!N$164/coss!$D$164),9) -> 0.004204539 | P81: =ROUND(IF(coss!$D$164=0,0,+coss!O$164/coss!$D$164),9) -> 0.007889571 | Q81: =ROUND(IF(coss!$D$164=0,0,+coss!P$164/coss!$D$164),9) -> 0 | R81: =ROUND(IF(coss!$D$164=0,0,+coss!Q$164/coss!$D$164),9) -> 0 | S81: =ROUND(IF(coss!$D$164=0,0,+coss!R$164/coss!$D$164),9) -> 0 | T81: =ROUND(IF(coss!$D$164=0,0,+coss!S$164/coss!$D$164),9) -> 0.008972778 | U81: =ROUND(IF(coss!$D$164=0,0,+coss!T$164/coss!$D$164),9) -> 0 | V81: =IF(coss!$D$164=0,0,1-SUM(F81:U81)-ROUND(coss!$W$164/coss!$D$164,9)) -> 8.1151e-05 | W81: 1 | X81: 0 | Y81: PL49
A82: PL49 | B82: WTD NET DIST LINES - PRI/SEC RATIOS | C82: PL49 | D82: PL49 | E82: 1 | F82: =ROUND(IF(coss!$D$165=0,0,+coss!E$165/coss!$D$165),9) -> 0.458802119 | G82: =ROUND(IF(coss!$D$165=0,0,+coss!F$165/coss!$D$165),9) -> 0.273462382 | H82: =ROUND(IF(coss!$D$165=0,0,+coss!G$165/coss!$D$165),9) -> 0.000259069 | I82: =ROUND(IF(coss!$D$165=0,0,+coss!H$165/coss!$D$165),9) -> 0.001068128 | J82: =ROUND(IF(coss!$D$165=0,0,+coss!I$165/coss!$D$165),9) -> 0.003609535 | K82: =ROUND(IF(coss!$D$165=0,0,+coss!J$165/coss!$D$165),9) -> 0.000107121 | L82: =ROUND(IF(coss!$D$165=0,0,+coss!K$165/coss!$D$165),9) -> 0.163362737 | M82: =ROUND(IF(coss!$D$165=0,0,+coss!L$165/coss!$D$165),9) -> 0.001806243 | N82: =ROUND(IF(coss!$D$165=0,0,+coss!M$165/coss!$D$165),9) -> 0.077987192 | O82: =ROUND(IF(coss!$D$165=0,0,+coss!N$165/coss!$D$165),9) -> 0.003590726 | P82: =ROUND(IF(coss!$D$165=0,0,+coss!O$165/coss!$D$165),9) -> 0.00673855 | Q82: =ROUND(IF(coss!$D$165=0,0,+coss!P$165/coss!$D$165),9) -> 0 | R82: =ROUND(IF(coss!$D$165=0,0,+coss!Q$165/coss!$D$165),9) -> 0 | S82: =ROUND(IF(coss!$D$165=0,0,+coss!R$165/coss!$D$165),9) -> 0 | T82: =ROUND(IF(coss!$D$165=0,0,+coss!S$165/coss!$D$165),9) -> 0.009123718 | U82: =ROUND(IF(coss!$D$165=0,0,+coss!T$165/coss!$D$165),9) -> 0 | V82: =IF(coss!$D$165=0,0,1-SUM(F82:U82)-ROUND(coss!$W$165/coss!$D$165,9)) -> 8.248e-05 | W82: 1 | X82: 0 | Y82: SL49
A83: SL49 | B83: WTD NET DIST LINES - PRI/SEC RATIOS | C83: SL49 | D83: SL49 | E83: 1 | F83: =ROUND(IF(coss!$D$166=0,0,+coss!E$166/coss!$D$166),9) -> 0.458802153 | G83: =ROUND(IF(coss!$D$166=0,0,+coss!F$166/coss!$D$166),9) -> 0.273462369 | H83: =ROUND(IF(coss!$D$166=0,0,+coss!G$166/coss!$D$166),9) -> 0.000259066 | I83: =ROUND(IF(coss!$D$166=0,0,+coss!H$166/coss!$D$166),9) -> 0.001068101 | J83: =ROUND(IF(coss!$D$166=0,0,+coss!I$166/coss!$D$166),9) -> 0.003609541 | K83: =ROUND(IF(coss!$D$166=0,0,+coss!J$166/coss!$D$166),9) -> 0.0001071 | L83: =ROUND(IF(coss!$D$166=0,0,+coss!K$166/coss!$D$166),9) -> 0.163362754 | M83: =ROUND(IF(coss!$D$166=0,0,+coss!L$166/coss!$D$166),9) -> 0.001806226 | N83: =ROUND(IF(coss!$D$166=0,0,+coss!M$166/coss!$D$166),9) -> 0.077987177 | O83: =ROUND(IF(coss!$D$166=0,0,+coss!N$166/coss!$D$166),9) -> 0.003590733 | P83: =ROUND(IF(coss!$D$166=0,0,+coss!O$166/coss!$D$166),9) -> 0.006738581 | Q83: =ROUND(IF(coss!$D$166=0,0,+coss!P$166/coss!$D$166),9) -> 0 | R83: =ROUND(IF(coss!$D$166=0,0,+coss!Q$166/coss!$D$166),9) -> 0 | S83: =ROUND(IF(coss!$D$166=0,0,+coss!R$166/coss!$D$166),9) -> 0 | T83: =ROUND(IF(coss!$D$166=0,0,+coss!S$166/coss!$D$166),9) -> 0.009123717 | U83: =ROUND(IF(coss!$D$166=0,0,+coss!T$166/coss!$D$166),9) -> 0 | V83: =IF(coss!$D$166=0,0,1-SUM(F83:U83)-ROUND(coss!$W$166/coss!$D$166,9)) -> 8.2482e-05 | W83: =SUM(F83:V83) -> 1 | X83: 0 | Y83: F249
A84: F249 | B84: WTD NET DIST TRANSFORMERS PLT RATIOS | C84: F249 | D84: F249 | E84: 1 | F84: =ROUND(IF(coss!$D$167=0,0,+coss!E$167/coss!$D$167),9) -> 0.661033427 | G84: =ROUND(IF(coss!$D$167=0,0,+coss!F$167/coss!$D$167),9) -> 0.224960631 | H84: =ROUND(IF(coss!$D$167=0,0,+coss!G$167/coss!$D$167),9) -> 0.000222351 | I84: =ROUND(IF(coss!$D$167=0,0,+coss!H$167/coss!$D$167),9) -> 0.000588065 | J84: =ROUND(IF(coss!$D$167=0,0,+coss!I$167/coss!$D$167),9) -> 0.0051914 | K84: =ROUND(IF(coss!$D$167=0,0,+coss!J$167/coss!$D$167),9) -> 0.000110845 | L84: =ROUND(IF(coss!$D$167=0,0,+coss!K$167/coss!$D$167),9) -> 0.100678359 | M84: =ROUND(IF(coss!$D$167=0,0,+coss!L$167/coss!$D$167),9) -> 0.001864683 | N84: =ROUND(IF(coss!$D$167=0,0,+coss!M$167/coss!$D$167),9) -> 0 | O84: =ROUND(IF(coss!$D$167=0,0,+coss!N$167/coss!$D$167),9) -> 0 | P84: =ROUND(IF(coss!$D$167=0,0,+coss!O$167/coss!$D$167),9) -> 0 | Q84: =ROUND(IF(coss!$D$167=0,0,+coss!P$167/coss!$D$167),9) -> 0 | R84: =ROUND(IF(coss!$D$167=0,0,+coss!Q$167/coss!$D$167),9) -> 0 | S84: =ROUND(IF(coss!$D$167=0,0,+coss!R$167/coss!$D$167),9) -> 0 | T84: =ROUND(IF(coss!$D$167=0,0,+coss!S$167/coss!$D$167),9) -> 0.005117531 | U84: =ROUND(IF(coss!$D$167=0,0,+coss!T$167/coss!$D$167),9) -> 0 | V84: =IF(coss!$D$167=0,0,1-SUM(F84:U84)-ROUND(coss!$W$167/coss!$D$167,9)) -> 0.000232708 | W84: =SUM(F84:V84) -> 1 | X84: 0 | Y84: SV49
A85: SV49 | B85: WTD NET SERVICES PLANT RATIOS | C85: SV49 | D85: SV49 | E85: 1 | F85: =ROUND(IF(coss!$D$168=0,0,+coss!E$168/coss!$D$168),9) -> 0.891972734 | G85: =ROUND(IF(coss!$D$168=0,0,+coss!F$168/coss!$D$168),9) -> 0.090282918 | H85: =ROUND(IF(coss!$D$168=0,0,+coss!G$168/coss!$D$168),9) -> 0 | I85: =ROUND(IF(coss!$D$168=0,0,+coss!H$168/coss!$D$168),9) -> 0.001079702 | J85: =ROUND(IF(coss!$D$168=0,0,+coss!I$168/coss!$D$168),9) -> 0.002622 | K85: =ROUND(IF(coss!$D$168=0,0,+coss!J$168/coss!$D$168),9) -> 0.000198322 | L85: =ROUND(IF(coss!$D$168=0,0,+coss!K$168/coss!$D$168),9) -> 0.011163365 | M85: =ROUND(IF(coss!$D$168=0,0,+coss!L$168/coss!$D$168),9) -> 0 | N85: =ROUND(IF(coss!$D$168=0,0,+coss!M$168/coss!$D$168),9) -> 0 | O85: =ROUND(IF(coss!$D$168=0,0,+coss!N$168/coss!$D$168),9) -> 0 | P85: =ROUND(IF(coss!$D$168=0,0,+coss!O$168/coss!$D$168),9) -> 0 | Q85: =ROUND(IF(coss!$D$168=0,0,+coss!P$168/coss!$D$168),9) -> 0 | R85: =ROUND(IF(coss!$D$168=0,0,+coss!Q$168/coss!$D$168),9) -> 0 | S85: =ROUND(IF(coss!$D$168=0,0,+coss!R$168/coss!$D$168),9) -> 0 | T85: =ROUND(IF(coss!$D$168=0,0,+coss!S$168/coss!$D$168),9) -> 0.002519226 | U85: =ROUND(IF(coss!$D$168=0,0,+coss!T$168/coss!$D$168),9) -> 0 | V85: =IF(coss!$D$168=0,0,1-SUM(F85:U85)-ROUND(coss!$W$168/coss!$D$168,9)) -> 0.000161733 | W85: =SUM(F85:V85) -> 1 | X85: 0 | Y85: M249
A86: M249 | B86: WTD NET METERS PLANT RATIOS | C86: M249 | D86: M249 | E86: 1 | F86: =ROUND(IF(coss!$D$169=0,0,+coss!E$169/coss!$D$169),9) -> 0.864268449 | G86: =ROUND(IF(coss!$D$169=0,0,+coss!F$169/coss!$D$169),9) -> 0.118359588 | H86: =ROUND(IF(coss!$D$169=0,0,+coss!G$169/coss!$D$169),9) -> 0 | I86: =ROUND(IF(coss!$D$169=0,0,+coss!H$169/coss!$D$169),9) -> 0 | J86: =ROUND(IF(coss!$D$169=0,0,+coss!I$169/coss!$D$169),9) -> 0.003489929 | K86: =ROUND(IF(coss!$D$169=0,0,+coss!J$169/coss!$D$169),9) -> 0.000292115 | L86: =ROUND(IF(coss!$D$169=0,0,+coss!K$169/coss!$D$169),9) -> 0.00905808 | M86: =ROUND(IF(coss!$D$169=0,0,+coss!L$169/coss!$D$169),9) -> 0 | N86: =ROUND(IF(coss!$D$169=0,0,+coss!M$169/coss!$D$169),9) -> 0.003061241 | O86: =ROUND(IF(coss!$D$169=0,0,+coss!N$169/coss!$D$169),9) -> 0 | P86: =ROUND(IF(coss!$D$169=0,0,+coss!O$169/coss!$D$169),9) -> 0.000345497 | Q86: =ROUND(IF(coss!$D$169=0,0,+coss!P$169/coss!$D$169),9) -> 0 | R86: =ROUND(IF(coss!$D$169=0,0,+coss!Q$169/coss!$D$169),9) -> 0.001064132 | S86: =ROUND(IF(coss!$D$169=0,0,+coss!R$169/coss!$D$169),9) -> 0 | T86: =ROUND(IF(coss!$D$169=0,0,+coss!S$169/coss!$D$169),9) -> 6.097e-05 | U86: =ROUND(IF(coss!$D$169=0,0,+coss!T$169/coss!$D$169),9) -> 0 | V86: =IF(coss!$D$169=0,0,1-SUM(F86:U86)-ROUND(coss!$W$169/coss!$D$169,9)) -> -1.000000083e-09 | W86: =SUM(F86:V86) -> 1 | X86: 0 | Y86: L249
A87: L249 | B87: WTD NET STREET LIGHT PLANT RATIOS | C87: L249 | D87: L249 | E87: 1 | F87: =ROUND(IF(coss!$D$171=0,0,+coss!E$171/coss!$D$171),9) -> 0 | G87: =ROUND(IF(coss!$D$171=0,0,+coss!F$171/coss!$D$171),9) -> 0 | H87: =ROUND(IF(coss!$D$171=0,0,+coss!G$171/coss!$D$171),9) -> 0 | I87: =ROUND(IF(coss!$D$171=0,0,+coss!H$171/coss!$D$171),9) -> 0 | J87: =ROUND(IF(coss!$D$171=0,0,+coss!I$171/coss!$D$171),9) -> 0 | K87: =ROUND(IF(coss!$D$171=0,0,+coss!J$171/coss!$D$171),9) -> 0 | L87: =ROUND(IF(coss!$D$171=0,0,+coss!K$171/coss!$D$171),9) -> 0 | M87: =ROUND(IF(coss!$D$171=0,0,+coss!L$171/coss!$D$171),9) -> 0 | N87: =ROUND(IF(coss!$D$171=0,0,+coss!M$171/coss!$D$171),9) -> 0 | O87: =ROUND(IF(coss!$D$171=0,0,+coss!N$171/coss!$D$171),9) -> 0 | P87: =ROUND(IF(coss!$D$171=0,0,+coss!O$171/coss!$D$171),9) -> 0 | Q87: =ROUND(IF(coss!$D$171=0,0,+coss!P$171/coss!$D$171),9) -> 0 | R87: =ROUND(IF(coss!$D$171=0,0,+coss!Q$171/coss!$D$171),9) -> 0 | S87: =ROUND(IF(coss!$D$171=0,0,+coss!R$171/coss!$D$171),9) -> 0 | T87: =ROUND(IF(coss!$D$171=0,0,+coss!S$171/coss!$D$171),9) -> 1 | U87: =ROUND(IF(coss!$D$171=0,0,+coss!T$171/coss!$D$171),9) -> 0 | V87: =IF(coss!$D$171=0,0,1-SUM(F87:U87)-ROUND(coss!$W$171/coss!$D$171,9)) -> 0 | W87: =SUM(F87:V87) -> 1 | X87: 0 | Y87: D249
A88: D249 | B88: WTD NET TOTAL DIST PLANT RATIOS | C88: D249 | D88: D249 | E88: 1 | F88: =ROUND(IF(coss!$D$217=0,0,+coss!E$217/coss!$D$217),9) -> 0.518385719 | G88: =ROUND(IF(coss!$D$217=0,0,+coss!F$217/coss!$D$217),9) -> 0.24700063 | H88: =ROUND(IF(coss!$D$217=0,0,+coss!G$217/coss!$D$217),9) -> 0.000225811 | I88: =ROUND(IF(coss!$D$217=0,0,+coss!H$217/coss!$D$217),9) -> 0.000911998 | J88: =ROUND(IF(coss!$D$217=0,0,+coss!I$217/coss!$D$217),9) -> 0.003745917 | K88: =ROUND(IF(coss!$D$217=0,0,+coss!J$217/coss!$D$217),9) -> 0.000120273 | L88: =ROUND(IF(coss!$D$217=0,0,+coss!K$217/coss!$D$217),9) -> 0.137530733 | M88: =ROUND(IF(coss!$D$217=0,0,+coss!L$217/coss!$D$217),9) -> 0.001620073 | N88: =ROUND(IF(coss!$D$217=0,0,+coss!M$217/coss!$D$217),9) -> 0.060938797 | O88: =ROUND(IF(coss!$D$217=0,0,+coss!N$217/coss!$D$217),9) -> 0.002796762 | P88: =ROUND(IF(coss!$D$217=0,0,+coss!O$217/coss!$D$217),9) -> 0.005270747 | Q88: =ROUND(IF(coss!$D$217=0,0,+coss!P$217/coss!$D$217),9) -> 0 | R88: =ROUND(IF(coss!$D$217=0,0,+coss!Q$217/coss!$D$217),9) -> 6.8794e-05 | S88: =ROUND(IF(coss!$D$217=0,0,+coss!R$217/coss!$D$217),9) -> 0 | T88: =ROUND(IF(coss!$D$217=0,0,+coss!S$217/coss!$D$217),9) -> 0.021284004 | U88: =ROUND(IF(coss!$D$217=0,0,+coss!T$217/coss!$D$217),9) -> 0 | V88: =IF(coss!$D$217=0,0,1-SUM(F88:U88)-ROUND(coss!$W$217/coss!$D$217,9)) -> 9.9742e-05 | W88: 1 | X88: 0 | Y88: NT29
A89: NT29 | B89: WTD NET TRANS & DIST RATIOS | C89: NT29 | D89: NT29 | E89: 1 | F89: =ROUND(IF(coss!$D$220=0,0,+coss!E$220/coss!$D$220),9) -> 0.513387176 | G89: =ROUND(IF(coss!$D$220=0,0,+coss!F$220/coss!$D$220),9) -> 0.248326068 | H89: =ROUND(IF(coss!$D$220=0,0,+coss!G$220/coss!$D$220),9) -> 0.000225228 | I89: =ROUND(IF(coss!$D$220=0,0,+coss!H$220/coss!$D$220),9) -> 0.000930295 | J89: =ROUND(IF(coss!$D$220=0,0,+coss!I$220/coss!$D$220),9) -> 0.003720864 | K89: =ROUND(IF(coss!$D$220=0,0,+coss!J$220/coss!$D$220),9) -> 0.000119273 | L89: =ROUND(IF(coss!$D$220=0,0,+coss!K$220/coss!$D$220),9) -> 0.138267855 | M89: =ROUND(IF(coss!$D$220=0,0,+coss!L$220/coss!$D$220),9) -> 0.001620885 | N89: =ROUND(IF(coss!$D$220=0,0,+coss!M$220/coss!$D$220),9) -> 0.062485396 | O89: =ROUND(IF(coss!$D$220=0,0,+coss!N$220/coss!$D$220),9) -> 0.002869298 | P89: =ROUND(IF(coss!$D$220=0,0,+coss!O$220/coss!$D$220),9) -> 0.005465558 | Q89: =ROUND(IF(coss!$D$220=0,0,+coss!P$220/coss!$D$220),9) -> 0 | R89: =ROUND(IF(coss!$D$220=0,0,+coss!Q$220/coss!$D$220),9) -> 0.002327152 | S89: =ROUND(IF(coss!$D$220=0,0,+coss!R$220/coss!$D$220),9) -> 0.000143313 | T89: =ROUND(IF(coss!$D$220=0,0,+coss!S$220/coss!$D$220),9) -> 0.020013609 | U89: =ROUND(IF(coss!$D$220=0,0,+coss!T$220/coss!$D$220),9) -> 0 | V89: =IF(coss!$D$220=0,0,1-SUM(F89:U89)-ROUND(coss!$W$220/coss!$D$220,9)) -> 9.803e-05 | W89: 1 | X89: 0 | Y89: G229
A90: G229 | B90: WTD NET G & I PLT RATIOS | C90: G229 | D90: G229 | E90: 1 | F90: =ROUND(IF(coss!$D$226=0,0,+coss!E226/coss!$D$226),9) -> 0.521875 | G90: =ROUND(IF(coss!$D$226=0,0,+coss!F$226/coss!$D$226),9) -> 0.237452114 | H90: =ROUND(IF(coss!$D$226=0,0,+coss!G$226/coss!$D$226),9) -> 0.000174129 | I90: =ROUND(IF(coss!$D$226=0,0,+coss!H$226/coss!$D$226),9) -> 0.001164801 | J90: =ROUND(IF(coss!$D$226=0,0,+coss!I$226/coss!$D$226),9) -> 0.003007463 | K90: =ROUND(IF(coss!$D$226=0,0,+coss!J$226/coss!$D$226),9) -> 0.000126244 | L90: =ROUND(IF(coss!$D$226=0,0,+coss!K$226/coss!$D$226),9) -> 0.126954602 | M90: =ROUND(IF(coss!$D$226=0,0,+coss!L$226/coss!$D$226),9) -> 0.001151741 | N90: =ROUND(IF(coss!$D$226=0,0,+coss!M$226/coss!$D$226),9) -> 0.070238806 | O90: =ROUND(IF(coss!$D$226=0,0,+coss!N$226/coss!$D$226),9) -> 0.00261194 | P90: =ROUND(IF(coss!$D$226=0,0,+coss!O$226/coss!$D$226),9) -> 0.006343284 | Q90: =ROUND(IF(coss!$D$226=0,0,+coss!P$226/coss!$D$226),9) -> 0 | R90: =ROUND(IF(coss!$D$226=0,0,+coss!Q$226/coss!$D$226),9) -> 0.023228856 | S90: =ROUND(IF(coss!$D$226=0,0,+coss!R$226/coss!$D$226),9) -> 0.001129975 | T90: =ROUND(IF(coss!$D$226=0,0,+coss!S$226/coss!$D$226),9) -> 0.004458955 | U90: =ROUND(IF(coss!$D$226=0,0,+coss!T$226/coss!$D$226),9) -> 0 | V90: =IF(coss!$D$226=0,0,1-SUM(F90:U90)-ROUND(coss!$W$226/coss!$D$226,9)) -> 8.209e-05 | W90: 1 | X90: 0 | Y90: C229
A91: C229 | B91: WTD NET C & O PLANT RATIOS | C91: C229 | D91: C229 | E91: 1 | F91: =ROUND(IF(coss!$D$231=0,0,+coss!E$231/coss!$D$231),9) -> 0.521824763 | G91: =ROUND(IF(coss!$D$231=0,0,+coss!F$231/coss!$D$231),9) -> 0.237483396 | H91: =ROUND(IF(coss!$D$231=0,0,+coss!G$231/coss!$D$231),9) -> 0.000173765 | I91: =ROUND(IF(coss!$D$231=0,0,+coss!H$231/coss!$D$231),9) -> 0.001165394 | J91: =ROUND(IF(coss!$D$231=0,0,+coss!I$231/coss!$D$231),9) -> 0.003007543 | K91: =ROUND(IF(coss!$D$231=0,0,+coss!J$231/coss!$D$231),9) -> 0.000125379 | L91: =ROUND(IF(coss!$D$231=0,0,+coss!K$231/coss!$D$231),9) -> 0.126972956 | M91: =ROUND(IF(coss!$D$231=0,0,+coss!L$231/coss!$D$231),9) -> 0.001151136 | N91: =ROUND(IF(coss!$D$231=0,0,+coss!M$231/coss!$D$231),9) -> 0.070247263 | O91: =ROUND(IF(coss!$D$231=0,0,+coss!N$231/coss!$D$231),9) -> 0.002610707 | P91: =ROUND(IF(coss!$D$231=0,0,+coss!O$231/coss!$D$231),9) -> 0.006342563 | Q91: =ROUND(IF(coss!$D$231=0,0,+coss!P$231/coss!$D$231),9) -> 0 | R91: =ROUND(IF(coss!$D$231=0,0,+coss!Q$231/coss!$D$231),9) -> 0.023220035 | S91: =ROUND(IF(coss!$D$231=0,0,+coss!R$231/coss!$D$231),9) -> 0.001128599 | T91: =ROUND(IF(coss!$D$231=0,0,+coss!S$231/coss!$D$231),9) -> 0.004464079 | U91: =ROUND(IF(coss!$D$231=0,0,+coss!T$231/coss!$D$231),9) -> 0 | V91: =IF(coss!$D$231=0,0,1-SUM(F91:U91)-ROUND(coss!$W$231/coss!$D$231,9)) -> 8.2422e-05 | W91: 1 | X91: 0 | Y91: NP29
A92: NP29 | B92: WTD NET PLANT RATIOS | C92: NP29 | D92: NP29 | E92: 1 | F92: =ROUND(IF(coss!$D$233=0,0,+coss!E$233/coss!$D$233),9) -> 0.470713206 | G92: =ROUND(IF(coss!$D$233=0,0,+coss!F$233/coss!$D$233),9) -> 0.259457397 | H92: =ROUND(IF(coss!$D$233=0,0,+coss!G$233/coss!$D$233),9) -> 0.000219159 | I92: =ROUND(IF(coss!$D$233=0,0,+coss!H$233/coss!$D$233),9) -> 0.001092185 | J92: =ROUND(IF(coss!$D$233=0,0,+coss!I$233/coss!$D$233),9) -> 0.003490768 | K92: =ROUND(IF(coss!$D$233=0,0,+coss!J$233/coss!$D$233),9) -> 0.000110812 | L92: =ROUND(IF(coss!$D$233=0,0,+coss!K$233/coss!$D$233),9) -> 0.144345584 | M92: =ROUND(IF(coss!$D$233=0,0,+coss!L$233/coss!$D$233),9) -> 0.001617764 | N92: =ROUND(IF(coss!$D$233=0,0,+coss!M$233/coss!$D$233),9) -> 0.075911319 | O92: =ROUND(IF(coss!$D$233=0,0,+coss!N$233/coss!$D$233),9) -> 0.003485654 | P92: =ROUND(IF(coss!$D$233=0,0,+coss!O$233/coss!$D$233),9) -> 0.007154563 | Q92: =ROUND(IF(coss!$D$233=0,0,+coss!P$233/coss!$D$233),9) -> 0 | R92: =ROUND(IF(coss!$D$233=0,0,+coss!Q$233/coss!$D$233),9) -> 0.022136587 | S92: =ROUND(IF(coss!$D$233=0,0,+coss!R$233/coss!$D$233),9) -> 0.001393114 | T92: =ROUND(IF(coss!$D$233=0,0,+coss!S$233/coss!$D$233),9) -> 0.008788889 | U92: =ROUND(IF(coss!$D$233=0,0,+coss!T$233/coss!$D$233),9) -> 0 | V92: =IF(coss!$D$233=0,0,1-SUM(F92:U92)-ROUND(coss!$W$233/coss!$D$233,9)) -> 8.2999e-05 | W92: 1 | X92: 0
B94: RATE BASE ADJUSTMENTS | C94: SCHEDULE: 13b
B95: WORKING CAPITAL | Y95: W669
A96: W669 | B96: WTD MATERIAL & SUPPLY RATIOS | C96: W669 | D96: =C96 -> W669 | E96: 1 | F96: =ROUND(IF(coss!$D$312=0,0,+coss!E$312/coss!$D$312),9) -> 0.411958065 | G96: =ROUND(IF(coss!$D$312=0,0,+coss!F$312/coss!$D$312),9) -> 0.259168877 | H96: =ROUND(IF(coss!$D$312=0,0,+coss!G$312/coss!$D$312),9) -> 0.00023962 | I96: =ROUND(IF(coss!$D$312=0,0,+coss!H$312/coss!$D$312),9) -> 0.001386566 | J96: =ROUND(IF(coss!$D$312=0,0,+coss!I$312/coss!$D$312),9) -> 0.003502009 | K96: =ROUND(IF(coss!$D$312=0,0,+coss!J$312/coss!$D$312),9) -> 0.000104248 | L96: =ROUND(IF(coss!$D$312=0,0,+coss!K$312/coss!$D$312),9) -> 0.167858449 | M96: =ROUND(IF(coss!$D$312=0,0,+coss!L$312/coss!$D$312),9) -> 0.001870406 | N96: =ROUND(IF(coss!$D$312=0,0,+coss!M$312/coss!$D$312),9) -> 0.096420353 | O96: =ROUND(IF(coss!$D$312=0,0,+coss!N$312/coss!$D$312),9) -> 0.004433924 | P96: =ROUND(IF(coss!$D$312=0,0,+coss!O$312/coss!$D$312),9) -> 0.008018214 | Q96: =ROUND(IF(coss!$D$312=0,0,+coss!P$312/coss!$D$312),9) -> 0 | R96: =ROUND(IF(coss!$D$312=0,0,+coss!Q$312/coss!$D$312),9) -> 0.035532949 | S96: =ROUND(IF(coss!$D$312=0,0,+coss!R$312/coss!$D$312),9) -> 0.002260703 | T96: =ROUND(IF(coss!$D$312=0,0,+coss!S$312/coss!$D$312),9) -> 0.007164152 | U96: =ROUND(IF(coss!$D$312=0,0,+coss!T$312/coss!$D$312),9) -> 0 | V96: =IF(coss!$D$312=0,0,1-SUM(F96:U96)-ROUND(coss!$W$312/coss!$D$312,9)) -> 8.1465e-05 | W96: =SUM(F96:V96) -> 1 | X96: =E96-W96 -> 0 | Y96: W689
A97: W689 | B97: WTD PREPAYMENTS RATIOS | C97: W689 | D97: =C97 -> W689 | E97: 1 | F97: =ROUND(IF(coss!$D$317=0,0,+coss!E$317/coss!$D$317),9) -> 0.386767865 | G97: =ROUND(IF(coss!$D$317=0,0,+coss!F$317/coss!$D$317),9) -> 0.257737475 | H97: =ROUND(IF(coss!$D$317=0,0,+coss!G$317/coss!$D$317),9) -> 0.000246732 | I97: =ROUND(IF(coss!$D$317=0,0,+coss!H$317/coss!$D$317),9) -> 0.001532039 | J97: =ROUND(IF(coss!$D$317=0,0,+coss!I$317/coss!$D$317),9) -> 0.00347903 | K97: =ROUND(IF(coss!$D$317=0,0,+coss!J$317/coss!$D$317),9) -> 0.000101947 | L97: =ROUND(IF(coss!$D$317=0,0,+coss!K$317/coss!$D$317),9) -> 0.178120413 | M97: =ROUND(IF(coss!$D$317=0,0,+coss!L$317/coss!$D$317),9) -> 0.001964156 | N97: =ROUND(IF(coss!$D$317=0,0,+coss!M$317/coss!$D$317),9) -> 0.10592965 | O97: =ROUND(IF(coss!$D$317=0,0,+coss!N$317/coss!$D$317),9) -> 0.004837475 | P97: =ROUND(IF(coss!$D$317=0,0,+coss!O$317/coss!$D$317),9) -> 0.008384868 | Q97: =ROUND(IF(coss!$D$317=0,0,+coss!P$317/coss!$D$317),9) -> 0 | R97: =ROUND(IF(coss!$D$317=0,0,+coss!Q$317/coss!$D$317),9) -> 0.042026136 | S97: =ROUND(IF(coss!$D$317=0,0,+coss!R$317/coss!$D$317),9) -> 0.002661514 | T97: =ROUND(IF(coss!$D$317=0,0,+coss!S$317/coss!$D$317),9) -> 0.006130096 | U97: =ROUND(IF(coss!$D$317=0,0,+coss!T$317/coss!$D$317),9) -> 0 | V97: =IF(coss!$D$317=0,0,1-SUM(F97:U97)-ROUND(coss!$W$317/coss!$D$317,9)) -> 8.0604e-05 | W97: =SUM(F97:V97) -> 1 | X97: =E97-W97 -> 0 | Y97: W719
A98: W719 | B98: WTD CASH WORKING CAP RATIOS | C98: W719 | D98: =C98 -> W719 | E98: 1 | F98: =ROUND(IF(coss!$D$323=0,0,+coss!E$323/coss!$D$323),9) -> 0.464565771 | G98: =ROUND(IF(coss!$D$323=0,0,+coss!F$323/coss!$D$323),9) -> 0.248905892 | H98: =ROUND(IF(coss!$D$323=0,0,+coss!G$323/coss!$D$323),9) -> 0.000214295 | I98: =ROUND(IF(coss!$D$323=0,0,+coss!H$323/coss!$D$323),9) -> 0.001265619 | J98: =ROUND(IF(coss!$D$323=0,0,+coss!I$323/coss!$D$323),9) -> 0.00322943 | K98: =ROUND(IF(coss!$D$323=0,0,+coss!J$323/coss!$D$323),9) -> 0.000111399 | L98: =ROUND(IF(coss!$D$323=0,0,+coss!K$323/coss!$D$323),9) -> 0.147579543 | M98: =ROUND(IF(coss!$D$323=0,0,+coss!L$323/coss!$D$323),9) -> 0.001579309 | N98: =ROUND(IF(coss!$D$323=0,0,+coss!M$323/coss!$D$323),9) -> 0.084077072 | O98: =ROUND(IF(coss!$D$323=0,0,+coss!N$323/coss!$D$323),9) -> 0.003738764 | P98: =ROUND(IF(coss!$D$323=0,0,+coss!O$323/coss!$D$323),9) -> 0.007329973 | Q98: =ROUND(IF(coss!$D$323=0,0,+coss!P$323/coss!$D$323),9) -> 0 | R98: =ROUND(IF(coss!$D$323=0,0,+coss!Q$323/coss!$D$323),9) -> 0.030727707 | S98: =ROUND(IF(coss!$D$323=0,0,+coss!R$323/coss!$D$323),9) -> 0.001880136 | T98: =ROUND(IF(coss!$D$323=0,0,+coss!S$323/coss!$D$323),9) -> 0.00471556 | U98: =ROUND(IF(coss!$D$323=0,0,+coss!T$323/coss!$D$323),9) -> 0 | V98: =IF(coss!$D$323=0,0,1-SUM(F98:U98)-ROUND(coss!$W$323/coss!$D$323,9)) -> 7.953e-05 | W98: =SUM(F98:V98) -> 1 | X98: =E98-W98 -> 0 | Y98: W729
A99: W729 | B99: WTD TOTAL WORKING CASH RATIOS | C99: W729 | D99: =C99 -> W729 | E99: 1 | F99: =ROUND(IF(coss!$D$324=0,0,+coss!E$324/coss!$D$324),9) -> 0.464565771 | G99: =ROUND(IF(coss!$D$324=0,0,+coss!F$324/coss!$D$324),9) -> 0.248905892 | H99: =ROUND(IF(coss!$D$324=0,0,+coss!G$324/coss!$D$324),9) -> 0.000214295 | I99: =ROUND(IF(coss!$D$324=0,0,+coss!H$324/coss!$D$324),9) -> 0.001265619 | J99: =ROUND(IF(coss!$D$324=0,0,+coss!I$324/coss!$D$324),9) -> 0.00322943 | K99: =ROUND(IF(coss!$D$324=0,0,+coss!J$324/coss!$D$324),9) -> 0.000111399 | L99: =ROUND(IF(coss!$D$324=0,0,+coss!K$324/coss!$D$324),9) -> 0.147579543 | M99: =ROUND(IF(coss!$D$324=0,0,+coss!L$324/coss!$D$324),9) -> 0.001579309 | N99: =ROUND(IF(coss!$D$324=0,0,+coss!M$324/coss!$D$324),9) -> 0.084077072 | O99: =ROUND(IF(coss!$D$324=0,0,+coss!N$324/coss!$D$324),9) -> 0.003738764 | P99: =ROUND(IF(coss!$D$324=0,0,+coss!O$324/coss!$D$324),9) -> 0.007329973 | Q99: =ROUND(IF(coss!$D$324=0,0,+coss!P$324/coss!$D$324),9) -> 0 | R99: =ROUND(IF(coss!$D$324=0,0,+coss!Q$324/coss!$D$324),9) -> 0.030727707 | S99: =ROUND(IF(coss!$D$324=0,0,+coss!R$324/coss!$D$324),9) -> 0.001880136 | T99: =ROUND(IF(coss!$D$324=0,0,+coss!S$324/coss!$D$324),9) -> 0.00471556 | U99: =ROUND(IF(coss!$D$324=0,0,+coss!T$324/coss!$D$324),9) -> 0 | V99: =IF(coss!$D$324=0,0,1-SUM(F99:U99)-ROUND(coss!$W$324/coss!$D$324,9)) -> 7.953e-05 | W99: =SUM(F99:V99) -> 1 | X99: =E99-W99 -> 0 | Y99: WC79
A100: WC79 | B100: WTD TOTAL WRKNG CAP RATIOS | C100: WC79 | D100: =C100 -> WC79 | E100: 1 | F100: =ROUND(IF(coss!$D$326=0,0,+coss!E$326/coss!$D$326),9) -> 0.424867931 | G100: =ROUND(IF(coss!$D$326=0,0,+coss!F$326/coss!$D$326),9) -> 0.255683183 | H100: =ROUND(IF(coss!$D$326=0,0,+coss!G$326/coss!$D$326),9) -> 0.000232641 | I100: =ROUND(IF(coss!$D$326=0,0,+coss!H$326/coss!$D$326),9) -> 0.001370231 | J100: =ROUND(IF(coss!$D$326=0,0,+coss!I$326/coss!$D$326),9) -> 0.003411723 | K100: =ROUND(IF(coss!$D$326=0,0,+coss!J$326/coss!$D$326),9) -> 0.000106174 | L100: =ROUND(IF(coss!$D$326=0,0,+coss!K$326/coss!$D$326),9) -> 0.162966133 | M100: =ROUND(IF(coss!$D$326=0,0,+coss!L$326/coss!$D$326),9) -> 0.001792016 | N100: =ROUND(IF(coss!$D$326=0,0,+coss!M$326/coss!$D$326),9) -> 0.093939861 | O100: =ROUND(IF(coss!$D$326=0,0,+coss!N$326/coss!$D$326),9) -> 0.004274106 | P100: =ROUND(IF(coss!$D$326=0,0,+coss!O$326/coss!$D$326),9) -> 0.007854975 | Q100: =ROUND(IF(coss!$D$326=0,0,+coss!P$326/coss!$D$326),9) -> 0 | R100: =ROUND(IF(coss!$D$326=0,0,+coss!Q$326/coss!$D$326),9) -> 0.034992717 | S100: =ROUND(IF(coss!$D$326=0,0,+coss!R$326/coss!$D$326),9) -> 0.002200628 | T100: =ROUND(IF(coss!$D$326=0,0,+coss!S$326/coss!$D$326),9) -> 0.006226964 | U100: =ROUND(IF(coss!$D$326=0,0,+coss!T$326/coss!$D$326),9) -> 0 | V100: =IF(coss!$D$326=0,0,1-SUM(F100:U100)-ROUND(coss!$W$326/coss!$D$326,9)) -> 8.0717e-05 | W100: =SUM(F100:V100) -> 1 | X100: =E100-W100 -> 0
B102: RATE BASE
A103: RB29 | B103: WTD NET OCRB RATIOS | C103: RB29 | D103: =C103 -> RB29 | E103: 1 | F103: =ROUND(IF(coss!$D$296=0,0,+coss!E$296/coss!$D$296),9) -> 0.471514823 | G103: =ROUND(IF(coss!$D$296=0,0,+coss!F$296/coss!$D$296),9) -> 0.25916449 | H103: =ROUND(IF(coss!$D$296=0,0,+coss!G$296/coss!$D$296),9) -> 0.000219075 | I103: =ROUND(IF(coss!$D$296=0,0,+coss!H$296/coss!$D$296),9) -> 0.001089788 | J103: =ROUND(IF(coss!$D$296=0,0,+coss!I$296/coss!$D$296),9) -> 0.003492831 | K103: =ROUND(IF(coss!$D$296=0,0,+coss!J$296/coss!$D$296),9) -> 0.000110952 | L103: =ROUND(IF(coss!$D$296=0,0,+coss!K$296/coss!$D$296),9) -> 0.14415922 | M103: =ROUND(IF(coss!$D$296=0,0,+coss!L$296/coss!$D$296),9) -> 0.001616303 | N103: =ROUND(IF(coss!$D$296=0,0,+coss!M$296/coss!$D$296),9) -> 0.075646796 | O103: =ROUND(IF(coss!$D$296=0,0,+coss!N$296/coss!$D$296),9) -> 0.003471973 | P103: =ROUND(IF(coss!$D$296=0,0,+coss!O$296/coss!$D$296),9) -> 0.007122826 | Q103: =ROUND(IF(coss!$D$296=0,0,+coss!P$296/coss!$D$296),9) -> 0 | R103: =ROUND(IF(coss!$D$296=0,0,+coss!Q$296/coss!$D$296),9) -> 0.021837621 | S103: =ROUND(IF(coss!$D$296=0,0,+coss!R$296/coss!$D$296),9) -> 0.001373423 | T103: =ROUND(IF(coss!$D$296=0,0,+coss!S$296/coss!$D$296),9) -> 0.009096586 | U103: =ROUND(IF(coss!$D$296=0,0,+coss!T$296/coss!$D$296),9) -> 0 | V103: =IF(coss!$D$296=0,0,1-SUM(F103:U103)-ROUND(coss!$W$296/coss!$D$296,9)) -> 8.3293e-05 | W103: =SUM(F103:V103) -> 1 | X103: =E103-W103 -> 0 | Y103: RB29
A104: RB99 | B104: WTD TOTAL RATE BASE RATIOS | C104: RB99 | D104: =C104 -> RB99 | E104: 1 | F104: =ROUND(IF(coss!$D$336=0,0,+coss!E$336/coss!$D$336),9) -> 0.468045079 | G104: =ROUND(IF(coss!$D$336=0,0,+coss!F$336/coss!$D$336),9) -> 0.258905539 | H104: =ROUND(IF(coss!$D$336=0,0,+coss!G$336/coss!$D$336),9) -> 0.000220084 | I104: =ROUND(IF(coss!$D$336=0,0,+coss!H$336/coss!$D$336),9) -> 0.001110648 | J104: =ROUND(IF(coss!$D$336=0,0,+coss!I$336/coss!$D$336),9) -> 0.003486798 | K104: =ROUND(IF(coss!$D$336=0,0,+coss!J$336/coss!$D$336),9) -> 0.000110596 | L104: =ROUND(IF(coss!$D$336=0,0,+coss!K$336/coss!$D$336),9) -> 0.145558138 | M104: =ROUND(IF(coss!$D$336=0,0,+coss!L$336/coss!$D$336),9) -> 0.001629373 | N104: =ROUND(IF(coss!$D$336=0,0,+coss!M$336/coss!$D$336),9) -> 0.077007492 | O104: =ROUND(IF(coss!$D$336=0,0,+coss!N$336/coss!$D$336),9) -> 0.003531638 | P104: =ROUND(IF(coss!$D$336=0,0,+coss!O$336/coss!$D$336),9) -> 0.007177285 | Q104: =ROUND(IF(coss!$D$336=0,0,+coss!P$336/coss!$D$336),9) -> 0 | R104: =ROUND(IF(coss!$D$336=0,0,+coss!Q$336/coss!$D$336),9) -> 0.022816139 | S104: =ROUND(IF(coss!$D$336=0,0,+coss!R$336/coss!$D$336),9) -> 0.001434953 | T104: =ROUND(IF(coss!$D$336=0,0,+coss!S$336/coss!$D$336),9) -> 0.008883135 | U104: =ROUND(IF(coss!$D$336=0,0,+coss!T$336/coss!$D$336),9) -> 0 | V104: =IF(coss!$D$336=0,0,1-SUM(F104:U104)-ROUND(coss!$W$336/coss!$D$336,9)) -> 8.3103e-05 | W104: =SUM(F104:V104) -> 1 | X104: =E104-W104 -> 0 | Y104: RB99
A105: CW29 | B105: WTD CWIP | C105: CW29 | D105: =C105 -> CW29 | E105: 1 | F105: =ROUND(IF(coss!$D$292=0,0,+coss!E$292/coss!$D$292),9) -> 0.558024631 | G105: =ROUND(IF(coss!$D$292=0,0,+coss!F$292/coss!$D$292),9) -> 0.228556885 | H105: =ROUND(IF(coss!$D$292=0,0,+coss!G$292/coss!$D$292),9) -> 0.000222379 | I105: =ROUND(IF(coss!$D$292=0,0,+coss!H$292/coss!$D$292),9) -> 0.000762374 | J105: =ROUND(IF(coss!$D$292=0,0,+coss!I$292/coss!$D$292),9) -> 0.003902416 | K105: =ROUND(IF(coss!$D$292=0,0,+coss!J$292/coss!$D$292),9) -> 0.000124326 | L105: =ROUND(IF(coss!$D$292=0,0,+coss!K$292/coss!$D$292),9) -> 0.12571757 | M105: =ROUND(IF(coss!$D$292=0,0,+coss!L$292/coss!$D$292),9) -> 0.001572367 | N105: =ROUND(IF(coss!$D$292=0,0,+coss!M$292/coss!$D$292),9) -> 0.043693408 | O105: =ROUND(IF(coss!$D$292=0,0,+coss!N$292/coss!$D$292),9) -> 0.001996012 | P105: =ROUND(IF(coss!$D$292=0,0,+coss!O$292/coss!$D$292),9) -> 0.003329346 | Q105: =ROUND(IF(coss!$D$292=0,0,+coss!P$292/coss!$D$292),9) -> 0 | R105: =ROUND(IF(coss!$D$292=0,0,+coss!Q$292/coss!$D$292),9) -> -0.016553835 | S105: =ROUND(IF(coss!$D$292=0,0,+coss!R$292/coss!$D$292),9) -> -0.001053249 | T105: =ROUND(IF(coss!$D$292=0,0,+coss!S$292/coss!$D$292),9) -> 0.04958433 | U105: =ROUND(IF(coss!$D$292=0,0,+coss!T$292/coss!$D$292),9) -> 0 | V105: =IF(coss!$D$292=0,0,1-SUM(F105:U105)-ROUND(coss!$W$292/coss!$D$292,9)) -> 0.00012104 | W105: =SUM(F105:V105) -> 1 | X105: =E105-W105 -> 0 | Y105: CW29
B106: WEIGHTED RATIOS | Y106: SCHEDULE: 13
B107: O & M EXPENSES | Y107: P349
A108: P349 | B108: WTD PROD DEMAND O&M EXP RATIOS | C108: P349 | D108: =C108 -> P349 | E108: 1 | F108: =ROUND(IF(coss!$D$360=0,0,+coss!E$360/coss!$D$360),9) -> 0.447129517 | G108: =ROUND(IF(coss!$D$360=0,0,+coss!F$360/coss!$D$360),9) -> 0.265895321 | H108: =ROUND(IF(coss!$D$360=0,0,+coss!G$360/coss!$D$360),9) -> 0.000217569 | I108: =ROUND(IF(coss!$D$360=0,0,+coss!H$360/coss!$D$360),9) -> 0.001172809 | J108: =ROUND(IF(coss!$D$360=0,0,+coss!I$360/coss!$D$360),9) -> 0.00338871 | K108: =ROUND(IF(coss!$D$360=0,0,+coss!J$360/coss!$D$360),9) -> 0.000105971 | L108: =ROUND(IF(coss!$D$360=0,0,+coss!K$360/coss!$D$360),9) -> 0.148038672 | M108: =ROUND(IF(coss!$D$360=0,0,+coss!L$360/coss!$D$360),9) -> 0.001631588 | N108: =ROUND(IF(coss!$D$360=0,0,+coss!M$360/coss!$D$360),9) -> 0.082986229 | O108: =ROUND(IF(coss!$D$360=0,0,+coss!N$360/coss!$D$360),9) -> 0.003830817 | P108: =ROUND(IF(coss!$D$360=0,0,+coss!O$360/coss!$D$360),9) -> 0.008047889 | Q108: =ROUND(IF(coss!$D$360=0,0,+coss!P$360/coss!$D$360),9) -> 0 | R108: =ROUND(IF(coss!$D$360=0,0,+coss!Q$360/coss!$D$360),9) -> 0.032262635 | S108: =ROUND(IF(coss!$D$360=0,0,+coss!R$360/coss!$D$360),9) -> 0.002042982 | T108: =ROUND(IF(coss!$D$360=0,0,+coss!S$360/coss!$D$360),9) -> 0.00317398 | U108: =ROUND(IF(coss!$D$360=0,0,+coss!T$360/coss!$D$360),9) -> 0 | V108: =IF(coss!$D$360=0,0,1-SUM(F108:U108)-ROUND(coss!$W$360/coss!$D$360,9)) -> 7.5311e-05 | W108: =SUM(F108:V108) -> 1 | X108: =E108-W108 -> 0 | Y108: E349
A109: E349 | B109: WTD PROD ENERGY O&M EXP RATIOS | C109: E349 | D109: =C109 -> E349 | E109: 1 | F109: =ROUND(IF(coss!$D$353=0,0,+coss!E$353/coss!$D$353),9) -> 0.380960037 | G109: =ROUND(IF(coss!$D$353=0,0,+coss!F$353/coss!$D$353),9) -> 0.260806241 | H109: =ROUND(IF(coss!$D$353=0,0,+coss!G$353/coss!$D$353),9) -> 7.8175e-05 | I109: =ROUND(IF(coss!$D$353=0,0,+coss!H$353/coss!$D$353),9) -> 0.001565879 | J109: =ROUND(IF(coss!$D$353=0,0,+coss!I$353/coss!$D$353),9) -> 0.003532912 | K109: =ROUND(IF(coss!$D$353=0,0,+coss!J$353/coss!$D$353),9) -> 0.000101237 | L109: =ROUND(IF(coss!$D$353=0,0,+coss!K$353/coss!$D$353),9) -> 0.182578905 | M109: =ROUND(IF(coss!$D$353=0,0,+coss!L$353/coss!$D$353),9) -> 0.000626737 | N109: =ROUND(IF(coss!$D$353=0,0,+coss!M$353/coss!$D$353),9) -> 0.108912236 | O109: =ROUND(IF(coss!$D$353=0,0,+coss!N$353/coss!$D$353),9) -> 0.00154796 | P109: =ROUND(IF(coss!$D$353=0,0,+coss!O$353/coss!$D$353),9) -> 0.008571767 | Q109: =ROUND(IF(coss!$D$353=0,0,+coss!P$353/coss!$D$353),9) -> 0 | R109: =ROUND(IF(coss!$D$353=0,0,+coss!Q$353/coss!$D$353),9) -> 0.043501604 | S109: =ROUND(IF(coss!$D$353=0,0,+coss!R$353/coss!$D$353),9) -> 0.000857623 | T109: =ROUND(IF(coss!$D$353=0,0,+coss!S$353/coss!$D$353),9) -> 0.006277593 | U109: =ROUND(IF(coss!$D$353=0,0,+coss!T$353/coss!$D$353),9) -> 0 | V109: =IF(coss!$D$353=0,0,1-SUM(F109:U109)-ROUND(coss!$W$353/coss!$D$353,9)) -> 8.1094e-05 | W109: =SUM(F109:V109) -> 1 | X109: 0 | Y109: P459
A110: P459 | B110: WTD TOTAL PROD O&M EXP RATIOS | C110: P459 | D110: =C110 -> P459 | E110: 1 | F110: =ROUND(IF(coss!$D$362=0,0,+coss!E$362/coss!$D$362),9) -> 0.389873092 | G110: =ROUND(IF(coss!$D$362=0,0,+coss!F$362/coss!$D$362),9) -> 0.261491742 | H110: =ROUND(IF(coss!$D$362=0,0,+coss!G$362/coss!$D$362),9) -> 9.6952e-05 | I110: =ROUND(IF(coss!$D$362=0,0,+coss!H$362/coss!$D$362),9) -> 0.001512932 | J110: =ROUND(IF(coss!$D$362=0,0,+coss!I$362/coss!$D$362),9) -> 0.003513488 | K110: =ROUND(IF(coss!$D$362=0,0,+coss!J$362/coss!$D$362),9) -> 0.000101874 | L110: =ROUND(IF(coss!$D$362=0,0,+coss!K$362/coss!$D$362),9) -> 0.177926323 | M110: =ROUND(IF(coss!$D$362=0,0,+coss!L$362/coss!$D$362),9) -> 0.000762091 | N110: =ROUND(IF(coss!$D$362=0,0,+coss!M$362/coss!$D$362),9) -> 0.105419993 | O110: =ROUND(IF(coss!$D$362=0,0,+coss!N$362/coss!$D$362),9) -> 0.001855462 | P110: =ROUND(IF(coss!$D$362=0,0,+coss!O$362/coss!$D$362),9) -> 0.008501201 | Q110: =ROUND(IF(coss!$D$362=0,0,+coss!P$362/coss!$D$362),9) -> 0 | R110: =ROUND(IF(coss!$D$362=0,0,+coss!Q$362/coss!$D$362),9) -> 0.04198771 | S110: =ROUND(IF(coss!$D$362=0,0,+coss!R$362/coss!$D$362),9) -> 0.001017292 | T110: =ROUND(IF(coss!$D$362=0,0,+coss!S$362/coss!$D$362),9) -> 0.005859535 | U110: =ROUND(IF(coss!$D$362=0,0,+coss!T$362/coss!$D$362),9) -> 0 | V110: =IF(coss!$D$362=0,0,1-SUM(F110:U110)-ROUND(coss!$W$362/coss!$D$362,9)) -> 8.0313e-05 | W110: =SUM(F110:V110) -> 1 | X110: 0 | Y110: T349
A111: T349 | B111: WTD TRANS O&M EXP RATIOS | C111: T349 | D111: T349 | E111: 1 | F111: =ROUND(IF(coss!$D$369=0,0,+coss!E$369/coss!$D$369),9) -> 0.447129187 | G111: =ROUND(IF(coss!$D$369=0,0,+coss!F$369/coss!$D$369),9) -> 0.265895312 | H111: =ROUND(IF(coss!$D$369=0,0,+coss!G369/coss!$D$369),9) -> 0.000217597 | I111: =ROUND(IF(coss!$D$369=0,0,+coss!H369/coss!$D$369),9) -> 0.001172817 | J111: =ROUND(IF(coss!$D$369=0,0,+coss!I369/coss!$D$369),9) -> 0.003388696 | K111: =ROUND(IF(coss!$D$369=0,0,+coss!J369/coss!$D$369),9) -> 0.000105965 | L111: =ROUND(IF(coss!$D$369=0,0,+coss!K$369/coss!$D$369),9) -> 0.148038726 | M111: =ROUND(IF(coss!$D$369=0,0,+coss!L369/coss!$D$369),9) -> 0.001631625 | N111: =ROUND(IF(coss!$D$369=0,0,+coss!M369/coss!$D$369),9) -> 0.082986246 | O111: =ROUND(IF(coss!$D$369=0,0,+coss!N$369/coss!$D$369),9) -> 0.003830797 | P111: =ROUND(IF(coss!$D$369=0,0,+coss!O$369/coss!$D$369),9) -> 0.00804791 | Q111: =ROUND(IF(coss!$D$369=0,0,+coss!P369/coss!$D$369),9) -> 0 | R111: =ROUND(IF(coss!$D$369=0,0,+coss!Q$369/coss!$D$369),9) -> 0.032262656 | S111: =ROUND(IF(coss!$D$369=0,0,+coss!R369/coss!$D$369),9) -> 0.002043088 | T111: =ROUND(IF(coss!$D$369=0,0,+coss!S369/coss!$D$369),9) -> 0.003173991 | U111: =ROUND(IF(coss!$D$369=0,0,+coss!T369/coss!$D$369),9) -> 0 | V111: =IF(coss!$D$369=0,0,1-SUM(F111:U111)-ROUND(coss!$W$369/coss!$D$369,9)) -> 7.5387e-05 | W111: 1 | X111: 0 | Y111: D349
A112: D349 | B112: WTD DIST O&M EXP RATIOS | C112: D349 | D112: D349 | E112: 1 | F112: =ROUND(IF(coss!$D$383=0,0,+coss!E$383/coss!$D$383),9) -> 0.482871701 | G112: =ROUND(IF(coss!$D$383=0,0,+coss!F$383/coss!$D$383),9) -> 0.261451306 | H112: =ROUND(IF(coss!$D$383=0,0,+coss!G$383/coss!$D$383),9) -> 0.000236244 | I112: =ROUND(IF(coss!$D$383=0,0,+coss!H$383/coss!$D$383),9) -> 0.001035314 | J112: =ROUND(IF(coss!$D$383=0,0,+coss!I$383/coss!$D$383),9) -> 0.003592398 | K112: =ROUND(IF(coss!$D$383=0,0,+coss!J$383/coss!$D$383),9) -> 0.000119014 | L112: =ROUND(IF(coss!$D$383=0,0,+coss!K$383/coss!$D$383),9) -> 0.151617961 | M112: =ROUND(IF(coss!$D$383=0,0,+coss!L$383/coss!$D$383),9) -> 0.001679117 | N112: =ROUND(IF(coss!$D$383=0,0,+coss!M$383/coss!$D$383),9) -> 0.074818983 | O112: =ROUND(IF(coss!$D$383=0,0,+coss!N$383/coss!$D$383),9) -> 0.003436833 | P112: =ROUND(IF(coss!$D$383=0,0,+coss!O$383/coss!$D$383),9) -> 0.006550353 | Q112: =ROUND(IF(coss!$D$383=0,0,+coss!P$383/coss!$D$383),9) -> 0 | R112: =ROUND(IF(coss!$D$383=0,0,+coss!Q$383/coss!$D$383),9) -> 0.004639747 | S112: =ROUND(IF(coss!$D$383=0,0,+coss!R$383/coss!$D$383),9) -> 0.000289436 | T112: =ROUND(IF(coss!$D$383=0,0,+coss!S$383/coss!$D$383),9) -> 0.007583439 | U112: =ROUND(IF(coss!$D$383=0,0,+coss!T$383/coss!$D$383),9) -> 0 | V112: =IF(coss!$D$383=0,0,1-SUM(F112:U112)-ROUND(coss!$W$383/coss!$D$383,9)) -> 7.8154e-05 | W112: 1 | X112: 0 | Y112: C311
A113: C311 | B113: WTD UNCOLLECTIBLE ACCOUNT O&M | C113: C311 | D113: C311 | E113: 1 | F113: =IF(coss!$D$387+coss!$D$390=0,0,ROUND((+coss!E$387+coss!E$390)/(coss!$D$387+coss!$D$390),9)) -> 0.894252219 | G113: =IF(coss!$D$387+coss!$D$390=0,0,ROUND((+coss!F$387+coss!F$390)/(coss!$D$387+coss!$D$390),9)) -> 0.093849283 | H113: =IF(coss!$D$387+coss!$D$390=0,0,ROUND((+coss!G$387+coss!G$390)/(coss!$D$387+coss!$D$390),9)) -> 8.28e-07 | I113: =IF(coss!$D$387+coss!$D$390=0,0,ROUND((+coss!H$387+coss!H$390)/(coss!$D$387+coss!$D$390),9)) -> 4.967e-06 | J113: =IF(coss!$D$387+coss!$D$390=0,0,ROUND((+coss!I$387+coss!I$390)/(coss!$D$387+coss!$D$390),9)) -> 7.451e-06 | K113: =IF(coss!$D$387+coss!$D$390=0,0,ROUND((+coss!J$387+coss!J$390)/(coss!$D$387+coss!$D$390),9)) -> 1.242e-06 | L113: =IF(coss!$D$387+coss!$D$390=0,0,ROUND((+coss!K$387+coss!K$390)/(coss!$D$387+coss!$D$390),9)) -> 0.011847997 | M113: =IF(coss!$D$387+coss!$D$390=0,0,ROUND((+coss!L$387+coss!L$390)/(coss!$D$387+coss!$D$390),9)) -> 4.14e-07 | N113: =IF(coss!$D$387+coss!$D$390=0,0,ROUND((+coss!M$387+coss!M$390)/(coss!$D$387+coss!$D$390),9)) -> 2.484e-06 | O113: =IF(coss!$D$387+coss!$D$390=0,0,ROUND((+coss!N$387+coss!N$390)/(coss!$D$387+coss!$D$390),9)) -> 4.14e-07 | P113: =IF(coss!$D$387+coss!$D$390=0,0,ROUND((+coss!O$387+coss!O$390)/(coss!$D$387+coss!$D$390),9)) -> 8.28e-07 | Q113: =IF(coss!$D$387+coss!$D$390=0,0,ROUND((+coss!P$387+coss!P$390)/(coss!$D$387+coss!$D$390),9)) -> 0 | R113: =IF(coss!$D$387+coss!$D$390=0,0,ROUND((+coss!Q$387+coss!Q$390)/(coss!$D$387+coss!$D$390),9)) -> 8.28e-07 | S113: =IF(coss!$D$387+coss!$D$390=0,0,ROUND((+coss!R$387+coss!R$390)/(coss!$D$387+coss!$D$390),9)) -> 4.14e-07 | T113: =IF(coss!$D$387+coss!$D$390=0,0,ROUND((+coss!S$387+coss!S$390)/(coss!$D$387+coss!$D$390),9)) -> 2.9804e-05 | U113: =IF(coss!$D$387+coss!$D$390=0,0,ROUND((+coss!T$387+coss!T$390)/(coss!$D$387+coss!$D$390),9)) -> 0 | V113: =IF(coss!$D$387+coss!$D$390=0,0,1-SUM(F113:U113)-ROUND((coss!$W$387+coss!$W$390)/(coss!$D$387+coss!$D390),9)) -> 8.270000003e-07 | W113: 1 | X113: 0 | Y113: C319
A114: C319 | B114: WTD CUST ACCT O&M EXP RATIOS | C114: C319 | D114: C319 | E114: 1 | F114: =ROUND(IF(coss!$D$391=0,0,+coss!E$391/coss!$D$391),9) -> 0.885158323 | G114: =ROUND(IF(coss!$D$391=0,0,+coss!F$391/coss!$D$391),9) -> 0.107090057 | H114: =ROUND(IF(coss!$D$391=0,0,+coss!G$391/coss!$D$391),9) -> 8.9657e-05 | I114: =ROUND(IF(coss!$D$391=0,0,+coss!H$391/coss!$D$391),9) -> 0.00055539 | J114: =ROUND(IF(coss!$D$391=0,0,+coss!I$391/coss!$D$391),9) -> 0.000878086 | K114: =ROUND(IF(coss!$D$391=0,0,+coss!J$391/coss!$D$391),9) -> 0.000139754 | L114: =ROUND(IF(coss!$D$391=0,0,+coss!K$391/coss!$D$391),9) -> 0.003606839 | M114: =ROUND(IF(coss!$D$391=0,0,+coss!L$391/coss!$D$391),9) -> 4.7161e-05 | N114: =ROUND(IF(coss!$D$391=0,0,+coss!M$391/coss!$D$391),9) -> 0.000266553 | O114: =ROUND(IF(coss!$D$391=0,0,+coss!N$391/coss!$D$391),9) -> 3.8696e-05 | P114: =ROUND(IF(coss!$D$391=0,0,+coss!O$391/coss!$D$391),9) -> 0.000101404 | Q114: =ROUND(IF(coss!$D$391=0,0,+coss!P$391/coss!$D$391),9) -> 0 | R114: =ROUND(IF(coss!$D$391=0,0,+coss!Q$391/coss!$D$391),9) -> 9.8122e-05 | S114: =ROUND(IF(coss!$D$391=0,0,+coss!R$391/coss!$D$391),9) -> 3.0231e-05 | T114: =ROUND(IF(coss!$D$391=0,0,+coss!S$391/coss!$D$391),9) -> 0.001815425 | U114: =ROUND(IF(coss!$D$391=0,0,+coss!T$391/coss!$D$391),9) -> 0 | V114: =IF(coss!$D$391=0,0,1-SUM(F114:U114)-ROUND(coss!$W$391/coss!$D$391,9)) -> 8.4302e-05 | W114: 1 | X114: 0 | Y114: C331
A115: C331 | B115: WTD CUST SERV & INFO O&M EXP RATIOS | C115: C331 | D115: =C115 -> C331 | E115: 1 | F115: =ROUND(IF(coss!$D$398=0,0,+coss!E$398/coss!$D$398),9) -> 0.661367401 | G115: =ROUND(IF(coss!$D$398=0,0,+coss!F$398/coss!$D$398),9) -> 0.311920492 | H115: =ROUND(IF(coss!$D$398=0,0,+coss!G$398/coss!$D$398),9) -> 0.000247511 | I115: =ROUND(IF(coss!$D$398=0,0,+coss!H$398/coss!$D$398),9) -> 0.003788816 | J115: =ROUND(IF(coss!$D$398=0,0,+coss!I$398/coss!$D$398),9) -> 0.003055804 | K115: =ROUND(IF(coss!$D$398=0,0,+coss!J$398/coss!$D$398),9) -> 0.000713973 | L115: =ROUND(IF(coss!$D$398=0,0,+coss!K$398/coss!$D$398),9) -> 0.004502789 | M115: =ROUND(IF(coss!$D$398=0,0,+coss!L$398/coss!$D$398),9) -> 0.000152314 | N115: =ROUND(IF(coss!$D$398=0,0,+coss!M$398/coss!$D$398),9) -> 0.000828209 | O115: =ROUND(IF(coss!$D$398=0,0,+coss!N$398/coss!$D$398),9) -> 0.000123755 | P115: =ROUND(IF(coss!$D$398=0,0,+coss!O$398/coss!$D$398),9) -> 0.000304628 | Q115: =ROUND(IF(coss!$D$398=0,0,+coss!P$398/coss!$D$398),9) -> 0 | R115: =ROUND(IF(coss!$D$398=0,0,+coss!Q$398/coss!$D$398),9) -> 0.00027607 | S115: =ROUND(IF(coss!$D$398=0,0,+coss!R$398/coss!$D$398),9) -> 8.5677e-05 | T115: =ROUND(IF(coss!$D$398=0,0,+coss!S$398/coss!$D$398),9) -> 0.012356491 | U115: =ROUND(IF(coss!$D$398=0,0,+coss!T$398/coss!$D$398),9) -> 0 | V115: =IF(coss!$D$398=0,0,1-SUM(F115:U115)-ROUND(coss!$W$398/coss!$D$398,9)) -> 0.00027607 | W115: 1 | X115: 0 | Y115: S319
A116: S319 | B116: WTD SALES O&M EXP RATIOS | C116: S319 | D116: S319 | E116: 1 | F116: =ROUND(IF(coss!$D$404=0,0,+coss!E$404/coss!$D$404),9) -> 0.679945055 | G116: =ROUND(IF(coss!$D$404=0,0,+coss!F$404/coss!$D$404),9) -> 0.29532967 | H116: =ROUND(IF(coss!$D$404=0,0,+coss!G$404/coss!$D$404),9) -> 0 | I116: =ROUND(IF(coss!$D$404=0,0,+coss!H$404/coss!$D$404),9) -> 0.002747253 | J116: =ROUND(IF(coss!$D$404=0,0,+coss!I$404/coss!$D$404),9) -> 0.002747253 | K116: =ROUND(IF(coss!$D$404=0,0,+coss!J$404/coss!$D$404),9) -> 0 | L116: =ROUND(IF(coss!$D$404=0,0,+coss!K$404/coss!$D$404),9) -> 0.005494505 | M116: =ROUND(IF(coss!$D$404=0,0,+coss!L$404/coss!$D$404),9) -> 0 | N116: =ROUND(IF(coss!$D$404=0,0,+coss!M$404/coss!$D$404),9) -> 0.001373626 | O116: =ROUND(IF(coss!$D$404=0,0,+coss!N$404/coss!$D$404),9) -> 0.001373626 | P116: =ROUND(IF(coss!$D$404=0,0,+coss!O$404/coss!$D$404),9) -> 0 | Q116: =ROUND(IF(coss!$D$404=0,0,+coss!P$404/coss!$D$404),9) -> 0 | R116: =ROUND(IF(coss!$D$404=0,0,+coss!Q$404/coss!$D$404),9) -> 0 | S116: =ROUND(IF(coss!$D$404=0,0,+coss!R$404/coss!$D$404),9) -> 0 | T116: =ROUND(IF(coss!$D$404=0,0,+coss!S$404/coss!$D$404),9) -> 0.010989011 | U116: =ROUND(IF(coss!$D$404=0,0,+coss!T$404/coss!$D$404),9) -> 0 | V116: =IF(coss!$D$404=0,0,1-SUM(F116:U116)-ROUND(coss!$W$404/coss!$D$404,9)) -> 9.999998607e-10 | W116: 1 | X116: 0 | Y116: OM39
A117: OM39 | B117: WTD O&M EXP RATIOS | C117: OM39 | D117: OM39 | E117: 1 | F117: =ROUND(IF(coss!$D$436=0,0,+coss!E$436/coss!$D$436),9) -> 0.428821763 | G117: =ROUND(IF(coss!$D$436=0,0,+coss!F$436/coss!$D$436),9) -> 0.254419986 | H117: =ROUND(IF(coss!$D$436=0,0,+coss!G$436/coss!$D$436),9) -> 0.000121341 | I117: =ROUND(IF(coss!$D$436=0,0,+coss!H$436/coss!$D$436),9) -> 0.001397975 | J117: =ROUND(IF(coss!$D$436=0,0,+coss!I$436/coss!$D$436),9) -> 0.00336582 | K117: =ROUND(IF(coss!$D$436=0,0,+coss!J$436/coss!$D$436),9) -> 0.000107137 | L117: =ROUND(IF(coss!$D$436=0,0,+coss!K$436/coss!$D$436),9) -> 0.16300573 | M117: =ROUND(IF(coss!$D$436=0,0,+coss!L$436/coss!$D$436),9) -> 0.000894372 | N117: =ROUND(IF(coss!$D$436=0,0,+coss!M$436/coss!$D$436),9) -> 0.094995372 | O117: =ROUND(IF(coss!$D$436=0,0,+coss!N$436/coss!$D$436),9) -> 0.002117264 | P117: =ROUND(IF(coss!$D$436=0,0,+coss!O$436/coss!$D$436),9) -> 0.007880131 | Q117: =ROUND(IF(coss!$D$436=0,0,+coss!P$436/coss!$D$436),9) -> 0 | R117: =ROUND(IF(coss!$D$436=0,0,+coss!Q$436/coss!$D$436),9) -> 0.036326589 | S117: =ROUND(IF(coss!$D$436=0,0,+coss!R$436/coss!$D$436),9) -> 0.001064722 | T117: =ROUND(IF(coss!$D$436=0,0,+coss!S$436/coss!$D$436),9) -> 0.0054015 | U117: =ROUND(IF(coss!$D$436=0,0,+coss!T$436/coss!$D$436),9) -> 0 | V117: =IF(coss!$D$436=0,0,1-SUM(F117:U117)-ROUND(coss!$W$436/coss!$D$436,9)) -> 8.0298e-05 | W117: 1 | X117: 0
B119: A & G EXPENSES | Y119: A300
A120: A300 | B120: WTD PROD DEMAND A&G EXP RATIOS | C120: A300 | D120: =C120 -> A300 | E120: 1 | F120: =ROUND(IF(coss!$D$410=0,0,+coss!E$410/coss!$D$410),9) -> 0.447129576 | G120: =ROUND(IF(coss!$D$410=0,0,+coss!F$410/coss!$D$410),9) -> 0.26589534 | H120: =ROUND(IF(coss!$D$410=0,0,+coss!G$410/coss!$D$410),9) -> 0.000217591 | I120: =ROUND(IF(coss!$D$410=0,0,+coss!H$410/coss!$D$410),9) -> 0.001172774 | J120: =ROUND(IF(coss!$D$410=0,0,+coss!I$410/coss!$D$410),9) -> 0.003388666 | K120: =ROUND(IF(coss!$D$410=0,0,+coss!J$410/coss!$D$410),9) -> 0.000105959 | L120: =ROUND(IF(coss!$D$410=0,0,+coss!K$410/coss!$D$410),9) -> 0.148038689 | M120: =ROUND(IF(coss!$D$410=0,0,+coss!L$410/coss!$D$410),9) -> 0.001631563 | N120: =ROUND(IF(coss!$D$410=0,0,+coss!M$410/coss!$D$410),9) -> 0.082986261 | O120: =ROUND(IF(coss!$D$410=0,0,+coss!N$410/coss!$D$410),9) -> 0.003830801 | P120: =ROUND(IF(coss!$D$410=0,0,+coss!O$410/coss!$D$410),9) -> 0.008047921 | Q120: =ROUND(IF(coss!$D$410=0,0,+coss!P$410/coss!$D$410),9) -> 0 | R120: =ROUND(IF(coss!$D$410=0,0,+coss!Q$410/coss!$D$410),9) -> 0.032262598 | S120: =ROUND(IF(coss!$D$410=0,0,+coss!R$410/coss!$D$410),9) -> 0.002042954 | T120: =ROUND(IF(coss!$D$410=0,0,+coss!S$410/coss!$D$410),9) -> 0.003174003 | U120: =ROUND(IF(coss!$D$410=0,0,+coss!T$410/coss!$D$410),9) -> 0 | V120: =IF(coss!$D$410=0,0,1-SUM(F120:U120)-ROUND(coss!$W$410/coss!$D$410,9)) -> 7.5304e-05 | W120: =SUM(F120:V120) -> 1 | X120: =E120-W120 -> 0 | Y120: A302
A121: A302 | B121: WTD PROD ENERGY A&G EXP RATIOS | C121: A302 | D121: =C121 -> A302 | E121: 1 | F121: =ROUND(IF(coss!$D$411=0,0,+coss!E$411/coss!$D$411),9) -> 0.380960438 | G121: =ROUND(IF(coss!$D$411=0,0,+coss!F$411/coss!$D$411),9) -> 0.260806286 | H121: =ROUND(IF(coss!$D$411=0,0,+coss!G$411/coss!$D$411),9) -> 7.8176e-05 | I121: =ROUND(IF(coss!$D$411=0,0,+coss!H$411/coss!$D$411),9) -> 0.001565843 | J121: =ROUND(IF(coss!$D$411=0,0,+coss!I$411/coss!$D$411),9) -> 0.003532892 | K121: =ROUND(IF(coss!$D$411=0,0,+coss!J$411/coss!$D$411),9) -> 0.000101144 | L121: =ROUND(IF(coss!$D$411=0,0,+coss!K$411/coss!$D$411),9) -> 0.182578834 | M121: =ROUND(IF(coss!$D$411=0,0,+coss!L$411/coss!$D$411),9) -> 0.000626674 | N121: =ROUND(IF(coss!$D$411=0,0,+coss!M$411/coss!$D$411),9) -> 0.108912155 | O121: =ROUND(IF(coss!$D$411=0,0,+coss!N$411/coss!$D$411),9) -> 0.001547932 | P121: =ROUND(IF(coss!$D$411=0,0,+coss!O$411/coss!$D$411),9) -> 0.008571783 | Q121: =ROUND(IF(coss!$D$411=0,0,+coss!P$411/coss!$D$411),9) -> 0 | R121: =ROUND(IF(coss!$D$411=0,0,+coss!Q$411/coss!$D$411),9) -> 0.043501605 | S121: =ROUND(IF(coss!$D$411=0,0,+coss!R$411/coss!$D$411),9) -> 0.000857621 | T121: =ROUND(IF(coss!$D$411=0,0,+coss!S$411/coss!$D$411),9) -> 0.006277489 | U121: =ROUND(IF(coss!$D$411=0,0,+coss!T$411/coss!$D$411),9) -> 0 | V121: =IF(coss!$D$411=0,0,1-SUM(F121:U121)-ROUND(coss!$W$411/coss!$D$411,9)) -> 8.1128e-05 | W121: =SUM(F121:V121) -> 1 | X121: 0 | Y121: A304
A122: A304 | B122: WTD TRANS A&G EXP RATIOS | C122: A304 | D122: A304 | E122: 1 | F122: =ROUND(IF(coss!$D$412=0,0,+coss!E$412/coss!$D$412),9) -> 0.447129103 | G122: =ROUND(IF(coss!$D$412=0,0,+coss!F$412/coss!$D$412),9) -> 0.265895384 | H122: =ROUND(IF(coss!$D$412=0,0,+coss!G$412/coss!$D$412),9) -> 0.000216968 | I122: =ROUND(IF(coss!$D$412=0,0,+coss!H$412/coss!$D$412),9) -> 0.001173339 | J122: =ROUND(IF(coss!$D$412=0,0,+coss!I$412/coss!$D$412),9) -> 0.003388693 | K122: =ROUND(IF(coss!$D$412=0,0,+coss!J$412/coss!$D$412),9) -> 0.000105629 | L122: =ROUND(IF(coss!$D$412=0,0,+coss!K$412/coss!$D$412),9) -> 0.148039083 | M122: =ROUND(IF(coss!$D$412=0,0,+coss!L$412/coss!$D$412),9) -> 0.00163154 | N122: =ROUND(IF(coss!$D$412=0,0,+coss!M$412/coss!$D$412),9) -> 0.082985876 | O122: =ROUND(IF(coss!$D$412=0,0,+coss!N$412/coss!$D$412),9) -> 0.003831193 | P122: =ROUND(IF(coss!$D$412=0,0,+coss!O$412/coss!$D$412),9) -> 0.00804779 | Q122: =ROUND(IF(coss!$D$412=0,0,+coss!P$412/coss!$D$412),9) -> 0 | R122: =ROUND(IF(coss!$D$412=0,0,+coss!Q$412/coss!$D$412),9) -> 0.032262531 | S122: =ROUND(IF(coss!$D$412=0,0,+coss!R$412/coss!$D$412),9) -> 0.002042637 | T122: =ROUND(IF(coss!$D$412=0,0,+coss!S$412/coss!$D$412),9) -> 0.003174581 | U122: =ROUND(IF(coss!$D$412=0,0,+coss!T$412/coss!$D$412),9) -> 0 | V122: =IF(coss!$D$412=0,0,1-SUM(F122:U122)-ROUND(coss!$W$412/coss!$D$412,9)) -> 7.5653e-05 | W122: 1 | X122: 0 | Y122: A306
A123: A306 | B123: WTD DIST A&G EXP RATIOS | C123: A306 | D123: A306 | E123: 1 | F123: =ROUND(IF(coss!$D$413=0,0,+coss!E$413/coss!$D$413),9) -> 0.482871469 | G123: =ROUND(IF(coss!$D$413=0,0,+coss!F$413/coss!$D$413),9) -> 0.261451255 | H123: =ROUND(IF(coss!$D$413=0,0,+coss!G$413/coss!$D$413),9) -> 0.000236339 | I123: =ROUND(IF(coss!$D$413=0,0,+coss!H$413/coss!$D$413),9) -> 0.001035378 | J123: =ROUND(IF(coss!$D$413=0,0,+coss!I$413/coss!$D$413),9) -> 0.003592392 | K123: =ROUND(IF(coss!$D$413=0,0,+coss!J$413/coss!$D$413),9) -> 0.000118936 | L123: =ROUND(IF(coss!$D$413=0,0,+coss!K$413/coss!$D$413),9) -> 0.151617945 | M123: =ROUND(IF(coss!$D$413=0,0,+coss!L$413/coss!$D$413),9) -> 0.001679122 | N123: =ROUND(IF(coss!$D$413=0,0,+coss!M$413/coss!$D$413),9) -> 0.074819044 | O123: =ROUND(IF(coss!$D$413=0,0,+coss!N$413/coss!$D$413),9) -> 0.003436877 | P123: =ROUND(IF(coss!$D$413=0,0,+coss!O$413/coss!$D$413),9) -> 0.006550458 | Q123: =ROUND(IF(coss!$D$413=0,0,+coss!P$413/coss!$D$413),9) -> 0 | R123: =ROUND(IF(coss!$D$413=0,0,+coss!Q$413/coss!$D$413),9) -> 0.004639817 | S123: =ROUND(IF(coss!$D$413=0,0,+coss!R$413/coss!$D$413),9) -> 0.000289345 | T123: =ROUND(IF(coss!$D$413=0,0,+coss!S$413/coss!$D$413),9) -> 0.007583427 | U123: =ROUND(IF(coss!$D$413=0,0,+coss!T$413/coss!$D$413),9) -> 0 | V123: =IF(coss!$D$413=0,0,1-SUM(F123:U123)-ROUND(coss!$W$413/coss!$D$413,9)) -> 7.8196e-05 | W123: 1 | X123: 0 | Y123: A308
A124: A308 | B124: WTD CUST ACCT A&G EXP RATIOS | C124: A308 | D124: A308 | E124: 1 | F124: =ROUND(IF(coss!$D$414=0,0,+coss!E$414/coss!$D$414),9) -> 0.885158196 | G124: =ROUND(IF(coss!$D$414=0,0,+coss!F$414/coss!$D$414),9) -> 0.107090074 | H124: =ROUND(IF(coss!$D$414=0,0,+coss!G$414/coss!$D$414),9) -> 8.9566e-05 | I124: =ROUND(IF(coss!$D$414=0,0,+coss!H$414/coss!$D$414),9) -> 0.000555306 | J124: =ROUND(IF(coss!$D$414=0,0,+coss!I$414/coss!$D$414),9) -> 0.000878184 | K124: =ROUND(IF(coss!$D$414=0,0,+coss!J$414/coss!$D$414),9) -> 0.000139766 | L124: =ROUND(IF(coss!$D$414=0,0,+coss!K$414/coss!$D$414),9) -> 0.003606948 | M124: =ROUND(IF(coss!$D$414=0,0,+coss!L$414/coss!$D$414),9) -> 4.7105e-05 | N124: =ROUND(IF(coss!$D$414=0,0,+coss!M$414/coss!$D$414),9) -> 0.000266485 | O124: =ROUND(IF(coss!$D$414=0,0,+coss!N$414/coss!$D$414),9) -> 3.8701e-05 | P124: =ROUND(IF(coss!$D$414=0,0,+coss!O$414/coss!$D$414),9) -> 0.000101508 | Q124: =ROUND(IF(coss!$D$414=0,0,+coss!P$414/coss!$D$414),9) -> 0 | R124: =ROUND(IF(coss!$D$414=0,0,+coss!Q$414/coss!$D$414),9) -> 9.819e-05 | S124: =ROUND(IF(coss!$D$414=0,0,+coss!R$414/coss!$D$414),9) -> 3.0297e-05 | T124: =ROUND(IF(coss!$D$414=0,0,+coss!S$414/coss!$D$414),9) -> 0.001815416 | U124: =ROUND(IF(coss!$D$414=0,0,+coss!T$414/coss!$D$414),9) -> 0 | V124: =IF(coss!$D$414=0,0,1-SUM(F124:U124)-ROUND(coss!$W$414/coss!$D$414,9)) -> 8.4258e-05 | W124: 1 | X124: 0 | Y124: A310
A125: A310 | B125: WTD CUST SERV & INFO A&G EXP RATIOS | C125: A310 | D125: =C125 -> A310 | E125: 1 | F125: =ROUND(IF(coss!$D$415=0,0,+coss!E$415/coss!$D$415),9) -> 0.661366335 | G125: =ROUND(IF(coss!$D$415=0,0,+coss!F$415/coss!$D$415),9) -> 0.311920376 | H125: =ROUND(IF(coss!$D$415=0,0,+coss!G$415/coss!$D$415),9) -> 0.000247434 | I125: =ROUND(IF(coss!$D$415=0,0,+coss!H$415/coss!$D$415),9) -> 0.003788235 | J125: =ROUND(IF(coss!$D$415=0,0,+coss!I$415/coss!$D$415),9) -> 0.003055523 | K125: =ROUND(IF(coss!$D$415=0,0,+coss!J$415/coss!$D$415),9) -> 0.000713531 | L125: =ROUND(IF(coss!$D$415=0,0,+coss!K$415/coss!$D$415),9) -> 0.004503684 | M125: =ROUND(IF(coss!$D$415=0,0,+coss!L$415/coss!$D$415),9) -> 0.000151529 | N125: =ROUND(IF(coss!$D$415=0,0,+coss!M$415/coss!$D$415),9) -> 0.000828616 | O125: =ROUND(IF(coss!$D$415=0,0,+coss!N$415/coss!$D$415),9) -> 0.000124676 | P125: =ROUND(IF(coss!$D$415=0,0,+coss!O$415/coss!$D$415),9) -> 0.000304977 | Q125: =ROUND(IF(coss!$D$415=0,0,+coss!P$415/coss!$D$415),9) -> 0 | R125: =ROUND(IF(coss!$D$415=0,0,+coss!Q$415/coss!$D$415),9) -> 0.000276205 | S125: =ROUND(IF(coss!$D$415=0,0,+coss!R$415/coss!$D$415),9) -> 8.6314e-05 | T125: =ROUND(IF(coss!$D$415=0,0,+coss!S$415/coss!$D$415),9) -> 0.012356359 | U125: =ROUND(IF(coss!$D$415=0,0,+coss!T$415/coss!$D$415),9) -> 0 | V125: =IF(coss!$D$415=0,0,1-SUM(F125:U125)-ROUND(coss!$W$415/coss!$D$415,9)) -> 0.000276206 | W125: 1 | X125: 0 | Y125: A312
A126: A312 | B126: WTD SALES A&G EXP RATIOS | C126: A312 | D126: A312 | E126: 1 | F126: =ROUND(IF(coss!$D$416=0,0,+coss!E$416/coss!$D$416),9) -> 0 | G126: =ROUND(IF(coss!$D$416=0,0,+coss!F$416/coss!$D$416),9) -> 0 | H126: =ROUND(IF(coss!$D$416=0,0,+coss!G$416/coss!$D$416),9) -> 0 | I126: =ROUND(IF(coss!$D$416=0,0,+coss!H$416/coss!$D$416),9) -> 0 | J126: =ROUND(IF(coss!$D$416=0,0,+coss!I$416/coss!$D$416),9) -> 0 | K126: =ROUND(IF(coss!$D$416=0,0,+coss!J$416/coss!$D$416),9) -> 0 | L126: =ROUND(IF(coss!$D$416=0,0,+coss!K$416/coss!$D$416),9) -> 0 | M126: =ROUND(IF(coss!$D$416=0,0,+coss!L$416/coss!$D$416),9) -> 0 | N126: =ROUND(IF(coss!$D$416=0,0,+coss!M$416/coss!$D$416),9) -> 0 | O126: =ROUND(IF(coss!$D$416=0,0,+coss!N$416/coss!$D$416),9) -> 0 | P126: =ROUND(IF(coss!$D$416=0,0,+coss!O$416/coss!$D$416),9) -> 0 | Q126: =ROUND(IF(coss!$D$416=0,0,+coss!P$416/coss!$D$416),9) -> 0 | R126: =ROUND(IF(coss!$D$416=0,0,+coss!Q$416/coss!$D$416),9) -> 0 | S126: =ROUND(IF(coss!$D$416=0,0,+coss!R$416/coss!$D$416),9) -> 0 | T126: =ROUND(IF(coss!$D$416=0,0,+coss!S$416/coss!$D$416),9) -> 0 | U126: =ROUND(IF(coss!$D$416=0,0,+coss!T$416/coss!$D$416),9) -> 0 | V126: =IF(coss!$D$416=0,0,1-SUM(F126:U126)-ROUND(coss!$W$416/coss!$D$416,9)) -> 0 | W126: 0 | X126: 1 | Y126: A315
A127: A315 | B127: WTD A&G EXPENSE UNADJUSTED | C127: A315 | D127: A315 | E127: 1 | F127: =ROUND(IF(coss!$D$417=0,0,+coss!E$417/coss!$D$417),9) -> 0.521851181 | G127: =ROUND(IF(coss!$D$417=0,0,+coss!F$417/coss!$D$417),9) -> 0.237472309 | H127: =ROUND(IF(coss!$D$417=0,0,+coss!G$417/coss!$D$417),9) -> 0.000173724 | I127: =ROUND(IF(coss!$D$417=0,0,+coss!H$417/coss!$D$417),9) -> 0.001165461 | J127: =ROUND(IF(coss!$D$417=0,0,+coss!I$417/coss!$D$417),9) -> 0.003007232 | K127: =ROUND(IF(coss!$D$417=0,0,+coss!J$417/coss!$D$417),9) -> 0.000125425 | L127: =ROUND(IF(coss!$D$417=0,0,+coss!K$417/coss!$D$417),9) -> 0.126961254 | M127: =ROUND(IF(coss!$D$417=0,0,+coss!L$417/coss!$D$417),9) -> 0.001150952 | N127: =ROUND(IF(coss!$D$417=0,0,+coss!M$417/coss!$D$417),9) -> 0.070242539 | O127: =ROUND(IF(coss!$D$417=0,0,+coss!N$417/coss!$D$417),9) -> 0.002610367 | P127: =ROUND(IF(coss!$D$417=0,0,+coss!O$417/coss!$D$417),9) -> 0.006342246 | Q127: =ROUND(IF(coss!$D$417=0,0,+coss!P$417/coss!$D$417),9) -> 0 | R127: =ROUND(IF(coss!$D$417=0,0,+coss!Q$417/coss!$D$417),9) -> 0.023222598 | S127: =ROUND(IF(coss!$D$417=0,0,+coss!R$417/coss!$D$417),9) -> 0.001128823 | T127: =ROUND(IF(coss!$D$417=0,0,+coss!S$417/coss!$D$417),9) -> 0.004463414 | U127: =ROUND(IF(coss!$D$417=0,0,+coss!T$417/coss!$D$417),9) -> 0 | V127: =IF(coss!$D$417=0,0,1-SUM(F127:U127)-ROUND(coss!$W$417/coss!$D$417,9)) -> 8.2475e-05 | W127: 1 | X127: 0 | Y127: A357
A128: A357 | B128: WTD A&G EXP RATIOS | C128: A357 | D128: A357 | E128: 1 | F128: =ROUND(IF(coss!$D$434=0,0,+coss!E$434/coss!$D$434),9) -> 0.521851026 | G128: =ROUND(IF(coss!$D$434=0,0,+coss!F$434/coss!$D$434),9) -> 0.237472338 | H128: =ROUND(IF(coss!$D$434=0,0,+coss!G$434/coss!$D$434),9) -> 0.000173748 | I128: =ROUND(IF(coss!$D$434=0,0,+coss!H$434/coss!$D$434),9) -> 0.001165435 | J128: =ROUND(IF(coss!$D$434=0,0,+coss!I$434/coss!$D$434),9) -> 0.003007268 | K128: =ROUND(IF(coss!$D$434=0,0,+coss!J$434/coss!$D$434),9) -> 0.000125416 | L128: =ROUND(IF(coss!$D$434=0,0,+coss!K$434/coss!$D$434),9) -> 0.126961259 | M128: =ROUND(IF(coss!$D$434=0,0,+coss!L$434/coss!$D$434),9) -> 0.001150956 | N128: =ROUND(IF(coss!$D$434=0,0,+coss!M$434/coss!$D$434),9) -> 0.07024252 | O128: =ROUND(IF(coss!$D$434=0,0,+coss!N$434/coss!$D$434),9) -> 0.002610371 | P128: =ROUND(IF(coss!$D$434=0,0,+coss!O$434/coss!$D$434),9) -> 0.006342288 | Q128: =ROUND(IF(coss!$D$434=0,0,+coss!P$434/coss!$D$434),9) -> 0 | R128: =ROUND(IF(coss!$D$434=0,0,+coss!Q$434/coss!$D$434),9) -> 0.023222642 | S128: =ROUND(IF(coss!$D$434=0,0,+coss!R$434/coss!$D$434),9) -> 0.001128826 | T128: =ROUND(IF(coss!$D$434=0,0,+coss!S$434/coss!$D$434),9) -> 0.004463475 | U128: =ROUND(IF(coss!$D$434=0,0,+coss!T$434/coss!$D$434),9) -> 0 | V128: =IF(coss!$D$434=0,0,1-SUM(F128:U128)-ROUND(coss!$W$434/coss!$D$434,9)) -> 8.2432e-05 | W128: =SUM(F128:V128) -> 1 | X128: 0
B130: DEPRECIATION EXPENSES | Y130: P489
A131: P489 | B131: WTD PRODUCTION DEPREC RATIOS | C131: P489 | D131: =C131 -> P489 | E131: 1 | F131: =ROUND(IF(coss!$D$442=0,0,+coss!E$442/coss!$D$442),9) -> 0.447129509 | G131: =ROUND(IF(coss!$D$442=0,0,+coss!F$442/coss!$D$442),9) -> 0.265895283 | H131: =ROUND(IF(coss!$D$442=0,0,+coss!G$442/coss!$D$442),9) -> 0.000217533 | I131: =ROUND(IF(coss!$D$442=0,0,+coss!H$442/coss!$D$442),9) -> 0.001172827 | J131: =ROUND(IF(coss!$D$442=0,0,+coss!I$442/coss!$D$442),9) -> 0.00338875 | K131: =ROUND(IF(coss!$D$442=0,0,+coss!J$442/coss!$D$442),9) -> 0.00010597 | L131: =ROUND(IF(coss!$D$442=0,0,+coss!K$442/coss!$D$442),9) -> 0.148038665 | M131: =ROUND(IF(coss!$D$442=0,0,+coss!L$442/coss!$D$442),9) -> 0.001631612 | N131: =ROUND(IF(coss!$D$442=0,0,+coss!M$442/coss!$D$442),9) -> 0.082986217 | O131: =ROUND(IF(coss!$D$442=0,0,+coss!N$442/coss!$D$442),9) -> 0.003830797 | P131: =ROUND(IF(coss!$D$442=0,0,+coss!O$442/coss!$D$442),9) -> 0.008047883 | Q131: =ROUND(IF(coss!$D$442=0,0,+coss!P$442/coss!$D$442),9) -> 0 | R131: =ROUND(IF(coss!$D$442=0,0,+coss!Q$442/coss!$D$442),9) -> 0.032262642 | S131: =ROUND(IF(coss!$D$442=0,0,+coss!R$442/coss!$D$442),9) -> 0.002043005 | T131: =ROUND(IF(coss!$D$442=0,0,+coss!S$442/coss!$D$442),9) -> 0.003173991 | U131: =ROUND(IF(coss!$D$442=0,0,+coss!T$442/coss!$D$442),9) -> 0 | V131: =IF(coss!$D$442=0,0,1-SUM(F131:U131)-ROUND(coss!$W$442/coss!$D$442,9)) -> 7.5316e-05 | W131: =SUM(F131:V131) -> 1 | X131: =E131-W131 -> 0 | Y131: T489
A132: T489 | B132: WTD TRANS DEPREC RATIOS | C132: T489 | D132: T489 | E132: 1 | F132: =ROUND(IF(coss!$D$447=0,0,+coss!E$447/coss!$D$447),9) -> 0.44712963 | G132: =ROUND(IF(coss!$D$447=0,0,+coss!F$447/coss!$D$447),9) -> 0.265894444 | H132: =ROUND(IF(coss!$D$447=0,0,+coss!G$447/coss!$D$447),9) -> 0.000216667 | I132: =ROUND(IF(coss!$D$447=0,0,+coss!H$447/coss!$D$447),9) -> 0.001172222 | J132: =ROUND(IF(coss!$D$447=0,0,+coss!I$447/coss!$D$447),9) -> 0.003388889 | K132: =ROUND(IF(coss!$D$447=0,0,+coss!J$447/coss!$D$447),9) -> 0.000105556 | L132: =ROUND(IF(coss!$D$447=0,0,+coss!K$447/coss!$D$447),9) -> 0.148038889 | M132: =ROUND(IF(coss!$D$447=0,0,+coss!L$447/coss!$D$447),9) -> 0.001631481 | N132: =ROUND(IF(coss!$D$447=0,0,+coss!M$447/coss!$D$447),9) -> 0.082987037 | O132: =ROUND(IF(coss!$D$447=0,0,+coss!N$447/coss!$D$447),9) -> 0.003831481 | P132: =ROUND(IF(coss!$D$447=0,0,+coss!O$447/coss!$D$447),9) -> 0.008048148 | Q132: =ROUND(IF(coss!$D$447=0,0,+coss!P$447/coss!$D$447),9) -> 0 | R132: =ROUND(IF(coss!$D$447=0,0,+coss!Q$447/coss!$D$447),9) -> 0.032262963 | S132: =ROUND(IF(coss!$D$447=0,0,+coss!R$447/coss!$D$447),9) -> 0.002042593 | T132: =ROUND(IF(coss!$D$447=0,0,+coss!S$447/coss!$D$447),9) -> 0.003174074 | U132: =ROUND(IF(coss!$D$447=0,0,+coss!T$447/coss!$D$447),9) -> 0 | V132: =IF(coss!$D$447=0,0,1-SUM(F132:U132)-ROUND(coss!$W$447/coss!$D$447,9)) -> 7.5926e-05 | W132: 1 | X132: 0 | Y132: D489
A133: D489 | B133: WTD DIST DEPREC RATIOS | C133: D489 | D133: D489 | E133: 1 | F133: =ROUND(IF(coss!$D$452=0,0,+coss!E$452/coss!$D$452),9) -> 0.518385995 | G133: =ROUND(IF(coss!$D$452=0,0,+coss!F$452/coss!$D$452),9) -> 0.247000592 | H133: =ROUND(IF(coss!$D$452=0,0,+coss!G$452/coss!$D$452),9) -> 0.000225798 | I133: =ROUND(IF(coss!$D$452=0,0,+coss!H$452/coss!$D$452),9) -> 0.000911981 | J133: =ROUND(IF(coss!$D$452=0,0,+coss!I$452/coss!$D$452),9) -> 0.003745964 | K133: =ROUND(IF(coss!$D$452=0,0,+coss!J$452/coss!$D$452),9) -> 0.000120223 | L133: =ROUND(IF(coss!$D$452=0,0,+coss!K$452/coss!$D$452),9) -> 0.137530684 | M133: =ROUND(IF(coss!$D$452=0,0,+coss!L$452/coss!$D$452),9) -> 0.001620032 | N133: =ROUND(IF(coss!$D$452=0,0,+coss!M$452/coss!$D$452),9) -> 0.060938746 | O133: =ROUND(IF(coss!$D$452=0,0,+coss!N$452/coss!$D$452),9) -> 0.002796734 | P133: =ROUND(IF(coss!$D$452=0,0,+coss!O$452/coss!$D$452),9) -> 0.00527078 | Q133: =ROUND(IF(coss!$D$452=0,0,+coss!P$452/coss!$D$452),9) -> 0 | R133: =ROUND(IF(coss!$D$452=0,0,+coss!Q$452/coss!$D$452),9) -> 6.8744e-05 | S133: =ROUND(IF(coss!$D$452=0,0,+coss!R$452/coss!$D$452),9) -> 0 | T133: =ROUND(IF(coss!$D$452=0,0,+coss!S$452/coss!$D$452),9) -> 0.021284014 | U133: =ROUND(IF(coss!$D$452=0,0,+coss!T$452/coss!$D$452),9) -> 0 | V133: =IF(coss!$D$452=0,0,1-SUM(F133:U133)-ROUND(coss!$W$452/coss!$D$452,9)) -> 9.9713e-05 | W133: 1 | X133: 0 | Y133: G489
A134: G489 | B134: WTD GENERAL DEPREC EXP RATIOS | C134: G489 | D134: G489 | E134: 1 | F134: =ROUND(IF(coss!$D$457=0,0,+coss!E$457/coss!$D$457),9) -> 0.521868687 | G134: =ROUND(IF(coss!$D$457=0,0,+coss!F$457/coss!$D$457),9) -> 0.237454545 | H134: =ROUND(IF(coss!$D$457=0,0,+coss!G$457/coss!$D$457),9) -> 0.000171717 | I134: =ROUND(IF(coss!$D$457=0,0,+coss!H$457/coss!$D$457),9) -> 0.001161616 | J134: =ROUND(IF(coss!$D$457=0,0,+coss!I$457/coss!$D$457),9) -> 0.003010101 | K134: =ROUND(IF(coss!$D$457=0,0,+coss!J$457/coss!$D$457),9) -> 0.000121212 | L134: =ROUND(IF(coss!$D$457=0,0,+coss!K$457/coss!$D$457),9) -> 0.126959596 | M134: =ROUND(IF(coss!$D$457=0,0,+coss!L$457/coss!$D$457),9) -> 0.001151515 | N134: =ROUND(IF(coss!$D$457=0,0,+coss!M$457/coss!$D$457),9) -> 0.070242424 | O134: =ROUND(IF(coss!$D$457=0,0,+coss!N$457/coss!$D$457),9) -> 0.002616162 | P134: =ROUND(IF(coss!$D$457=0,0,+coss!O$457/coss!$D$457),9) -> 0.006343434 | Q134: =ROUND(IF(coss!$D$457=0,0,+coss!P$457/coss!$D$457),9) -> 0 | R134: =ROUND(IF(coss!$D$457=0,0,+coss!Q$457/coss!$D$457),9) -> 0.023232323 | S134: =ROUND(IF(coss!$D$457=0,0,+coss!R$457/coss!$D$457),9) -> 0.001131313 | T134: =ROUND(IF(coss!$D$457=0,0,+coss!S$457/coss!$D$457),9) -> 0.004454545 | U134: =ROUND(IF(coss!$D$457=0,0,+coss!T$457/coss!$D$457),9) -> 0 | V134: =IF(coss!$D$457=0,0,1-SUM(F134:U134)-ROUND(coss!$W$457/coss!$D$457,9)) -> 8.081e-05 | W134: 1 | X134: 0 | Y134: C489
A135: C489 | B135: WTD COM & OTHER DEP EXP RATIOS | C135: C489 | D135: C489 | E135: 1 | F135: =ROUND(IF(coss!$D$462=0,0,+coss!E$462/coss!$D$462),9) -> 0.52182381 | G135: =ROUND(IF(coss!$D$462=0,0,+coss!F$462/coss!$D$462),9) -> 0.237484127 | H135: =ROUND(IF(coss!$D$462=0,0,+coss!G$462/coss!$D$462),9) -> 0.000173016 | I135: =ROUND(IF(coss!$D$462=0,0,+coss!H$462/coss!$D$462),9) -> 0.001165079 | J135: =ROUND(IF(coss!$D$462=0,0,+coss!I$462/coss!$D$462),9) -> 0.003007937 | K135: =ROUND(IF(coss!$D$462=0,0,+coss!J$462/coss!$D$462),9) -> 0.000125397 | L135: =ROUND(IF(coss!$D$462=0,0,+coss!K$462/coss!$D$462),9) -> 0.126973016 | M135: =ROUND(IF(coss!$D$462=0,0,+coss!L$462/coss!$D$462),9) -> 0.001150794 | N135: =ROUND(IF(coss!$D$462=0,0,+coss!M$462/coss!$D$462),9) -> 0.070247619 | O135: =ROUND(IF(coss!$D$462=0,0,+coss!N$462/coss!$D$462),9) -> 0.002611111 | P135: =ROUND(IF(coss!$D$462=0,0,+coss!O$462/coss!$D$462),9) -> 0.006342857 | Q135: =ROUND(IF(coss!$D$462=0,0,+coss!P$462/coss!$D$462),9) -> 0 | R135: =ROUND(IF(coss!$D$462=0,0,+coss!Q$462/coss!$D$462),9) -> 0.023220635 | S135: =ROUND(IF(coss!$D$462=0,0,+coss!R$462/coss!$D$462),9) -> 0.001128571 | T135: =ROUND(IF(coss!$D$462=0,0,+coss!S$462/coss!$D$462),9) -> 0.004463492 | U135: =ROUND(IF(coss!$D$462=0,0,+coss!T$462/coss!$D$462),9) -> 0 | V135: =IF(coss!$D$462=0,0,1-SUM(F135:U135)-ROUND(coss!$W$462/coss!$D$462,9)) -> 8.2539e-05 | W135: 1 | X135: 0 | Y135: DE49
A136: DE49 | B136: WTD TOT DEPREC EXP RATIOS | C136: DE49 | D136: DE49 | E136: 1 | F136: =ROUND(IF(coss!$D$464=0,0,+coss!E$464/coss!$D$464),9) -> 0.469300788 | G136: =ROUND(IF(coss!$D$464=0,0,+coss!F$464/coss!$D$464),9) -> 0.259827078 | H136: =ROUND(IF(coss!$D$464=0,0,+coss!G$464/coss!$D$464),9) -> 0.000218918 | I136: =ROUND(IF(coss!$D$464=0,0,+coss!H$464/coss!$D$464),9) -> 0.001097485 | J136: =ROUND(IF(coss!$D$464=0,0,+coss!I$464/coss!$D$464),9) -> 0.003483306 | K136: =ROUND(IF(coss!$D$464=0,0,+coss!J$464/coss!$D$464),9) -> 0.000110484 | L136: =ROUND(IF(coss!$D$464=0,0,+coss!K$464/coss!$D$464),9) -> 0.144548239 | M136: =ROUND(IF(coss!$D$464=0,0,+coss!L$464/coss!$D$464),9) -> 0.001617709 | N136: =ROUND(IF(coss!$D$464=0,0,+coss!M$464/coss!$D$464),9) -> 0.07635419 | O136: =ROUND(IF(coss!$D$464=0,0,+coss!N$464/coss!$D$464),9) -> 0.003506096 | P136: =ROUND(IF(coss!$D$464=0,0,+coss!O$464/coss!$D$464),9) -> 0.00721031 | Q136: =ROUND(IF(coss!$D$464=0,0,+coss!P$464/coss!$D$464),9) -> 0 | R136: =ROUND(IF(coss!$D$464=0,0,+coss!Q$464/coss!$D$464),9) -> 0.022788616 | S136: =ROUND(IF(coss!$D$464=0,0,+coss!R$464/coss!$D$464),9) -> 0.001434303 | T136: =ROUND(IF(coss!$D$464=0,0,+coss!S$464/coss!$D$464),9) -> 0.008419967 | U136: =ROUND(IF(coss!$D$464=0,0,+coss!T$464/coss!$D$464),9) -> 0 | V136: =IF(coss!$D$464=0,0,1-SUM(F136:U136)-ROUND(coss!$W$464/coss!$D$464,9)) -> 8.2511e-05 | W136: 1 | X136: 0
B138: OTHER TAXES & MISC EXPENSES | C138: SCHEDULE: 13c | Y138: L529
A139: L529 | B139: WTD R. E. & PROP TAX RATIOS | C139: L529 | D139: =C139 -> L529 | E139: 1 | F139: =ROUND(IF(coss!$D$472=0,0,+coss!E472/coss!$D$472),9) -> 0.482113625 | G139: =ROUND(IF(coss!$D$472=0,0,+coss!F472/coss!$D$472),9) -> 0.256618576 | H139: =ROUND(IF(coss!$D$472=0,0,+coss!G472/coss!$D$472),9) -> 0.000221592 | I139: =ROUND(IF(coss!$D$472=0,0,+coss!H472/coss!$D$472),9) -> 0.00104475 | J139: =ROUND(IF(coss!$D$472=0,0,+coss!I472/coss!$D$472),9) -> 0.003564088 | K139: =ROUND(IF(coss!$D$472=0,0,+coss!J472/coss!$D$472),9) -> 0.000113079 | L139: =ROUND(IF(coss!$D$472=0,0,+coss!K472/coss!$D$472),9) -> 0.142879769 | M139: =ROUND(IF(coss!$D$472=0,0,+coss!L472/coss!$D$472),9) -> 0.001626122 | N139: =ROUND(IF(coss!$D$472=0,0,+coss!M472/coss!$D$472),9) -> 0.072161639 | O139: =ROUND(IF(coss!$D$472=0,0,+coss!N472/coss!$D$472),9) -> 0.003323181 | P139: =ROUND(IF(coss!$D$472=0,0,+coss!O472/coss!$D$472),9) -> 0.006684465 | Q139: =ROUND(IF(coss!$D$472=0,0,+coss!P472/coss!$D$472),9) -> 0 | R139: =ROUND(IF(coss!$D$472=0,0,+coss!Q472/coss!$D$472),9) -> 0.016456297 | S139: =ROUND(IF(coss!$D$472=0,0,+coss!R472/coss!$D$472),9) -> 0.001040009 | T139: =ROUND(IF(coss!$D$472=0,0,+coss!S472/coss!$D$472),9) -> 0.01206554 | U139: =ROUND(IF(coss!$D$472=0,0,+coss!T472/coss!$D$472),9) -> 0 | V139: =IF(coss!$D$472=0,0,1-SUM(F139:U139)-ROUND(coss!$W$472/coss!$D$472,9)) -> 8.7268e-05 | W139: =SUM(F139:V139) -> 1 | X139: =E139-W139 -> 0 | Y139: L589
A140: L589 | B140: WTD MISC TAX RATIOS | C140: L589 | D140: =C140 -> L589 | E140: 1 | F140: =ROUND(IF(coss!$D$483=0,0,+coss!E483/coss!$D$483),9) -> 0.523850296 | G140: =ROUND(IF(coss!$D$483=0,0,+coss!F483/coss!$D$483),9) -> 0.237020962 | H140: =ROUND(IF(coss!$D$483=0,0,+coss!G483/coss!$D$483),9) -> 0.000172425 | I140: =ROUND(IF(coss!$D$483=0,0,+coss!H483/coss!$D$483),9) -> 0.001154874 | J140: =ROUND(IF(coss!$D$483=0,0,+coss!I483/coss!$D$483),9) -> 0.002998912 | K140: =ROUND(IF(coss!$D$483=0,0,+coss!J483/coss!$D$483),9) -> 0.000125156 | L140: =ROUND(IF(coss!$D$483=0,0,+coss!K483/coss!$D$483),9) -> 0.126319041 | M140: =ROUND(IF(coss!$D$483=0,0,+coss!L483/coss!$D$483),9) -> 0.001139834 | N140: =ROUND(IF(coss!$D$483=0,0,+coss!M483/coss!$D$483),9) -> 0.069765668 | O140: =ROUND(IF(coss!$D$483=0,0,+coss!N483/coss!$D$483),9) -> 0.002577249 | P140: =ROUND(IF(coss!$D$483=0,0,+coss!O483/coss!$D$483),9) -> 0.006319041 | Q140: =ROUND(IF(coss!$D$483=0,0,+coss!P483/coss!$D$483),9) -> 0 | R140: =ROUND(IF(coss!$D$483=0,0,+coss!Q483/coss!$D$483),9) -> 0.02294654 | S140: =ROUND(IF(coss!$D$483=0,0,+coss!R483/coss!$D$483),9) -> 0.001105456 | T140: =ROUND(IF(coss!$D$483=0,0,+coss!S483/coss!$D$483),9) -> 0.004421824 | U140: =ROUND(IF(coss!$D$483=0,0,+coss!T483/coss!$D$483),9) -> 0 | V140: =IF(coss!$D$483=0,0,1-SUM(F140:U140)-ROUND(coss!$W$483/coss!$D$483,9)) -> 8.2722e-05 | W140: =SUM(F140:V140) -> 1 | X140: =E140-W140 -> 0 | Y140: L599
A141: L599 | B141: WTD OTHER TAX RATIOS | C141: L599 | D141: =C141 -> L599 | E141: 1 | F141: =ROUND(IF(coss!$D$495=0,0,+coss!E495/coss!$D$495),9) -> 0.491561671 | G141: =ROUND(IF(coss!$D$495=0,0,+coss!F495/coss!$D$495),9) -> 0.25208183 | H141: =ROUND(IF(coss!$D$495=0,0,+coss!G495/coss!$D$495),9) -> 0.000210361 | I141: =ROUND(IF(coss!$D$495=0,0,+coss!H495/coss!$D$495),9) -> 0.001081144 | J141: =ROUND(IF(coss!$D$495=0,0,+coss!I495/coss!$D$495),9) -> 0.003419735 | K141: =ROUND(IF(coss!$D$495=0,0,+coss!J495/coss!$D$495),9) -> 0.000116314 | L141: =ROUND(IF(coss!$D$495=0,0,+coss!K495/coss!$D$495),9) -> 0.139029111 | M141: =ROUND(IF(coss!$D$495=0,0,+coss!L495/coss!$D$495),9) -> 0.001505663 | N141: =ROUND(IF(coss!$D$495=0,0,+coss!M495/coss!$D$495),9) -> 0.071692626 | O141: =ROUND(IF(coss!$D$495=0,0,+coss!N495/coss!$D$495),9) -> 0.003141001 | P141: =ROUND(IF(coss!$D$495=0,0,+coss!O495/coss!$D$495),9) -> 0.006602782 | Q141: =ROUND(IF(coss!$D$495=0,0,+coss!P495/coss!$D$495),9) -> 0 | R141: =ROUND(IF(coss!$D$495=0,0,+coss!Q495/coss!$D$495),9) -> 0.018236536 | S141: =ROUND(IF(coss!$D$495=0,0,+coss!R495/coss!$D$495),9) -> 0.001062675 | T141: =ROUND(IF(coss!$D$495=0,0,+coss!S495/coss!$D$495),9) -> 0.010172756 | U141: =ROUND(IF(coss!$D$495=0,0,+coss!T495/coss!$D$495),9) -> 0 | V141: =IF(coss!$D$495=0,0,1-SUM(F141:U141)-ROUND(coss!$W$495/coss!$D$495,9)) -> 8.5795e-05 | W141: =SUM(F141:V141) -> 1 | X141: =E141-W141 -> 0 | Y141: OP69
A142: OP69 | B142: WTD OP EXP EX IT & REV RATIOS | C142: OP69 | D142: =C142 -> OP69 | E142: 1 | F142: =ROUND(IF(coss!$D$496=0,0,+coss!E496/coss!$D$496),9) -> 0.436460001 | G142: =ROUND(IF(coss!$D$496=0,0,+coss!F496/coss!$D$496),9) -> 0.255097178 | H142: =ROUND(IF(coss!$D$496=0,0,+coss!G496/coss!$D$496),9) -> 0.000137762 | I142: =ROUND(IF(coss!$D$496=0,0,+coss!H496/coss!$D$496),9) -> 0.00134604 | J142: =ROUND(IF(coss!$D$496=0,0,+coss!I496/coss!$D$496),9) -> 0.003383886 | K142: =ROUND(IF(coss!$D$496=0,0,+coss!J496/coss!$D$496),9) -> 0.000107897 | L142: =ROUND(IF(coss!$D$496=0,0,+coss!K496/coss!$D$496),9) -> 0.159671119 | M142: =ROUND(IF(coss!$D$496=0,0,+coss!L496/coss!$D$496),9) -> 0.001014544 | N142: =ROUND(IF(coss!$D$496=0,0,+coss!M496/coss!$D$496),9) -> 0.091656782 | O142: =ROUND(IF(coss!$D$496=0,0,+coss!N496/coss!$D$496),9) -> 0.002343197 | P142: =ROUND(IF(coss!$D$496=0,0,+coss!O496/coss!$D$496),9) -> 0.007746082 | Q142: =ROUND(IF(coss!$D$496=0,0,+coss!P496/coss!$D$496),9) -> 0 | R142: =ROUND(IF(coss!$D$496=0,0,+coss!Q496/coss!$D$496),9) -> 0.033864627 | S142: =ROUND(IF(coss!$D$496=0,0,+coss!R496/coss!$D$496),9) -> 0.001116059 | T142: =ROUND(IF(coss!$D$496=0,0,+coss!S496/coss!$D$496),9) -> 0.005974045 | U142: =ROUND(IF(coss!$D$496=0,0,+coss!T496/coss!$D$496),9) -> 0 | V142: =IF(coss!$D$496=0,0,1-SUM(F142:U142)-ROUND(coss!$W$496/coss!$D$496,9)) -> 8.0781e-05 | W142: =SUM(F142:V142) -> 1 | X142: =E142-W142 -> 0
B144: INCOME TAXES | Y144: CS09
A145: CS09 | B145: WTD TOTAL ELEC REVENUE | C145: CS09 | D145: =C145 -> CS09 | E145: 1 | F145: =ROUND(IF(coss!$D$687=0,0,+coss!E$687/coss!$D$687),9) -> 0.427889317 | G145: =ROUND(IF(coss!$D$687=0,0,+coss!F$687/coss!$D$687),9) -> 0.270819269 | H145: =ROUND(IF(coss!$D$687=0,0,+coss!G$687/coss!$D$687),9) -> 0.000247735 | I145: =ROUND(IF(coss!$D$687=0,0,+coss!H$687/coss!$D$687),9) -> 0.001668817 | J145: =ROUND(IF(coss!$D$687=0,0,+coss!I$687/coss!$D$687),9) -> 0.003134079 | K145: =ROUND(IF(coss!$D$687=0,0,+coss!J$687/coss!$D$687),9) -> 0.00013167 | L145: =ROUND(IF(coss!$D$687=0,0,+coss!K$687/coss!$D$687),9) -> 0.157630411 | M145: =ROUND(IF(coss!$D$687=0,0,+coss!L$687/coss!$D$687),9) -> 0.001401654 | N145: =ROUND(IF(coss!$D$687=0,0,+coss!M$687/coss!$D$687),9) -> 0.083729236 | O145: =ROUND(IF(coss!$D$687=0,0,+coss!N$687/coss!$D$687),9) -> 0.003159468 | P145: =ROUND(IF(coss!$D$687=0,0,+coss!O$687/coss!$D$687),9) -> 0.007434551 | Q145: =ROUND(IF(coss!$D$687=0,0,+coss!P$687/coss!$D$687),9) -> 0 | R145: =ROUND(IF(coss!$D$687=0,0,+coss!Q$687/coss!$D$687),9) -> 0.032662124 | S145: =ROUND(IF(coss!$D$687=0,0,+coss!R$687/coss!$D$687),9) -> 0.001529464 | T145: =ROUND(IF(coss!$D$687=0,0,+coss!S$687/coss!$D$687),9) -> 0.008497662 | U145: =ROUND(IF(coss!$D$687=0,0,+coss!T$687/coss!$D$687),9) -> 0 | V145: =IF(coss!$D$687=0,0,1-SUM(F145:U145)-ROUND(coss!$W$687/coss!$D$687,9)) -> 6.4543e-05 | W145: =SUM(F145:V145) -> 1 | X145: =E145-W145 -> 0
B147: WAGES & SALARIES (K600-K639) | Y147: K669
A148: K669 | B148: WTD RATIOS | C148: K669 | D148: =C148 -> K669 | E148: 1 | F148: 0 | G148: 0 | H148: 0 | I148: 0 | J148: 0 | K148: 0 | L148: 0 | M148: 0 | N148: 0 | O148: 0 | P148: 0 | Q148: 0 | R148: 0 | S148: 0 | T148: 0 | U148: 0 | V148: 0 | W148: =SUM(F148:V148) -> 0 | X148: =E148-W148 -> 1
B150: JURISDICTIONAL RATE BASE, NET PLANT, A&G AND O&M RATIOS | Y150: P429
A151: P429 | B151: JUR. WTD NET PROD PLANT RATIOS | C151: P429 | D151: =C151 -> P429 | E151: 1 | F151: =ROUND(IF(coss!$U$205=0,0,+coss!E$205/coss!$V$205),9) -> 0.447129543 | G151: =ROUND(IF(coss!$U$205=0,0,+coss!F$205/coss!$V$205),9) -> 0.265895299 | H151: =ROUND(IF(coss!$U$205=0,0,+coss!G$205/coss!$V$205),9) -> 0.000217547 | I151: =ROUND(IF(coss!$U$205=0,0,+coss!H$205/coss!$V$205),9) -> 0.001172811 | J151: =ROUND(IF(coss!$U$205=0,0,+coss!I$205/coss!$V$205),9) -> 0.003388731 | K151: =ROUND(IF(coss!$U$205=0,0,+coss!J$205/coss!$V$205),9) -> 0.000105985 | L151: =ROUND(IF(coss!$U$205=0,0,+coss!K$205/coss!$V$205),9) -> 0.148038652 | M151: =ROUND(IF(coss!$U$205=0,0,+coss!L$205/coss!$V$205),9) -> 0.001631611 | N151: =ROUND(IF(coss!$U$205=0,0,+coss!M$205/coss!$V$205),9) -> 0.082986209 | O151: =ROUND(IF(coss!$U$205=0,0,+coss!N$205/coss!$V$205),9) -> 0.0038308 | P151: =ROUND(IF(coss!$U$205=0,0,+coss!O$205/coss!$V$205),9) -> 0.008047882 | Q151: =ROUND(IF(coss!$U$205=0,0,+coss!P$205/coss!$V$205),9) -> 0 | R151: =ROUND(IF(coss!$U$205=0,0,+coss!Q$205/coss!$V$205),9) -> 0.032262654 | S151: =ROUND(IF(coss!$U$205=0,0,+coss!R$205/coss!$V$205),9) -> 0.002042998 | T151: =ROUND(IF(coss!$U$205=0,0,+coss!S$205/coss!$V$205),9) -> 0.00317397 | U151: =ROUND(IF(coss!$U$205=0,0,+coss!T$205/coss!$V$205),9) -> 0 | V151: =IF(coss!$V$205=0,0,1-SUM(F151:U151)) -> 7.5308e-05 | W151: =SUM(F151:V151) -> 1 | X151: =E151-W151 -> 0 | Y151: T429
A152: T429 | B152: JUR. WTD NET TRANS PLANT RATIOS | C152: T429 | D152: T429 | E152: 1 | F152: =ROUND(IF(coss!$V$210=0,0,+coss!E$210/coss!$V$210),9) -> 0.447129396 | G152: =ROUND(IF(coss!$V$210=0,0,+coss!F$210/coss!$V$210),9) -> 0.265895303 | H152: =ROUND(IF(coss!$V$210=0,0,+coss!G$210/coss!$V$210),9) -> 0.000217504 | I152: =ROUND(IF(coss!$V$210=0,0,+coss!H$210/coss!$V$210),9) -> 0.001172823 | J152: =ROUND(IF(coss!$V$210=0,0,+coss!I$210/coss!$V$210),9) -> 0.003388778 | K152: =ROUND(IF(coss!$V$210=0,0,+coss!J$210/coss!$V$210),9) -> 0.000106024 | L152: =ROUND(IF(coss!$V$210=0,0,+coss!K$210/coss!$V$210),9) -> 0.148038708 | M152: =ROUND(IF(coss!$V$210=0,0,+coss!L$210/coss!$V$210),9) -> 0.001631645 | N152: =ROUND(IF(coss!$V$210=0,0,+coss!M$210/coss!$V$210),9) -> 0.082986212 | O152: =ROUND(IF(coss!$V$210=0,0,+coss!N$210/coss!$V$210),9) -> 0.00383079 | P152: =ROUND(IF(coss!$V$210=0,0,+coss!O$210/coss!$V$210),9) -> 0.008047851 | Q152: =ROUND(IF(coss!$V$210=0,0,+coss!P$210/coss!$V$210),9) -> 0 | R152: =ROUND(IF(coss!$V$210=0,0,+coss!Q$210/coss!$V$210),9) -> 0.032262626 | S152: =ROUND(IF(coss!$V$210=0,0,+coss!R$210/coss!$V$210),9) -> 0.002042985 | T152: =ROUND(IF(coss!$V$210=0,0,+coss!S$210/coss!$V$210),9) -> 0.003174003 | U152: =ROUND(IF(coss!$V$210=0,0,+coss!T$210/coss!$V$210),9) -> 0 | V152: =IF(coss!$V$210=0,0,1-SUM(F152:U152)) -> 7.5352e-05 | W152: 1 | X152: 0 | Y152: D449
A153: D449 | B153: JUR. WTD NET DIST PLANT RATIOS | C153: D449 | D153: D449 | E153: 1 | F153: =ROUND(IF(coss!$V$217=0,0,+coss!E$217/coss!$V$217),9) -> 0.518385719 | G153: =ROUND(IF(coss!$V$217=0,0,+coss!F$217/coss!$V$217),9) -> 0.24700063 | H153: =ROUND(IF(coss!$V$217=0,0,+coss!G$217/coss!$V$217),9) -> 0.000225811 | I153: =ROUND(IF(coss!$V$217=0,0,+coss!H$217/coss!$V$217),9) -> 0.000911998 | J153: =ROUND(IF(coss!$V$217=0,0,+coss!I$217/coss!$V$217),9) -> 0.003745917 | K153: =ROUND(IF(coss!$V$217=0,0,+coss!J$217/coss!$V$217),9) -> 0.000120273 | L153: =ROUND(IF(coss!$V$217=0,0,+coss!K$217/coss!$V$217),9) -> 0.137530733 | M153: =ROUND(IF(coss!$V$217=0,0,+coss!L$217/coss!$V$217),9) -> 0.001620073 | N153: =ROUND(IF(coss!$V$217=0,0,+coss!M$217/coss!$V$217),9) -> 0.060938797 | O153: =ROUND(IF(coss!$V$217=0,0,+coss!N$217/coss!$V$217),9) -> 0.002796762 | P153: =ROUND(IF(coss!$V$217=0,0,+coss!O$217/coss!$V$217),9) -> 0.005270747 | Q153: =ROUND(IF(coss!$V$217=0,0,+coss!P$217/coss!$V$217),9) -> 0 | R153: =ROUND(IF(coss!$V$217=0,0,+coss!Q$217/coss!$V$217),9) -> 6.8794e-05 | S153: =ROUND(IF(coss!$V$217=0,0,+coss!R$217/coss!$V$217),9) -> 0 | T153: =ROUND(IF(coss!$V$217=0,0,+coss!S$217/coss!$V$217),9) -> 0.021284004 | U153: =ROUND(IF(coss!$V$217=0,0,+coss!T$217/coss!$V$217),9) -> 0 | V153: =IF(coss!$V$217=0,0,1-SUM(F153:U153)) -> 9.9742e-05 | W153: 1 | X153: 0 | Y153: NT49
A154: NT49 | B154: JUR. WTD NET TRANS & DIST RATIOS | C154: NT49 | D154: NT49 | E154: 1 | F154: =ROUND(IF(coss!$V$221=0,0,+coss!E$221/coss!$V$221),9) -> 0.469594569 | G154: =ROUND(IF(coss!$V$221=0,0,+coss!F$221/coss!$V$221),9) -> 0.259938352 | H154: =ROUND(IF(coss!$V$221=0,0,+coss!G$221/coss!$V$221),9) -> 0.000220151 | I154: =ROUND(IF(coss!$V$221=0,0,+coss!H$221/coss!$V$221),9) -> 0.001090585 | J154: =ROUND(IF(coss!$V$221=0,0,+coss!I$221/coss!$V$221),9) -> 0.003501343 | K154: =ROUND(IF(coss!$V$221=0,0,+coss!J$221/coss!$V$221),9) -> 0.00011049 | L154: =ROUND(IF(coss!$V$221=0,0,+coss!K$221/coss!$V$221),9) -> 0.144725808 | M154: =ROUND(IF(coss!$V$221=0,0,+coss!L$221/coss!$V$221),9) -> 0.001627974 | N154: =ROUND(IF(coss!$V$221=0,0,+coss!M$221/coss!$V$221),9) -> 0.076035292 | O154: =ROUND(IF(coss!$V$221=0,0,+coss!N$221/coss!$V$221),9) -> 0.003504797 | P154: =ROUND(IF(coss!$V$221=0,0,+coss!O$221/coss!$V$221),9) -> 0.007172331 | Q154: =ROUND(IF(coss!$V$221=0,0,+coss!P$221/coss!$V$221),9) -> 0 | R154: =ROUND(IF(coss!$V$221=0,0,+coss!Q$221/coss!$V$221),9) -> 0.022112852 | S154: =ROUND(IF(coss!$V$221=0,0,+coss!R$221/coss!$V$221),9) -> 0.001398899 | T154: =ROUND(IF(coss!$V$221=0,0,+coss!S$221/coss!$V$221),9) -> 0.008883545 | U154: =ROUND(IF(coss!$V$221=0,0,+coss!T$221/coss!$V$221),9) -> 0 | V154: =IF(coss!$V$221=0,0,1-SUM(F154:U154)) -> 8.3012e-05 | W154: 1 | X154: 0 | Y154: G429
A155: G429 | B155: JUR. WTD NET G & I PLT RATIOS | C155: G429 | D155: G429 | E155: 1 | F155: =ROUND(IF(coss!$V$226=0,0,+coss!E$226/coss!$V$226),9) -> 0.521875 | G155: =ROUND(IF(coss!$V$226=0,0,+coss!F$226/coss!$V$226),9) -> 0.237452114 | H155: =ROUND(IF(coss!$V$226=0,0,+coss!G$226/coss!$V$226),9) -> 0.000174129 | I155: =ROUND(IF(coss!$V$226=0,0,+coss!H$226/coss!$V$226),9) -> 0.001164801 | J155: =ROUND(IF(coss!$V$226=0,0,+coss!I$226/coss!$V$226),9) -> 0.003007463 | K155: =ROUND(IF(coss!$V$226=0,0,+coss!J$226/coss!$V$226),9) -> 0.000126244 | L155: =ROUND(IF(coss!$V$226=0,0,+coss!K$226/coss!$V$226),9) -> 0.126954602 | M155: =ROUND(IF(coss!$V$226=0,0,+coss!L$226/coss!$V$226),9) -> 0.001151741 | N155: =ROUND(IF(coss!$V$226=0,0,+coss!M$226/coss!$V$226),9) -> 0.070238806 | O155: =ROUND(IF(coss!$V$226=0,0,+coss!N$226/coss!$V$226),9) -> 0.00261194 | P155: =ROUND(IF(coss!$V$226=0,0,+coss!O$226/coss!$V$226),9) -> 0.006343284 | Q155: =ROUND(IF(coss!$V$226=0,0,+coss!P$226/coss!$V$226),9) -> 0 | R155: =ROUND(IF(coss!$V$226=0,0,+coss!Q$226/coss!$V$226),9) -> 0.023228856 | S155: =ROUND(IF(coss!$V$226=0,0,+coss!R$226/coss!$V$226),9) -> 0.001129975 | T155: =ROUND(IF(coss!$V$226=0,0,+coss!S$226/coss!$V$226),9) -> 0.004458955 | U155: =ROUND(IF(coss!$V$226=0,0,+coss!T$226/coss!$V$226),9) -> 0 | V155: =IF(coss!$V$226=0,0,1-SUM(F155:U155)) -> 8.209e-05 | W155: 1 | X155: 0 | Y155: C429
A156: C429 | B156: JUR. WTD NET C & O PLANT RATIOS | C156: C429 | D156: C429 | E156: 1 | F156: =ROUND(IF(coss!$V$231=0,0,+coss!E$231/coss!$V$231),9) -> 0.521824763 | G156: =ROUND(IF(coss!$V$231=0,0,+coss!F$231/coss!$V$231),9) -> 0.237483396 | H156: =ROUND(IF(coss!$V$231=0,0,+coss!G$231/coss!$V$231),9) -> 0.000173765 | I156: =ROUND(IF(coss!$V$231=0,0,+coss!H$231/coss!$V$231),9) -> 0.001165394 | J156: =ROUND(IF(coss!$V$231=0,0,+coss!I$231/coss!$V$231),9) -> 0.003007543 | K156: =ROUND(IF(coss!$V$231=0,0,+coss!J$231/coss!$V$231),9) -> 0.000125379 | L156: =ROUND(IF(coss!$V$231=0,0,+coss!K$231/coss!$V$231),9) -> 0.126972956 | M156: =ROUND(IF(coss!$V$231=0,0,+coss!L$231/coss!$V$231),9) -> 0.001151136 | N156: =ROUND(IF(coss!$V$231=0,0,+coss!M$231/coss!$V$231),9) -> 0.070247263 | O156: =ROUND(IF(coss!$V$231=0,0,+coss!N$231/coss!$V$231),9) -> 0.002610707 | P156: =ROUND(IF(coss!$V$231=0,0,+coss!O$231/coss!$V$231),9) -> 0.006342563 | Q156: =ROUND(IF(coss!$V$231=0,0,+coss!P$231/coss!$V$231),9) -> 0 | R156: =ROUND(IF(coss!$V$231=0,0,+coss!Q$231/coss!$V$231),9) -> 0.023220035 | S156: =ROUND(IF(coss!$V$231=0,0,+coss!R$231/coss!$V$231),9) -> 0.001128599 | T156: =ROUND(IF(coss!$V$231=0,0,+coss!S$231/coss!$V$231),9) -> 0.004464079 | U156: =ROUND(IF(coss!$V$231=0,0,+coss!T$231/coss!$V$231),9) -> 0 | V156: =IF(coss!$V$231=0,0,1-SUM(F156:U156)) -> 8.2422e-05 | W156: 1 | X156: 0 | Y156: NP49
A157: NP49 | B157: JUR. WTD NET PLANT RATIOS | C157: NP49 | D157: NP49 | E157: 1 | F157: =ROUND(IF(coss!$V$233=0,0,+coss!E$233/coss!$V$233),9) -> 0.470713206 | G157: =ROUND(IF(coss!$V$233=0,0,+coss!F$233/coss!$V$233),9) -> 0.259457397 | H157: =ROUND(IF(coss!$V$233=0,0,+coss!G$233/coss!$V$233),9) -> 0.000219159 | I157: =ROUND(IF(coss!$V$233=0,0,+coss!H$233/coss!$V$233),9) -> 0.001092185 | J157: =ROUND(IF(coss!$V$233=0,0,+coss!I$233/coss!$V$233),9) -> 0.003490768 | K157: =ROUND(IF(coss!$V$233=0,0,+coss!J$233/coss!$V$233),9) -> 0.000110812 | L157: =ROUND(IF(coss!$V$233=0,0,+coss!K$233/coss!$V$233),9) -> 0.144345584 | M157: =ROUND(IF(coss!$V$233=0,0,+coss!L$233/coss!$V$233),9) -> 0.001617764 | N157: =ROUND(IF(coss!$V$233=0,0,+coss!M$233/coss!$V$233),9) -> 0.075911319 | O157: =ROUND(IF(coss!$V$233=0,0,+coss!N$233/coss!$V$233),9) -> 0.003485654 | P157: =ROUND(IF(coss!$V$233=0,0,+coss!O$233/coss!$V$233),9) -> 0.007154563 | Q157: =ROUND(IF(coss!$V$233=0,0,+coss!P$233/coss!$V$233),9) -> 0 | R157: =ROUND(IF(coss!$V$233=0,0,+coss!Q$233/coss!$V$233),9) -> 0.022136587 | S157: =ROUND(IF(coss!$V$233=0,0,+coss!R$233/coss!$V$233),9) -> 0.001393114 | T157: =ROUND(IF(coss!$V$233=0,0,+coss!S$233/coss!$V$233),9) -> 0.008788889 | U157: =ROUND(IF(coss!$V$233=0,0,+coss!T$233/coss!$V$233),9) -> 0 | V157: =IF(coss!$V$233=0,0,1-SUM(F157:U157)) -> 8.2999e-05 | W157: 1 | X157: 0 | Y157: O429
A158: O429 | B158: JUR. WTD NET GEN & COMMON PLT RATIOS | C158: O429 | D158: O429 | E158: 1 | F158: =ROUND(IF((coss!$V$226+coss!$V$231)=0,0,+(coss!E$226+coss!E$231)/(coss!$V$226+coss!$V$231)),9) -> 0.521831236 | G158: =ROUND(IF((coss!$V$226+coss!$V$231)=0,0,+(coss!F$226+coss!F$231)/(coss!$V$226+coss!$V$231)),9) -> 0.237479365 | H158: =ROUND(IF((coss!$V$226+coss!$V$231)=0,0,+(coss!G$226+coss!G$231)/(coss!$V$226+coss!$V$231)),9) -> 0.000173812 | I158: =ROUND(IF((coss!$V$226+coss!$V$231)=0,0,+(coss!H$226+coss!H$231)/(coss!$V$226+coss!$V$231)),9) -> 0.001165318 | J158: =ROUND(IF((coss!$V$226+coss!$V$231)=0,0,+(coss!I$226+coss!I$231)/(coss!$V$226+coss!$V$231)),9) -> 0.003007533 | K158: =ROUND(IF((coss!$V$226+coss!$V$231)=0,0,+(coss!J$226+coss!J$231)/(coss!$V$226+coss!$V$231)),9) -> 0.000125491 | L158: =ROUND(IF((coss!$V$226+coss!$V$231)=0,0,+(coss!K$226+coss!K$231)/(coss!$V$226+coss!$V$231)),9) -> 0.126970591 | M158: =ROUND(IF((coss!$V$226+coss!$V$231)=0,0,+(coss!L$226+coss!L$231)/(coss!$V$226+coss!$V$231)),9) -> 0.001151214 | N158: =ROUND(IF((coss!$V$226+coss!$V$231)=0,0,+(coss!M$226+coss!M$231)/(coss!$V$226+coss!$V$231)),9) -> 0.070246174 | O158: =ROUND(IF((coss!$V$226+coss!$V$231)=0,0,+(coss!N$226+coss!N$231)/(coss!$V$226+coss!$V$231)),9) -> 0.002610866 | P158: =ROUND(IF((coss!$V$226+coss!$V$231)=0,0,+(coss!O$226+coss!O$231)/(coss!$V$226+coss!$V$231)),9) -> 0.006342656 | Q158: =ROUND(IF((coss!$V$226+coss!$V$231)=0,0,+(coss!P$226+coss!P$231)/(coss!$V$226+coss!$V$231)),9) -> 0 | R158: =ROUND(IF((coss!$V$226+coss!$V$231)=0,0,+(coss!Q$226+coss!Q$231)/(coss!$V$226+coss!$V$231)),9) -> 0.023221172 | S158: =ROUND(IF((coss!$V$226+coss!$V$231)=0,0,+(coss!R$226+coss!R$231)/(coss!$V$226+coss!$V$231)),9) -> 0.001128776 | T158: =ROUND(IF((coss!$V$226+coss!$V$231)=0,0,+(coss!S$226+coss!S$231)/(coss!$V$226+coss!$V$231)),9) -> 0.004463419 | U158: =ROUND(IF((coss!$V$226+coss!$V$231)=0,0,+(coss!T$226+coss!T$231)/(coss!$V$226+coss!$V$231)),9) -> 0 | V158: =IF(coss!$V$226+coss!V231=0,0,1-SUM(F158:U158)) -> 8.2377e-05 | W158: 1 | X158: 0 | Y158: J349
A159: J349 | B159: JUR. WTD PROD O&M RATIOS | C159: J349 | D159: =C159 -> J349 | E159: 1 | F159: =ROUND(IF(coss!$V$362=0,0,+coss!E$362/coss!$V$362),9) -> 0.389873092 | G159: =ROUND(IF(coss!$V$362=0,0,+coss!F$362/coss!$V$362),9) -> 0.261491742 | H159: =ROUND(IF(coss!$V$362=0,0,+coss!G$362/coss!$V$362),9) -> 9.6952e-05 | I159: =ROUND(IF(coss!$V$362=0,0,+coss!H$362/coss!$V$362),9) -> 0.001512932 | J159: =ROUND(IF(coss!$V$362=0,0,+coss!I$362/coss!$V$362),9) -> 0.003513488 | K159: =ROUND(IF(coss!$V$362=0,0,+coss!J$362/coss!$V$362),9) -> 0.000101874 | L159: =ROUND(IF(coss!$V$362=0,0,+coss!K$362/coss!$V$362),9) -> 0.177926323 | M159: =ROUND(IF(coss!$V$362=0,0,+coss!L$362/coss!$V$362),9) -> 0.000762091 | N159: =ROUND(IF(coss!$V$362=0,0,+coss!M$362/coss!$V$362),9) -> 0.105419993 | O159: =ROUND(IF(coss!$V$362=0,0,+coss!N$362/coss!$V$362),9) -> 0.001855462 | P159: =ROUND(IF(coss!$V$362=0,0,+coss!O$362/coss!$V$362),9) -> 0.008501201 | Q159: =ROUND(IF(coss!$V$362=0,0,+coss!P$362/coss!$V$362),9) -> 0 | R159: =ROUND(IF(coss!$V$362=0,0,+coss!Q$362/coss!$V$362),9) -> 0.04198771 | S159: =ROUND(IF(coss!$V$362=0,0,+coss!R$362/coss!$V$362),9) -> 0.001017292 | T159: =ROUND(IF(coss!$V$362=0,0,+coss!S$362/coss!$V$362),9) -> 0.005859535 | U159: =ROUND(IF(coss!$V$362=0,0,+coss!T$362/coss!$V$362),9) -> 0 | V159: =IF(coss!$V$362=0,0,1-SUM(F159:U159)) -> 8.0313e-05 | W159: 1 | X159: 0 | Y159: J315
A160: J315 | B160: JUR. WTD A&G EXCL. REGULATORY RATIOS | C160: J315 | D160: =+C160 -> J315 | E160: 1 | F160: =ROUND(IF(coss!$V$417=0,0,+coss!E$417/coss!$V$417),9) -> 0.521851181 | G160: =ROUND(IF(coss!$V$417=0,0,+coss!F$417/coss!$V$417),9) -> 0.237472309 | H160: =ROUND(IF(coss!$V$417=0,0,+coss!G$417/coss!$V$417),9) -> 0.000173724 | I160: =ROUND(IF(coss!$V$417=0,0,+coss!H$417/coss!$V$417),9) -> 0.001165461 | J160: =ROUND(IF(coss!$V$417=0,0,+coss!I$417/coss!$V$417),9) -> 0.003007232 | K160: =ROUND(IF(coss!$V$417=0,0,+coss!J$417/coss!$V$417),9) -> 0.000125425 | L160: =ROUND(IF(coss!$V$417=0,0,+coss!K$417/coss!$V$417),9) -> 0.126961254 | M160: =ROUND(IF(coss!$V$417=0,0,+coss!L$417/coss!$V$417),9) -> 0.001150952 | N160: =ROUND(IF(coss!$V$417=0,0,+coss!M$417/coss!$V$417),9) -> 0.070242539 | O160: =ROUND(IF(coss!$V$417=0,0,+coss!N$417/coss!$V$417),9) -> 0.002610367 | P160: =ROUND(IF(coss!$V$417=0,0,+coss!O$417/coss!$V$417),9) -> 0.006342246 | Q160: =ROUND(IF(coss!$V$417=0,0,+coss!P$417/coss!$V$417),9) -> 0 | R160: =ROUND(IF(coss!$V$417=0,0,+coss!Q$417/coss!$V$417),9) -> 0.023222598 | S160: =ROUND(IF(coss!$V$417=0,0,+coss!R$417/coss!$V$417),9) -> 0.001128823 | T160: =ROUND(IF(coss!$V$417=0,0,+coss!S$417/coss!$V$417),9) -> 0.004463414 | U160: =ROUND(IF(coss!$V$417=0,0,+coss!T$417/coss!$V$417),9) -> 0 | V160: =IF(coss!$V$417=0,0,1-SUM(F160:U160)) -> 8.2475e-05 | W160: 1 | X160: 0 | Y160: J600
A161: J600 | B161: JUR. PRESENT REVENUE RATIOS | C161: J600 | D161: =+C161 -> J600 | E161: 1 | F161: =ROUND(IF(coss!$V$729=0,0,+coss!E$729/coss!$V$729),9) -> 0.410424625 | G161: =ROUND(IF(coss!$V$729=0,0,+coss!F$729/coss!$V$729),9) -> 0.280412025 | H161: =ROUND(IF(coss!$V$729=0,0,+coss!G$729/coss!$V$729),9) -> 0.000294664 | I161: =ROUND(IF(coss!$V$729=0,0,+coss!H$729/coss!$V$729),9) -> 0.001983672 | J161: =ROUND(IF(coss!$V$729=0,0,+coss!I$729/coss!$V$729),9) -> 0.002919326 | K161: =ROUND(IF(coss!$V$729=0,0,+coss!J$729/coss!$V$729),9) -> 0.000147614 | L161: =ROUND(IF(coss!$V$729=0,0,+coss!K$729/coss!$V$729),9) -> 0.161323341 | M161: =ROUND(IF(coss!$V$729=0,0,+coss!L$729/coss!$V$729),9) -> 0.001444802 | N161: =ROUND(IF(coss!$V$729=0,0,+coss!M$729/coss!$V$729),9) -> 0.083491008 | O161: =ROUND(IF(coss!$V$729=0,0,+coss!N$729/coss!$V$729),9) -> 0.003289191 | P161: =ROUND(IF(coss!$V$729=0,0,+coss!O$729/coss!$V$729),9) -> 0.007418322 | Q161: =ROUND(IF(coss!$V$729=0,0,+coss!P$729/coss!$V$729),9) -> 0 | R161: =ROUND(IF(coss!$V$729=0,0,+coss!Q$729/coss!$V$729),9) -> 0.03587656 | S161: =ROUND(IF(coss!$V$729=0,0,+coss!R$729/coss!$V$729),9) -> 0.001699352 | T161: =ROUND(IF(coss!$V$729=0,0,+coss!S$729/coss!$V$729),9) -> 0.009223342 | U161: =ROUND(IF(coss!$V$729=0,0,+coss!T$729/coss!$V$729),9) -> 0 | V161: =IF(coss!$V$729=0,0,1-SUM(F161:U161)) -> 5.2156e-05 | W161: 1 | X161: 0 | Y161: J602
A162: J602 | B162: JUR. PROPOSED REVENUE RATIOS | C162: J602 | D162: =+C162 -> J602 | E162: 1 | F162: =ROUND(IF(coss!$V$730=0,0,+coss!E$730/coss!$V$730),9) -> 0.427888107 | G162: =ROUND(IF(coss!$V$730=0,0,+coss!F$730/coss!$V$730),9) -> 0.27082895 | H162: =ROUND(IF(coss!$V$730=0,0,+coss!G$730/coss!$V$730),9) -> 0.000238352 | I162: =ROUND(IF(coss!$V$730=0,0,+coss!H$730/coss!$V$730),9) -> 0.001668819 | J162: =ROUND(IF(coss!$V$730=0,0,+coss!I$730/coss!$V$730),9) -> 0.003134102 | K162: =ROUND(IF(coss!$V$730=0,0,+coss!J$730/coss!$V$730),9) -> 0.00013167 | L162: =ROUND(IF(coss!$V$730=0,0,+coss!K$730/coss!$V$730),9) -> 0.159479511 | M162: =ROUND(IF(coss!$V$730=0,0,+coss!L$730/coss!$V$730),9) -> 0.001165258 | N162: =ROUND(IF(coss!$V$730=0,0,+coss!M$730/coss!$V$730),9) -> 0.082642622 | O162: =ROUND(IF(coss!$V$730=0,0,+coss!N$730/coss!$V$730),9) -> 0.002634095 | P162: =ROUND(IF(coss!$V$730=0,0,+coss!O$730/coss!$V$730),9) -> 0.007434555 | Q162: =ROUND(IF(coss!$V$730=0,0,+coss!P$730/coss!$V$730),9) -> 0 | R162: =ROUND(IF(coss!$V$730=0,0,+coss!Q$730/coss!$V$730),9) -> 0.032845632 | S162: =ROUND(IF(coss!$V$730=0,0,+coss!R$730/coss!$V$730),9) -> 0.00134612 | T162: =ROUND(IF(coss!$V$730=0,0,+coss!S$730/coss!$V$730),9) -> 0.008497668 | U162: =ROUND(IF(coss!$V$730=0,0,+coss!T$730/coss!$V$730),9) -> 0 | V162: =IF(coss!$V$730=0,0,1-SUM(F162:U162)) -> 6.4539e-05 | W162: 1 | X162: 0 | Y162: J865
A163: J865 | B163: JUR. BASE FOR FIT COMPUTATION RATIOS | C163: J865 | D163: =+C163 -> J865 | E163: 1 | F163: =ROUND(IF(coss!$V$575=0,0,+coss!E$575/coss!$V$575),9) -> 0.355392037 | G163: =ROUND(IF(coss!$V$575=0,0,+coss!F$575/coss!$V$575),9) -> 0.362010879 | H163: =ROUND(IF(coss!$V$575=0,0,+coss!G$575/coss!$V$575),9) -> 0.000848532 | I163: =ROUND(IF(coss!$V$575=0,0,+coss!H$575/coss!$V$575),9) -> 0.003675582 | J163: =ROUND(IF(coss!$V$575=0,0,+coss!I$575/coss!$V$575),9) -> 0.00163856 | K163: =ROUND(IF(coss!$V$575=0,0,+coss!J$575/coss!$V$575),9) -> 0.000264758 | L163: =ROUND(IF(coss!$V$575=0,0,+coss!K$575/coss!$V$575),9) -> 0.155437709 | M163: =ROUND(IF(coss!$V$575=0,0,+coss!L$575/coss!$V$575),9) -> 0.00337845 | N163: =ROUND(IF(coss!$V$575=0,0,+coss!M$575/coss!$V$575),9) -> 0.046609533 | O163: =ROUND(IF(coss!$V$575=0,0,+coss!N$575/coss!$V$575),9) -> 0.007388981 | P163: =ROUND(IF(coss!$V$575=0,0,+coss!O$575/coss!$V$575),9) -> 0.006025341 | Q163: =ROUND(IF(coss!$V$575=0,0,+coss!P$575/coss!$V$575),9) -> 0 | R163: =ROUND(IF(coss!$V$575=0,0,+coss!Q$575/coss!$V$575),9) -> 0.031622814 | S163: =ROUND(IF(coss!$V$575=0,0,+coss!R$575/coss!$V$575),9) -> 0.003806854 | T163: =ROUND(IF(coss!$V$575=0,0,+coss!S$575/coss!$V$575),9) -> 0.021928968 | U163: =ROUND(IF(coss!$V$575=0,0,+coss!T$575/coss!$V$575),9) -> 0 | V163: =IF(coss!$V$575=0,0,1-SUM(F163:U163)) -> -2.8998e-05 | W163: =SUM(F163:V163) -> 1 | X163: 0 | Y163: JR99
A164: JR99 | B164: JUR. OCD RATE BASE | C164: JR99 | D164: =C164 -> JR99 | E164: 1 | F164: =ROUND(IF(coss!$V$336=0,0,+coss!E$336/coss!$V$336),9) -> 0.468045079 | G164: =ROUND(IF(coss!$V$336=0,0,+coss!F$336/coss!$V$336),9) -> 0.258905539 | H164: =ROUND(IF(coss!$V$336=0,0,+coss!G$336/coss!$V$336),9) -> 0.000220084 | I164: =ROUND(IF(coss!$V$336=0,0,+coss!H$336/coss!$V$336),9) -> 0.001110648 | J164: =ROUND(IF(coss!$V$336=0,0,+coss!I$336/coss!$V$336),9) -> 0.003486798 | K164: =ROUND(IF(coss!$V$336=0,0,+coss!J$336/coss!$V$336),9) -> 0.000110596 | L164: =ROUND(IF(coss!$V$336=0,0,+coss!K$336/coss!$V$336),9) -> 0.145558138 | M164: =ROUND(IF(coss!$V$336=0,0,+coss!L$336/coss!$V$336),9) -> 0.001629373 | N164: =ROUND(IF(coss!$V$336=0,0,+coss!M$336/coss!$V$336),9) -> 0.077007492 | O164: =ROUND(IF(coss!$V$336=0,0,+coss!N$336/coss!$V$336),9) -> 0.003531638 | P164: =ROUND(IF(coss!$V$336=0,0,+coss!O$336/coss!$V$336),9) -> 0.007177285 | Q164: =ROUND(IF(coss!$V$336=0,0,+coss!P$336/coss!$V$336),9) -> 0 | R164: =ROUND(IF(coss!$V$336=0,0,+coss!Q$336/coss!$V$336),9) -> 0.022816139 | S164: =ROUND(IF(coss!$V$336=0,0,+coss!R$336/coss!$V$336),9) -> 0.001434953 | T164: =ROUND(IF(coss!$V$336=0,0,+coss!S$336/coss!$V$336),9) -> 0.008883135 | U164: =ROUND(IF(coss!$V$336=0,0,+coss!T$336/coss!$V$336),9) -> 0 | V164: =IF(coss!$V$336=0,0,1-SUM(F164:U164)) -> 8.3103e-05 | W164: =SUM(F164:V164) -> 1 | X164: 0
A168: K_DA
E217: =IF(backup!$C20=1,+backup!D25,0)

Sheet coss
A1: DUKE ENERGY KENTUCKY | W1: 2005-11-16T08:34:58.010 | X1: 38671.39194
A2: COST OF SERVICE STUDY | F2: SUBSIDY EXCESS
A3: =time_period -> TWELVE MONTHS ENDING DECEMBER 31, 2007 | P3: hide
A4: =VERSION -> FR-9v-1 KW ( 12 COIN PEAK )
A6: =case_name -> ELECTRIC CASE NO: 2006-00172 | E6: RS | F6: DS | G6: DS_RTP | H6: GSFL | I6: EH | J6: SP | K6: DT_SEC | L6: DT_SEC_RTP | M6: DT_PRI | N6: DT_PRI_RTP | O6: DP | P6: DP_RTP | Q6: TT | R6: TT_RTP | S6: LT | T6: BLANK | U6: OTHER | V6: TOTAL
D7: TOTAL | F7: SECONDARY | G7: INCR. | H7: SECONDARY | I7: SECONDARY | J7: SECONDARY | K7: SECONDARY | L7: INCR. | M7: PRIMARY | N7: INCR. | O7: PRIMARY | P7: INCR. | Q7: TRANSMISSION | R7: INCR. TRANS | U7: WATER | V7: AT | W7: ALL | AF7: Not a Valid
B8: ITEM | C8: ALLO | D8: ELECTRIC | E8: RESIDENTIAL | F8: DISTRIBUTION | G8: SEC. DISTR. | H8: DISTRIBUTION | I8: DISTRIBUTION | J8: DISTRIBUTION | K8: DISTRIBUTION | L8: SEC. DIST | M8: DISTRIBUTION | N8: PRI. DIST | O8: DISTRIBUTION | P8: PRI. DISTR. | Q8: TIME OF DAY | R8: TIME OF DAY | S8: LIGHTING | T8: BLANK | U8: PUMPING | V8: ISSUE | W8: OTHER | AF8: Class
D9: 1 | E9: 2 | F9: 3 | G9: 4 | H9: 5 | I9: 6 | J9: 7 | K9: 8 | L9: 9 | M9: 10 | N9: 11 | O9: 12 | P9: 13 | Q9: 14 | R9: 15 | S9: 16 | T9: 17 | U9: 18 | V9: 19 | W9: 20
A10: SUMMARY OF RESULTS | B10: Schedule 1
A11: NET INCOME COMPUTATION
A12: GROSS ELECTRIC PLANT IN SERVICE | B12: GP19 | D12: =D97 -> 1122822000 | E12: 525502483 | F12: 290575522 | G12: 244115 | H12: 1236650 | I12: 3895718 | J12: 123048 | K12: 161351823 | L12: 1808678 | M12: 85204777 | N12: 3913630 | O12: 8074446 | P12: 0 | Q12: 26485125 | R12: 1667763 | S12: 12644599 | T12: 0 | U12: 93623 | V12: 1122822000 | W12: 0
A13: TOTAL DEPRECIATION RESERVE | B13: DR19 | D13: =-D148 -> -540093766 | E13: -251204608 | F13: -139382371 | G13: -116405 | H13: -600203 | I13: -1861549 | J13: -58475 | K13: -77237576 | L13: -865961 | M13: -40969108 | N13: -1882441 | O13: -3905280 | P13: 0 | Q13: -13585511 | R13: -855956 | S13: -7523065 | T13: 0 | U13: -45257 | V13: -540093766 | W13: 0
A14: TOTAL RATE BASE ADJUSTMENTS | B14: RB71 | D14: =D331 -> 8213167 | E14: 2289340 | F14: 1804851 | G14: 2347 | H14: 19881 | I14: 26324 | J14: 783 | K14: 1902083 | L14: 20147 | M14: 1271246 | N14: 55802 | O14: 72189 | P14: 0 | Q14: 583387 | R14: 36166 | S14: 127878 | T14: 0 | U14: 743 | V14: 8213167 | W14: 0
A15: TOTAL RATE BASE | B15: RB99 | D15: =SUM(D11:D14) -> 590941401 | E15: 276587215 | F15: 152998002 | G15: 130057 | H15: 656328 | I15: 2060493 | J15: 65356 | K15: 86016330 | L15: 962864 | M15: 45506915 | N15: 2086991 | O15: 4241355 | P15: 0 | Q15: 13483001 | R15: 847973 | S15: 5249412 | T15: 0 | U15: 49109 | V15: 590941401 | W15: 0
A17: CAPITALIZATION ALLOC TO ELECTRIC OPER | B17: ECAP | D17: =D338 -> 557080702 | E17: 260738880 | F17: 144231279 | G17: 122605 | H17: 618721 | I17: 1942428 | J17: 61611 | K17: 81087630 | L17: 907692 | M17: 42899388 | N17: 1967407 | O17: 3998327 | P17: 0 | Q17: 12710431 | R17: 799385 | S17: 4948623 | T17: 0 | U17: 46295 | V17: 557080702 | W17: 0
A19: OPERATING EXPENSES
A20: TOTAL O&M EXPENSE | B20: OM39 | D20: =D436 -> 197699516 | E20: 84777855 | F20: 50298708 | G20: 23989 | H20: 276379 | I20: 665421 | J20: 21181 | K20: 32226154 | L20: 176817 | M20: 18780539 | N20: 418582 | O20: 1557898 | P20: 0 | Q20: 7181749 | R20: 210495 | S20: 1067874 | T20: 0 | U20: 15875 | V20: 197699516 | W20: 0
A21: TOTAL DEPRECIATION EXPENSE | B21: DE49 | D21: =D464 -> 33172220 | E21: 15567749 | F21: 8619041 | G21: 7262 | H21: 36406 | I21: 115549 | J21: 3665 | K21: 4794986 | L21: 53663 | M21: 2532838 | N21: 116305 | O21: 239182 | P21: 0 | Q21: 755949 | R21: 47579 | S21: 279309 | T21: 0 | U21: 2737 | V21: 33172220 | W21: 0
A22: TOTAL OTHER TAX & MISC EXPENSE | B22: L591 | D22: =D490 -> 7634509 | E22: 3752832 | F22: 1924521 | G22: 1606 | H22: 8254 | I22: 26108 | J22: 888 | K22: 1061419 | L22: 11495 | M22: 547338 | N22: 23980 | O22: 50409 | P22: 0 | Q22: 139227 | R22: 8113 | S22: 77664 | T22: 0 | U22: 655 | V22: 7634509 | W22: 0
A23: TOTAL OP EXP EXC INC & R TAX | B23: OP69 | D23: =SUM(D19:D22) -> 238506245 | E23: 104098436 | F23: 60842270 | G23: 32857 | H23: 321039 | I23: 807078 | J23: 25734 | K23: 38082559 | L23: 241975 | M23: 21860715 | N23: 558867 | O23: 1847489 | P23: 0 | Q23: 8076925 | R23: 266187 | S23: 1424847 | T23: 0 | U23: 19267 | V23: 238506245 | W23: 0
A24: NET FED INCOME TAX ALLOWABLE | B24: I879 | D24: =D580 -> 16566971 | E24: 6087437 | F24: 5819928 | G24: 12969 | H24: 56423 | I24: 30351 | J24: 4120 | K24: 2555921 | L24: 52924 | M24: 822850 | N24: 115658 | O24: 101772 | P24: 0 | Q24: 507430 | R24: 58888 | S24: 340586 | T24: 0 | U24: -286 | V24: 16566971 | W24: 0
A25: NET STATE INCOME TAX ALLOWABLE | B25: J979 | D25: =D641 -> 2930903 | E25: 1079408 | F25: 1027484 | G25: 2281 | H25: 9929 | I25: 5408 | J25: 727 | K25: 451933 | L25: 9327 | M25: 146144 | N25: 20380 | O25: 18024 | P25: 0 | Q25: 89531 | R25: 10366 | S25: 60009 | T25: 0 | U25: -48 | V25: 2930903 | W25: 0
A26: AFUDC OFFSET | B26: LO33 | C26: CW29 | D26: -373481 | E26: =V26-SUM(F26:U26) -> -208413 | F26: =ROUND($D26*VLOOKUP($C26,IF(LEFT($C26,1)="K",INDIRECT("TABLE"),INDIRECT("TABLE2")),F$9+1),0) -> -85362 | G26: -83 | H26: -285 | I26: -1457 | J26: -46 | K26: -46953 | L26: -587 | M26: -16319 | N26: -745 | O26: -1243 | P26: 0 | Q26: 6183 | R26: 393 | S26: -18519 | T26: 0 | U26: -45 | V26: -373481 | W26: =D26-V26 -> 0
A27: TOTAL OPERATING EXPENSE | B27: OPEX | D27: =SUM(D23:D26) -> 257630638 | E27: 111056868 | F27: 67604320 | G27: 48024 | H27: 387106 | I27: 841380 | J27: 30535 | K27: 41043460 | L27: 303639 | M27: 22813390 | N27: 694160 | O27: 1966042 | P27: 0 | Q27: 8680069 | R27: 335834 | S27: 1806923 | T27: 0 | U27: 18888 | V27: 257630638 | W27: 0
A29: RETURN ON CAPITALIZATION | B29: R751 | D29: =D341 -> 48805840 | E29: 20120212 | F29: 15372021 | G29: 27871 | H29: 123561 | I29: 119452 | J29: 9789 | K29: 7242001 | L29: 126225 | M29: 2832423 | N29: 274568 | O29: 311747 | P29: 0 | Q29: 1314477 | R29: 132726 | S29: 797854 | T29: 0 | U29: 913 | V29: 48805840 | W29: 0
A30: TOTAL OTHER OPERATING REVENUES | D30: =-D669 -> -1978260 | E30: -902661 | F30: -523189 | G30: -470 | H30: -2582 | I30: -6636 | J30: -236 | K30: -293587 | L30: -3119 | M30: -153759 | N30: -6802 | O30: -14279 | P30: 0 | Q30: -50294 | R30: -2902 | S30: -17594 | T30: 0 | U30: -150 | V30: -1978260 | W30: 0
A31: TOTAL ELECTRIC COST OF SERVICE | B31: CS09 | D31: =SUM(D27:D30) -> 304458218 | E31: 130274419 | F31: 82453152 | G31: 75425 | H31: 508085 | I31: 954196 | J31: 40088 | K31: 47991874 | L31: 426745 | M31: 25492054 | N31: 961926 | O31: 2263510 | P31: 0 | Q31: 9944252 | R31: 465658 | S31: 2587183 | T31: 0 | U31: 19651 | V31: 304458218 | W31: 0
A33: PROPOSED REVENUES | B33: R602 | D33: =D730 -> 304457899 | E33: 130273914 | F33: 82456013 | G33: =G730 -> 72568 | H33: =H730 -> 508085 | I33: =I730 -> 954202 | J33: =J730 -> 40088 | K33: 48554797 | L33: =L730 -> 354772 | M33: =M730 -> 25161199 | N33: 801971 | O33: =O730 -> 2263509 | P33: =P730 -> 0 | Q33: 10000112 | R33: =R730 -> 409837 | S33: 2587182 | T33: 0 | U33: 19650 | V33: 304457899 | W33: 0
A34: EXCESS REVENUES | B34: XREV | D34: =D33-D31 -> -319 | E34: -505 | F34: 2861 | G34: -2857 | H34: 0 | I34: 6 | J34: 0 | K34: 562923 | L34: -71973 | M34: -330855 | N34: -159955 | O34: -1 | P34: 0 | Q34: 55860 | R34: -55821 | S34: -1 | T34: 0 | U34: -1 | V34: -319 | W34: 0
A36: TOTAL RETURN EARNED | B36: RETE | D36: =D694+D29 -> 48805645 | E36: =E694+E29 -> 20119906 | F36: 15373773 | G36: 26121 | H36: 123561 | I36: 119456 | J36: 9789 | K36: 7586723 | L36: 82150 | M36: 2629814 | N36: 176615 | O36: 311746 | P36: 0 | Q36: 1348684 | R36: 98542 | S36: 797853 | T36: 0 | U36: 912 | V36: 48805645 | W36: 0
A37: RATE OF RETURN EARNED ON CAPITALIZATION | B37: RORE | D37: =IF(D17=0,0,ROUND(D36/D17,9)) -> 0.087609649 | E37: 0.077164963 | F37: 0.106591116 | G37: 0.213050039 | H37: 0.199703905 | I37: 0.06149829 | J37: 0.158883966 | K37: 0.093562027 | L37: 0.090504268 | M37: 0.0613019 | N37: 0.089770444 | O37: 0.077969111 | P37: 0 | Q37: 0.10610844 | R37: 0.123272266 | S37: 0.161227275 | T37: 0 | U37: 0.019699752 | V37: 0.087609649 | W37: 0
A38: TOTAL RATE OF RETURN ALLOWABLE | B38: RORA | D38: =$D$720 -> 0.08761 | E38: 0.08761 | F38: 0.08761 | G38: 0.08761 | H38: 0.08761 | I38: 0.08761 | J38: 0.08761 | K38: 0.08761 | L38: 0.08761 | M38: 0.08761 | N38: 0.08761 | O38: 0.08761 | P38: 0.08761 | Q38: 0.08761 | R38: 0.08761 | S38: 0.08761 | T38: 0.08761 | U38: 0.08761 | V38: 0.08761 | W38: 0.08761
A39: RETURN EARNED ON COMMON EQUITY | B39: REOE | D39: =IF($D702=0,0,IF(D37=0,0,(D37-$D$715-$D$716)*$D$705/$D$702)) -> 0.1235598545 | E39: 0.1030325587 | F39: 0.1608647757 | G39: 0.3700921096 | H39: 0.3438624996 | I39: 0.07224231466 | J39: 0.2636376883 | K39: 0.135258265 | L39: 0.1292487475 | M39: 0.07185634273 | N39: 0.1278065383 | O39: 0.1046129781 | P39: 0 | Q39: 0.1599161562 | R39: 0.1936488059 | S39: 0.268243073 | T39: 0 | U39: -0.009905770426 | V39: 0.1235598545 | W39: 0
A40: ALLOWED RETURN ON COMMON EQUITY | B40: AROE | D40: =IF($D$702=0,0,(D38-$D$715-$D$716-$D$718)*$D$705/$D$702) -> 0.1149916884 | E40: 0.1149916884 | F40: 0.1149916884 | G40: =IF($D$702=0,0,(G38-$D$715-$D$716-$D$718)*$D$705/$D$702) -> 0.1149916884 | H40: =IF($D$702=0,0,(H38-$D$715-$D$716-$D$718)*$D$705/$D$702) -> 0.1149916884 | I40: =IF($D$702=0,0,(I38-$D$715-$D$716-$D$718)*$D$705/$D$702) -> 0.1149916884 | J40: =IF($D$702=0,0,(J38-$D$715-$D$716-$D$718)*$D$705/$D$702) -> 0.1149916884 | K40: 0.1149916884 | L40: =IF($D$702=0,0,(L38-$D$715-$D$716-$D$718)*$D$705/$D$702) -> 0.1149916884 | M40: =IF($D$702=0,0,(M38-$D$715-$D$716-$D$718)*$D$705/$D$702) -> 0.1149916884 | N40: 0.1149916884 | O40: =IF($D$702=0,0,(O38-$D$715-$D$716-$D$718)*$D$705/$D$702) -> 0.1149916884 | P40: =IF($D$702=0,0,(P38-$D$715-$D$716-$D$718)*$D$705/$D$702) -> 0.1149916884 | Q40: 0.1149916884 | R40: =IF($D$702=0,0,(R38-$D$715-$D$716-$D$718)*$D$705/$D$702) -> 0.1149916884 | S40: 0.1149916884 | T40: 0.1149916884 | U40: 0.1149916884 | V40: 0.1149916884 | W40: =IF($D$702=0,0,(W38-$D$715-$D$716-$D$718)*$D$705/$D$702) -> 0.1149916884
A42: PRESENT REVENUES | B42: R600 | D42: =D729 -> 237897726 | E42: 97639085 | F42: 66709383 | G42: =G729 -> 70100 | H42: =H729 -> 471911 | I42: =I729 -> 694501 | J42: =J729 -> 35117 | K42: 38378456 | L42: =L729 -> 343715 | M42: =M729 -> 19862321 | N42: 782491 | O42: =O729 -> 1764802 | P42: =P729 -> 0 | Q42: 8534952 | R42: =R729 -> 404272 | S42: 2194212 | T42: 0 | U42: 12408 | V42: 237897726 | W42: 0
A43: REVENUE INCREASE JUSTIFIED | B43: RIJD | D43: =D31-D42 -> 66560492 | E43: 32635334 | F43: 15743769 | G43: 5325 | H43: 36174 | I43: 259695 | J43: 4971 | K43: 9613418 | L43: 83030 | M43: 5629733 | N43: 179435 | O43: 498708 | P43: 0 | Q43: 1409300 | R43: 61386 | S43: 392971 | T43: 0 | U43: 7243 | V43: 66560492 | W43: 0
A44: PER UNIT PRES REV | B44: RIJP | D44: =IF(D42=0,0,ROUND(D43/D42,5)) -> 0.27979 | E44: 0.33424 | F44: 0.23601 | G44: 0.07596 | H44: 0.07665 | I44: 0.37393 | J44: 0.14156 | K44: 0.25049 | L44: 0.24157 | M44: 0.28344 | N44: 0.22931 | O44: 0.28259 | P44: 0 | Q44: 0.16512 | R44: 0.15184 | S44: 0.17909 | T44: 0 | U44: 0.58374 | V44: 0.27979 | W44: 0
A45: REVENUE INCREASE REQUESTED | B45: RIRD | D45: =D33-D42 -> 66560173 | E45: 32634829 | F45: 15746630 | G45: =G33-G42 -> 2468 | H45: =H33-H42 -> 36174 | I45: =I33-I42 -> 259701 | J45: =J33-J42 -> 4971 | K45: 10176341 | L45: =L33-L42 -> 11057 | M45: =M33-M42 -> 5298878 | N45: =N33-N42 -> 19480 | O45: =O33-O42 -> 498707 | P45: =P33-P42 -> 0 | Q45: 1465160 | R45: =R33-R42 -> 5565 | S45: 392970 | T45: 0 | U45: 7242 | V45: 66560173 | W45: 0
A46: PER UNIT PRES REV | B46: RIRP | D46: =IF(D42=0,0,ROUND(D45/D42,5)) -> 0.27978 | E46: 0.33424 | F46: 0.23605 | G46: 0.03521 | H46: 0.07665 | I46: 0.37394 | J46: 0.14156 | K46: 0.26516 | L46: 0.03217 | M46: 0.26678 | N46: 0.02489 | O46: 0.28259 | P46: 0 | Q46: 0.17167 | R46: 0.01377 | S46: 0.17909 | T46: 0 | U46: 0.58366 | V46: 0.27978 | W46: 0
A49: GROSS ELECTRIC PLANT IN SERVICE | B49: Schedule 2
A50: PRODUCTION PLANT
A51: PRODUCTION - STEAM | B51: P100 | C51: K201 | D51: 501176000 | E51: =V51-SUM(F51:U51) -> 224090599 | F51: =ROUND($D51*VLOOKUP($C51,IF(LEFT($C51,1)="K",INDIRECT("TABLE"),INDIRECT("TABLE2")),F$9+1),0) -> 133260343 | G51: 109030 | H51: 587783 | I51: 1698350 | J51: 53117 | K51: 74193419 | L51: 817724 | M51: 41590696 | N51: 1919904 | O51: 4033406 | P51: =ROUND($D51*VLOOKUP($C51,IF(LEFT($C51,1)="K",INDIRECT("TABLE"),INDIRECT("TABLE2")),P$9+1),0) -> 0 | Q51: 16169267 | R51: 1023902 | S51: 1590718 | T51: 0 | U51: 37742 | V51: 501176000 | W51: =D51-V51 -> 0 | Z51: =IF($C51="B","",VLOOKUP($C51,orig_alloc!$A$13:$B$227,2,FALSE)) -> TOTAL KW ( 12 COIN PEAK )
A52: PRODUCTION - OTHER | B52: P106 | C52: K201 | D52: 277834000 | E52: =V52-SUM(F52:U52) -> 124227790 | F52: 73874755 | G52: 60442 | H52: 325846 | I52: 941504 | J52: 29446 | K52: 41130171 | L52: 453317 | M52: 23056390 | N52: 1064326 | O52: 2235976 | P52: 0 | Q52: 8963662 | R52: 567615 | S52: 881837 | T52: 0 | U52: 20923 | V52: 277834000 | W52: =D52-V52 -> 0 | Z52: =IF($C52="B","",VLOOKUP($C52,orig_alloc!$A$13:$B$227,2,FALSE)) -> TOTAL KW ( 12 COIN PEAK )
A53: PRODUCTION PLANT IN SERVICE | B53: P129 | D53: =SUM(D50:D52) -> 779010000 | E53: 348318389 | F53: 207135098 | G53: 169472 | H53: 913629 | I53: 2639854 | J53: 82563 | K53: 115323590 | L53: 1271041 | M53: 64647086 | N53: 2984230 | O53: 6269382 | P53: 0 | Q53: 25132929 | R53: 1591517 | S53: 2472555 | T53: 0 | U53: 58665 | V53: 779010000 | W53: 0 | Z53: =IF($C53="B","",VLOOKUP($C53,orig_alloc!$A$13:$B$227,2,FALSE)) -> 
Z54: =IF($C54="B","",VLOOKUP($C54,orig_alloc!$A$13:$B$227,2,FALSE)) -> 
A55: TRANSMISSION PLANT | Z55: =IF($C55="B","",VLOOKUP($C55,orig_alloc!$A$13:$B$227,2,FALSE)) -> 
A56: MAIN STEP-UP TRANSFORMERS | B56: T100 | C56: K201 | D56: 0 | E56: =V56-SUM(F56:U56) -> 0 | F56: =ROUND($D56*VLOOKUP($C56,IF(LEFT($C56,1)="K",INDIRECT("TABLE"),INDIRECT("TABLE2")),F$9+1),0) -> 0 | G56: 0 | H56: 0 | I56: 0 | J56: 0 | K56: 0 | L56: 0 | M56: 0 | N56: 0 | O56: 0 | P56: =ROUND($D56*VLOOKUP($C56,IF(LEFT($C56,1)="K",INDIRECT("TABLE"),INDIRECT("TABLE2")),P$9+1),0) -> 0 | Q56: 0 | R56: 0 | S56: 0 | T56: 0 | U56: 0 | V56: 0 | W56: =D56-V56 -> 0 | Z56: =IF($C56="B","",VLOOKUP($C56,orig_alloc!$A$13:$B$227,2,FALSE)) -> TOTAL KW ( 12 COIN PEAK )
A57: OTHER TRANSMISSION | B57: T102 | C57: K201 | D57: =23766000 -> 23766000 | E57: =V57-SUM(F57:U57) -> 10626479 | F57: 6319268 | G57: 5170 | H57: 27873 | I57: 80537 | J57: 2519 | K57: 3518287 | L57: 38777 | M57: 1972250 | N57: 91043 | O57: 191266 | P57: 0 | Q57: 766754 | R57: 48554 | S57: 75433 | T57: 0 | U57: 1790 | V57: 23766000 | W57: =D57-V57 -> 0 | Z57: =IF($C57="B","",VLOOKUP($C57,orig_alloc!$A$13:$B$227,2,FALSE)) -> TOTAL KW ( 12 COIN PEAK )
A58: TRANSMISSION PLANT IN SERVICE | B58: T129 | D58: =SUM(D56:D57) -> 23766000 | E58: 10626479 | F58: 6319268 | G58: 5170 | H58: 27873 | I58: 80537 | J58: 2519 | K58: 3518287 | L58: 38777 | M58: 1972250 | N58: 91043 | O58: 191266 | P58: 0 | Q58: 766754 | R58: 48554 | S58: 75433 | T58: 0 | U58: 1790 | V58: =SUM(V55:V57) -> 23766000 | W58: =SUM(W55:W57) -> 0 | Z58: =IF($C58="B","",VLOOKUP($C58,orig_alloc!$A$13:$B$227,2,FALSE)) -> 
Z59: =IF($C59="B","",VLOOKUP($C59,orig_alloc!$A$13:$B$227,2,FALSE)) -> 
A60: TOTAL PROD & TRANS PLANT | B60: PT29 | D60: =D58+D53 -> 802776000 | E60: 358944868 | F60: 213454366 | G60: 174642 | H60: 941502 | I60: 2720391 | J60: 85082 | K60: 118841877 | L60: 1309818 | M60: 66619336 | N60: 3075273 | O60: 6460648 | P60: 0 | Q60: 25899683 | R60: 1640071 | S60: 2547988 | T60: 0 | U60: 60455 | V60: 802776000 | W60: 0 | Z60: =IF($C60="B","",VLOOKUP($C60,orig_alloc!$A$13:$B$227,2,FALSE)) -> 
Z61: =IF($C61="B","",VLOOKUP($C61,orig_alloc!$A$13:$B$227,2,FALSE)) -> 
A62: DISTRIBUTION PLANT | Z62: =IF($C62="B","",VLOOKUP($C62,orig_alloc!$A$13:$B$227,2,FALSE)) -> 
A63: SUBSTATIONS | B63: D100 | C63: K215 | D63: =34202000+3094000+309000 -> 37605000 | E63: =V63-SUM(F63:U63) -> 16967803 | F63: =ROUND($D63*VLOOKUP($C63,IF(LEFT($C63,1)="K",INDIRECT("TABLE"),INDIRECT("TABLE2")),F$9+1),0) -> 10113411 | G63: 9581 | H63: 39501 | I63: 133491 | J63: 3961 | K63: 6041616 | L63: 66799 | M63: 3433565 | N63: 158112 | O63: 296688 | P63: =ROUND($D63*VLOOKUP($C63,IF(LEFT($C63,1)="K",INDIRECT("TABLE"),INDIRECT("TABLE2")),P$9+1),0) -> 0 | Q63: 0 | R63: 0 | S63: 337421 | T63: 0 | U63: 3051 | V63: 37605000 | W63: =D63-V63 -> 0 | Z63: =IF($C63="B","",VLOOKUP($C63,orig_alloc!$A$13:$B$227,2,FALSE)) -> TOTAL DIVERSIFIED CLASS DEMANDS
A64: POLES, TOWERS & FIXTURES | B64: D102 | C64: K205 | D64: =44360000+4460000 -> 48820000 | E64: 22398721 | F64: 13350433 | G64: 12648 | H64: 52145 | I64: 176218 | J64: 5229 | K64: 7975369 | L64: 88180 | M64: 3807334 | N64: 175299 | O64: 328977 | P64: 0 | Q64: 0 | R64: 0 | S64: 445420 | T64: 0 | U64: 4027 | V64: 48820000 | W64: 0 | Z64: =IF($C64="B","",VLOOKUP($C64,orig_alloc!$A$13:$B$227,2,FALSE)) -> DISTRIBUTION LINE - WTD. DIVERSIFIED CLASS
A65: CONDUCTORS | B65: D104 | C65: K205 | D65: =61283000+14371000+33388000 -> 109042000 | E65: 50028708 | F65: 29818883 | G65: 28249 | H65: 116468 | I65: 393591 | J65: 11678 | K65: 17813401 | L65: 196954 | M65: 8503877 | N65: 391540 | O65: 734788 | P65: 0 | Q65: 0 | R65: 0 | S65: 994868 | T65: 0 | U65: 8995 | V65: 109042000 | W65: 0 | Z65: =IF($C65="B","",VLOOKUP($C65,orig_alloc!$A$13:$B$227,2,FALSE)) -> DISTRIBUTION LINE - WTD. DIVERSIFIED CLASS
A66: TRANSFORMERS | B66: D106 | C66: K203 | D66: 47561000 | E66: 31439413 | F66: 10699352 | G66: 10576 | H66: 27969 | I66: 246908 | J66: 5271 | K66: 4788363 | L66: 88686 | M66: 0 | N66: 0 | O66: 0 | P66: 0 | Q66: 0 | R66: 0 | S66: 243394 | T66: 0 | U66: 11068 | V66: 47561000 | W66: 0 | Z66: =IF($C66="B","",VLOOKUP($C66,orig_alloc!$A$13:$B$227,2,FALSE)) -> SECONDARY NON-COIN PEAK (KW)
A67: SERVICES | B67: D108 | C67: K217 | D67: =1716000+515000+10256000 -> 12487000 | E67: 11138071 | F67: 1127362 | G67: 0 | H67: 13481 | I67: 32740 | J67: 2476 | K67: 139396 | L67: 0 | M67: 0 | N67: 0 | O67: 0 | P67: 0 | Q67: 0 | R67: 0 | S67: 31456 | T67: 0 | U67: 2018 | V67: 12487000 | W67: 0 | Z67: =IF($C67="B","",VLOOKUP($C67,orig_alloc!$A$13:$B$227,2,FALSE)) -> WEIGHTED CUSTOMER SERVICE
A68: METERS | B68: D110 | C68: K407 | D68: =13852000+10000 -> 13862000 | E68: 11980490 | F68: 1640700 | G68: 0 | H68: 0 | I68: 48377 | J68: 4050 | K68: 125563 | L68: 0 | M68: 42435 | N68: 0 | O68: 4789 | P68: 0 | Q68: 14751 | R68: 0 | S68: 845 | T68: 0 | U68: 0 | V68: 13862000 | W68: 0 | Z68: =IF($C68="B","",VLOOKUP($C68,orig_alloc!$A$13:$B$227,2,FALSE)) -> METERS
A69: OTHER | B69: D112 | C69: K209 | D69: 0 | E69: 0 | F69: 0 | G69: 0 | H69: 0 | I69: 0 | J69: 0 | K69: 0 | L69: 0 | M69: 0 | N69: 0 | O69: 0 | P69: 0 | Q69: 0 | R69: 0 | S69: 0 | T69: 0 | U69: 0 | V69: 0 | W69: 0 | Z69: =IF($C69="B","",VLOOKUP($C69,orig_alloc!$A$13:$B$227,2,FALSE)) -> GROSS DISTRIBUTION PLANT EXCL. CCNC
A70: STREET LIGHTS | B70: D114 | C70: K401 | D70: =2861000+2819000+1616000+1000 -> 7297000 | E70: 0 | F70: 0 | G70: 0 | H70: 0 | I70: 0 | J70: 0 | K70: 0 | L70: 0 | M70: 0 | N70: 0 | O70: 0 | P70: 0 | Q70: 0 | R70: 0 | S70: 7297000 | T70: 0 | U70: 0 | V70: 7297000 | W70: 0 | Z70: =IF($C70="B","",VLOOKUP($C70,orig_alloc!$A$13:$B$227,2,FALSE)) -> ASSIGN 100% TO LIGHTING
A71: CONSTRUCTION NOT CLASSIFIED | B71: D116 | C71: K209 | D71: 18840000 | E71: 9802432 | F71: 4545323 | G71: 4157 | H71: 16994 | I71: 70228 | J71: 2224 | K71: 2511581 | L71: 30004 | M71: 1075024 | N71: 49365 | O71: 92966 | P71: 0 | Q71: 1004 | R71: 0 | S71: 636712 | T71: 0 | U71: 1986 | V71: 18840000 | W71: 0 | Z71: =IF($C71="B","",VLOOKUP($C71,orig_alloc!$A$13:$B$227,2,FALSE)) -> GROSS DISTRIBUTION PLANT EXCL. CCNC
A72: DISTRIBUTION PLANT IN SERVICE | B72: D149 | D72: =SUM(D62:D71) -> 295514000 | E72: 153755638 | F72: 71295464 | G72: 65211 | H72: 266558 | I72: 1101553 | J72: 34889 | K72: 39395289 | L72: 470623 | M72: 16862235 | N72: 774316 | O72: 1458208 | P72: 0 | Q72: 15755 | R72: 0 | S72: 9987116 | T72: 0 | U72: 31145 | V72: 295514000 | W72: 0 | Z72: =IF($C72="B","",VLOOKUP($C72,orig_alloc!$A$13:$B$227,2,FALSE)) -> 
Z73: =IF($C73="B","",VLOOKUP($C73,orig_alloc!$A$13:$B$227,2,FALSE)) -> 
A74: TOTAL TRANS & DIST PLANT | B74: TD29 | D74: =D72+D58 -> 319280000 | E74: 164382117 | F74: 77614732 | G74: 70381 | H74: 294431 | I74: 1182090 | J74: 37408 | K74: 42913576 | L74: 509400 | M74: 18834485 | N74: 865359 | O74: 1649474 | P74: 0 | Q74: 782509 | R74: 48554 | S74: 10062549 | T74: 0 | U74: 32935 | V74: 319280000 | W74: 0 | Z74: =IF($C74="B","",VLOOKUP($C74,orig_alloc!$A$13:$B$227,2,FALSE)) -> 
A75: TOTAL GROSS PTD PLANT | B75: PD29 | D75: =D72+D60 -> 1098290000 | E75: 512700506 | F75: 284749830 | G75: 239853 | H75: 1208060 | I75: 3821944 | J75: 119971 | K75: 158237166 | L75: 1780441 | M75: 83481571 | N75: 3849589 | O75: 7918856 | P75: 0 | Q75: 25915438 | R75: 1640071 | S75: 12535104 | T75: 0 | U75: 91600 | V75: 1098290000 | W75: 0 | Z75: =IF($C75="B","",VLOOKUP($C75,orig_alloc!$A$13:$B$227,2,FALSE)) -> 
Z76: =IF($C76="B","",VLOOKUP($C76,orig_alloc!$A$13:$B$227,2,FALSE)) -> 
A77: GENERAL & INTANGIBLE PLANT | Z77: =IF($C77="B","",VLOOKUP($C77,orig_alloc!$A$13:$B$227,2,FALSE)) -> 
A78: PRODUCTION-DEMAND | B78: G100 | C78: A300 | D78: =backup!D13 -> 1445000 | E78: =V78-SUM(F78:U78) -> 646102 | F78: =ROUND($D78*VLOOKUP($C78,IF(LEFT($C78,1)="K",INDIRECT("TABLE"),INDIRECT("TABLE2")),F$9+1),0) -> 384219 | G78: 314 | H78: 1695 | I78: 4897 | J78: 153 | K78: 213916 | L78: 2358 | M78: 119915 | N78: 5536 | O78: 11629 | P78: =ROUND($D78*VLOOKUP($C78,IF(LEFT($C78,1)="K",INDIRECT("TABLE"),INDIRECT("TABLE2")),P$9+1),0) -> 0 | Q78: 46619 | R78: 2952 | S78: 4586 | T78: 0 | U78: 109 | V78: 1445000 | W78: =D78-V78 -> 0 | Z78: =IF($C78="B","",VLOOKUP($C78,orig_alloc!$A$13:$B$227,2,FALSE)) -> WTD PROD DEMAND A&G EXP RATIOS
A79: PRODUCTION-ENERGY | B79: G102 | C79: A302 | D79: =backup!D14 -> 627000 | E79: 238860 | F79: 163526 | G79: 49 | H79: 982 | I79: 2215 | J79: 63 | K79: 114477 | L79: 393 | M79: 68288 | N79: 971 | O79: 5375 | P79: 0 | Q79: 27276 | R79: 538 | S79: 3936 | T79: 0 | U79: 51 | V79: 627000 | W79: 0 | Z79: =IF($C79="B","",VLOOKUP($C79,orig_alloc!$A$13:$B$227,2,FALSE)) -> WTD PROD ENERGY A&G EXP RATIOS
A80: TRANSMISSION | B80: G104 | C80: A304 | D80: =backup!D15 -> 93000 | E80: 41584 | F80: 24728 | G80: 20 | H80: 109 | I80: 315 | J80: 10 | K80: 13768 | L80: 152 | M80: 7718 | N80: 356 | O80: 748 | P80: 0 | Q80: 3000 | R80: 190 | S80: 295 | T80: 0 | U80: 7 | V80: 93000 | W80: 0 | Z80: =IF($C80="B","",VLOOKUP($C80,orig_alloc!$A$13:$B$227,2,FALSE)) -> WTD TRANS A&G EXP RATIOS
A81: DISTRIBUTION | B81: G106 | C81: A306 | D81: =backup!D16 -> 603000 | E81: 291171 | F81: 157655 | G81: 143 | H81: 624 | I81: 2166 | J81: 72 | K81: 91426 | L81: 1013 | M81: 45116 | N81: 2072 | O81: 3950 | P81: 0 | Q81: 2798 | R81: 174 | S81: 4573 | T81: 0 | U81: 47 | V81: 603000 | W81: 0 | Z81: =IF($C81="B","",VLOOKUP($C81,orig_alloc!$A$13:$B$227,2,FALSE)) -> WTD DIST A&G EXP RATIOS
A82: CUSTOMER ACCOUNTING | B82: G108 | C82: A308 | D82: =backup!D17 -> 598000 | E82: 529324 | F82: 64040 | G82: 54 | H82: 332 | I82: 525 | J82: 84 | K82: 2157 | L82: 28 | M82: 159 | N82: 23 | O82: 61 | P82: 0 | Q82: 59 | R82: 18 | S82: 1086 | T82: 0 | U82: 50 | V82: 598000 | W82: 0 | Z82: =IF($C82="B","",VLOOKUP($C82,orig_alloc!$A$13:$B$227,2,FALSE)) -> WTD CUST ACCT A&G EXP RATIOS
A83: CUSTOMER SERVICE & INFORMATION | B83: G110 | C83: A310 | D83: =backup!D18 -> 69000 | E83: 45634 | F83: 21523 | G83: 17 | H83: 261 | I83: 211 | J83: 49 | K83: 311 | L83: 10 | M83: 57 | N83: 9 | O83: 21 | P83: 0 | Q83: 19 | R83: 6 | S83: 853 | T83: 0 | U83: 19 | V83: 69000 | W83: 0 | Z83: =IF($C83="B","",VLOOKUP($C83,orig_alloc!$A$13:$B$227,2,FALSE)) -> WTD CUST SERV & INFO A&G EXP RATIOS
A84: SALES | B84: G112 | C84: A312 | D84: =backup!D19 -> 0 | E84: 0 | F84: 0 | G84: 0 | H84: 0 | I84: 0 | J84: 0 | K84: 0 | L84: 0 | M84: 0 | N84: 0 | O84: 0 | P84: 0 | Q84: 0 | R84: 0 | S84: 0 | T84: 0 | U84: 0 | V84: 0 | W84: 0 | Z84: =IF($C84="B","",VLOOKUP($C84,orig_alloc!$A$13:$B$227,2,FALSE)) -> WTD SALES A&G EXP RATIOS
A85: GENERAL & INTANGIBLE PLANT IN SERVICE | B85: G129 | D85: =SUM(D78:D84) -> 3435000 | E85: 1792675 | F85: 815691 | G85: 597 | H85: 4003 | I85: 10329 | J85: 431 | K85: 436055 | L85: 3954 | M85: 241253 | N85: 8967 | O85: 21784 | P85: 0 | Q85: 79771 | R85: 3878 | S85: 15329 | T85: 0 | U85: 283 | V85: 3435000 | W85: 0 | Z85: =IF($C85="B","",VLOOKUP($C85,orig_alloc!$A$13:$B$227,2,FALSE)) -> 
Z86: =IF($C86="B","",VLOOKUP($C86,orig_alloc!$A$13:$B$227,2,FALSE)) -> 
A87: COMMON & OTHER PLANT | Z87: =IF($C87="B","",VLOOKUP($C87,orig_alloc!$A$13:$B$227,2,FALSE)) -> 
A88: PRODUCTION-DEMAND RELATED | B88: C100 | C88: A300 | D88: =backup!F13 -> 8873000 | E88: =V88-SUM(F88:U88) -> 3967381 | F88: =ROUND($D88*VLOOKUP($C88,IF(LEFT($C88,1)="K",INDIRECT("TABLE"),INDIRECT("TABLE2")),F$9+1),0) -> 2359289 | G88: 1931 | H88: 10406 | I88: 30068 | J88: 940 | K88: 1313547 | L88: 14477 | M88: 736337 | N88: 33991 | O88: 71409 | P88: =ROUND($D88*VLOOKUP($C88,IF(LEFT($C88,1)="K",INDIRECT("TABLE"),INDIRECT("TABLE2")),P$9+1),0) -> 0 | Q88: 286266 | R88: 18127 | S88: 28163 | T88: 0 | U88: 668 | V88: 8873000 | W88: =D88-V88 -> 0 | Z88: =IF($C88="B","",VLOOKUP($C88,orig_alloc!$A$13:$B$227,2,FALSE)) -> WTD PROD DEMAND A&G EXP RATIOS
A89: PRODUCTION-ENERGY RELATED | B89: C102 | C89: A302 | D89: =backup!F14 -> 3853000 | E89: 1467840 | F89: 1004887 | G89: 301 | H89: 6033 | I89: 13612 | J89: 390 | K89: 703476 | L89: 2415 | M89: 419639 | N89: 5964 | O89: 33027 | P89: 0 | Q89: 167612 | R89: 3304 | S89: 24187 | T89: 0 | U89: 313 | V89: 3853000 | W89: 0 | Z89: =IF($C89="B","",VLOOKUP($C89,orig_alloc!$A$13:$B$227,2,FALSE)) -> WTD PROD ENERGY A&G EXP RATIOS
A90: TRANSMISSION | B90: C104 | C90: A304 | D90: =backup!F15 -> 569000 | E90: 254419 | F90: 151294 | G90: 123 | H90: 668 | I90: 1928 | J90: 60 | K90: 84234 | L90: 928 | M90: 47219 | N90: 2180 | O90: 4579 | P90: 0 | Q90: 18357 | R90: 1162 | S90: 1806 | T90: 0 | U90: 43 | V90: 569000 | W90: 0 | Z90: =IF($C90="B","",VLOOKUP($C90,orig_alloc!$A$13:$B$227,2,FALSE)) -> WTD TRANS A&G EXP RATIOS
A91: DISTRIBUTION | B91: C106 | C91: A306 | D91: =backup!F16 -> 3708000 | E91: 1790489 | F91: 969461 | G91: 876 | H91: 3839 | I91: 13321 | J91: 441 | K91: 562199 | L91: 6226 | M91: 277429 | N91: 12744 | O91: 24289 | P91: 0 | Q91: 17204 | R91: 1073 | S91: 28119 | T91: 0 | U91: 290 | V91: 3708000 | W91: 0 | Z91: =IF($C91="B","",VLOOKUP($C91,orig_alloc!$A$13:$B$227,2,FALSE)) -> WTD DIST A&G EXP RATIOS
A92: CUSTOMER ACCOUNTING | B92: C108 | C92: A308 | D92: =backup!F17 -> 3671000 | E92: 3249416 | F92: 393128 | G92: 329 | H92: 2039 | I92: 3224 | J92: 513 | K92: 13241 | L92: 173 | M92: 978 | N92: 142 | O92: 373 | P92: 0 | Q92: 360 | R92: 111 | S92: 6664 | T92: 0 | U92: 309 | V92: 3671000 | W92: 0 | Z92: =IF($C92="B","",VLOOKUP($C92,orig_alloc!$A$13:$B$227,2,FALSE)) -> WTD CUST ACCT A&G EXP RATIOS
A93: CUSTOMER SERVICE & INFORMATION | B93: C110 | C93: A310 | D93: =backup!F18 -> 423000 | E93: 279757 | F93: 131942 | G93: 105 | H93: 1602 | I93: 1292 | J93: 302 | K93: 1905 | L93: 64 | M93: 351 | N93: 53 | O93: 129 | P93: 0 | Q93: 117 | R93: 37 | S93: 5227 | T93: 0 | U93: 117 | V93: 423000 | W93: 0 | Z93: =IF($C93="B","",VLOOKUP($C93,orig_alloc!$A$13:$B$227,2,FALSE)) -> WTD CUST SERV & INFO A&G EXP RATIOS
A94: SALES | B94: C112 | C94: A312 | D94: =backup!F19 -> 0 | E94: 0 | F94: 0 | G94: 0 | H94: 0 | I94: 0 | J94: 0 | K94: 0 | L94: 0 | M94: 0 | N94: 0 | O94: 0 | P94: 0 | Q94: 0 | R94: 0 | S94: 0 | T94: 0 | U94: 0 | V94: 0 | W94: 0 | Z94: =IF($C94="B","",VLOOKUP($C94,orig_alloc!$A$13:$B$227,2,FALSE)) -> WTD SALES A&G EXP RATIOS
A95: COMMON & OTHER PLANT IN SERVICE | B95: C129 | D95: =backup!F20 -> 21097000 | E95: =SUM(E88:E94) -> 11009302 | F95: 5010001 | G95: 3665 | H95: 24587 | I95: 63445 | J95: 2646 | K95: 2678602 | L95: 24283 | M95: 1481953 | N95: 55074 | O95: 133806 | P95: 0 | Q95: 489916 | R95: 23814 | S95: 94166 | T95: 0 | U95: 1740 | V95: 21097000 | W95: 0 | Z95: =IF($C95="B","",VLOOKUP($C95,orig_alloc!$A$13:$B$227,2,FALSE)) -> 
Z96: =IF($C96="B","",VLOOKUP($C96,orig_alloc!$A$13:$B$227,2,FALSE)) -> 
A97: GROSS ELECTRIC PLANT IN SERVICE | B97: GP19 | D97: =D75+D85+D95 -> 1122822000 | E97: 525502483 | F97: 290575522 | G97: 244115 | H97: 1236650 | I97: 3895718 | J97: 123048 | K97: 161351823 | L97: 1808678 | M97: 85204777 | N97: 3913630 | O97: 8074446 | P97: 0 | Q97: 26485125 | R97: 1667763 | S97: 12644599 | T97: 0 | U97: 93623 | V97: 1122822000 | W97: 0 | Z97: =IF($C97="B","",VLOOKUP($C97,orig_alloc!$A$13:$B$227,2,FALSE)) -> 
Z98: =IF($C98="B","",VLOOKUP($C98,orig_alloc!$A$13:$B$227,2,FALSE)) -> 
A99: DEPRECIATION RESERVE | B99: Schedule 3 | Z99: =IF($C99="B","",VLOOKUP($C99,orig_alloc!$A$13:$B$227,2,FALSE)) -> 
A100: PRODUCTION PLANT | Z100: =IF($C100="B","",VLOOKUP($C100,orig_alloc!$A$13:$B$227,2,FALSE)) -> 
A101: PRODUCTION - STEAM | B101: P150 | C101: K201 | D101: 275391000 | E101: =V101-SUM(F101:U101) -> 123135454 | F101: =ROUND($D101*VLOOKUP($C101,IF(LEFT($C101,1)="K",INDIRECT("TABLE"),INDIRECT("TABLE2")),F$9+1),0) -> 73225173 | G101: 59911 | H101: 322980 | I101: 933225 | J101: 29187 | K101: 40768512 | L101: 449331 | M101: 22853655 | N101: 1054967 | O101: 2216315 | P101: 0 | Q101: 8884844 | R101: 562624 | S101: 874083 | T101: 0 | U101: =ROUND($D101*VLOOKUP($C101,IF(LEFT($C101,1)="K",INDIRECT("TABLE"),INDIRECT("TABLE2")),U$9+1),0)+Y101 -> 20739 | V101: =ROUND($D101*VLOOKUP($C101,IF(LEFT($C101,1)="K",INDIRECT("TABLE"),INDIRECT("TABLE2")),V$9+1),0)+Y101 -> 275391000 | W101: =D101-V101 -> 0 | Z101: =IF($C101="B","",VLOOKUP($C101,orig_alloc!$A$13:$B$227,2,FALSE)) -> TOTAL KW ( 12 COIN PEAK )
A102: PRODUCTION - OTHER | B102: P152 | C102: K201 | D102: 126716000 | E102: =V102-SUM(F102:U102) -> 56658469 | F102: 33693189 | G102: 27567 | H102: 148613 | I102: 429406 | J102: 13430 | K102: 18758866 | L102: 206751 | M102: 10515680 | N102: 485423 | O102: 1019796 | P102: 0 | Q102: 4088194 | R102: 258881 | S102: 402193 | T102: 0 | U102: =ROUND($D102*VLOOKUP($C102,IF(LEFT($C102,1)="K",INDIRECT("TABLE"),INDIRECT("TABLE2")),U$9+1),0) -> 9542 | V102: =ROUND($D102*VLOOKUP($C102,IF(LEFT($C102,1)="K",INDIRECT("TABLE"),INDIRECT("TABLE2")),V$9+1),0) -> 126716000 | W102: =D102-V102 -> 0 | Z102: =IF($C102="B","",VLOOKUP($C102,orig_alloc!$A$13:$B$227,2,FALSE)) -> TOTAL KW ( 12 COIN PEAK )
A103: TOTAL PROD DEPREC RESERVE | B103: P171 | D103: =SUM(D100:D102) -> 402107000 | E103: 179793923 | F103: 106918362 | G103: 87478 | H103: 471593 | I103: 1362631 | J103: 42617 | K103: 59527378 | L103: 656082 | M103: 33369335 | N103: 1540390 | O103: 3236111 | P103: 0 | Q103: 12973038 | R103: 821505 | S103: 1276276 | T103: 0 | U103: 30281 | V103: 402107000 | W103: 0 | Z103: =IF($C103="B","",VLOOKUP($C103,orig_alloc!$A$13:$B$227,2,FALSE)) -> 
Z104: =IF($C104="B","",VLOOKUP($C104,orig_alloc!$A$13:$B$227,2,FALSE)) -> 
A105: TRANSMISSION PLANT | Z105: =IF($C105="B","",VLOOKUP($C105,orig_alloc!$A$13:$B$227,2,FALSE)) -> 
A106: MAIN STEP-UP TRANSFORMERS | C106: K201 | D106: 0 | E106: =V106-SUM(F106:U106) -> 0 | F106: =ROUND($D106*VLOOKUP($C106,IF(LEFT($C106,1)="K",INDIRECT("TABLE"),INDIRECT("TABLE2")),F$9+1),0) -> 0 | G106: 0 | H106: 0 | I106: 0 | J106: 0 | K106: 0 | L106: 0 | M106: 0 | N106: 0 | O106: 0 | P106: =ROUND($D106*VLOOKUP($C106,IF(LEFT($C106,1)="K",INDIRECT("TABLE"),INDIRECT("TABLE2")),P$9+1),0) -> 0 | Q106: 0 | R106: 0 | S106: 0 | T106: 0 | U106: 0 | V106: 0 | W106: =D106-V106 -> 0 | Z106: =IF($C106="B","",VLOOKUP($C106,orig_alloc!$A$13:$B$227,2,FALSE)) -> TOTAL KW ( 12 COIN PEAK )
A107: OTHER TRANSMISSION | B107: T150 | C107: K201 | D107: =10203000-D106 -> 10203000 | E107: =V107-SUM(F107:U107) -> 4562063 | F107: 2712930 | G107: 2220 | H107: 11966 | I107: 34575 | J107: 1081 | K107: 1510438 | L107: 16647 | M107: 846708 | N107: 39086 | O107: 82113 | P107: 0 | Q107: 329176 | R107: 20845 | S107: 32384 | T107: 0 | U107: 768 | V107: 10203000 | W107: =D107-V107 -> 0 | Z107: =IF($C107="B","",VLOOKUP($C107,orig_alloc!$A$13:$B$227,2,FALSE)) -> TOTAL KW ( 12 COIN PEAK )
A108: TOTAL TRANS DEPREC RESERVE | B108: T171 | D108: =SUM(D106:D107) -> 10203000 | E108: 4562063 | F108: 2712930 | G108: 2220 | H108: 11966 | I108: 34575 | J108: 1081 | K108: 1510438 | L108: 16647 | M108: 846708 | N108: 39086 | O108: 82113 | P108: 0 | Q108: 329176 | R108: 20845 | S108: 32384 | T108: 0 | U108: 768 | V108: 10203000 | W108: 0 | Z108: =IF($C108="B","",VLOOKUP($C108,orig_alloc!$A$13:$B$227,2,FALSE)) -> 
Z109: =IF($C109="B","",VLOOKUP($C109,orig_alloc!$A$13:$B$227,2,FALSE)) -> 
A110: TOTAL PROD & TRANS DEPREC RESERVE | D110: =D108+D103 -> 412310000 | E110: 184355986 | F110: 109631292 | G110: 89698 | H110: 483559 | I110: 1397206 | J110: 43698 | K110: 61037816 | L110: 672729 | M110: 34216043 | N110: 1579476 | O110: 3318224 | P110: 0 | Q110: 13302214 | R110: 842350 | S110: 1308660 | T110: 0 | U110: 31049 | V110: 412310000 | W110: 0 | Z110: =IF($C110="B","",VLOOKUP($C110,orig_alloc!$A$13:$B$227,2,FALSE)) -> 
Z111: =IF($C111="B","",VLOOKUP($C111,orig_alloc!$A$13:$B$227,2,FALSE)) -> 
A112: DISTRIBUTION PLANT | Z112: =IF($C112="B","",VLOOKUP($C112,orig_alloc!$A$13:$B$227,2,FALSE)) -> 
A113: SUBSTATIONS | B113: D150 | C113: K215 | D113: 8437000 | E113: =V113-SUM(F113:U113) -> 3806870 | F113: =ROUND($D113*VLOOKUP($C113,IF(LEFT($C113,1)="K",INDIRECT("TABLE"),INDIRECT("TABLE2")),F$9+1),0) -> 2269029 | G113: 2150 | H113: 8862 | I113: 29950 | J113: 889 | K113: 1355488 | L113: 14987 | M113: 770349 | N113: 35474 | O113: 66565 | P113: =ROUND($D113*VLOOKUP($C113,IF(LEFT($C113,1)="K",INDIRECT("TABLE"),INDIRECT("TABLE2")),P$9+1),0) -> 0 | Q113: 0 | R113: 0 | S113: 75703 | T113: 0 | U113: 684 | V113: 8437000 | W113: =D113-V113 -> 0 | Z113: =IF($C113="B","",VLOOKUP($C113,orig_alloc!$A$13:$B$227,2,FALSE)) -> TOTAL DIVERSIFIED CLASS DEMANDS
A114: POLES, TOWERS & FIXTURES | B114: D152 | C114: K205 | D114: =16672000+2322000 -> 18994000 | E114: 8714489 | F114: 5194144 | G114: 4921 | H114: 20287 | I114: 68560 | J114: 2034 | K114: 3102912 | L114: 34307 | M114: 1481288 | N114: 68202 | O114: 127993 | P114: 0 | Q114: 0 | R114: 0 | S114: 173296 | T114: 0 | U114: 1567 | V114: 18994000 | W114: 0 | Z114: =IF($C114="B","",VLOOKUP($C114,orig_alloc!$A$13:$B$227,2,FALSE)) -> DISTRIBUTION LINE - WTD. DIVERSIFIED CLASS
A115: CONDUCTORS | B115: D154 | C115: K205 | D115: 41040000 | E115: 18829244 | F115: 11222895 | G115: 10632 | H115: 43835 | I115: 148135 | J115: 4395 | K115: 6704407 | L115: 74127 | M115: 3200593 | N115: 147363 | O115: 276551 | P115: 0 | Q115: 0 | R115: 0 | S115: 374437 | T115: 0 | U115: 3386 | V115: 41040000 | W115: 0 | Z115: =IF($C115="B","",VLOOKUP($C115,orig_alloc!$A$13:$B$227,2,FALSE)) -> DISTRIBUTION LINE - WTD. DIVERSIFIED CLASS
A116: TRANSFORMERS | B116: D156 | C116: K203 | D116: =23055000+274000 -> 23329000 | E116: 15421251 | F116: 5248106 | G116: 5188 | H116: 13719 | I116: 121110 | J116: 2585 | K116: 2348725 | L116: 43501 | M116: 0 | N116: 0 | O116: 0 | P116: 0 | Q116: 0 | R116: 0 | S116: 119386 | T116: 0 | U116: 5429 | V116: 23329000 | W116: 0 | Z116: =IF($C116="B","",VLOOKUP($C116,orig_alloc!$A$13:$B$227,2,FALSE)) -> SECONDARY NON-COIN PEAK (KW)
A117: SERVICES | B117: D158 | C117: K217 | D117: 8196000 | E117: 7310616 | F117: 739958 | G117: 0 | H117: 8848 | I117: 21489 | J117: 1625 | K117: 91494 | L117: 0 | M117: 0 | N117: 0 | O117: 0 | P117: 0 | Q117: 0 | R117: 0 | S117: 20646 | T117: 0 | U117: 1324 | V117: 8196000 | W117: 0 | Z117: =IF($C117="B","",VLOOKUP($C117,orig_alloc!$A$13:$B$227,2,FALSE)) -> WEIGHTED CUSTOMER SERVICE
A118: METERS | B118: D160 | C118: K407 | D118: =2781000+10000 -> 2791000 | E118: 2412174 | F118: 330341 | G118: 0 | H118: 0 | I118: 9740 | J118: 816 | K118: 25281 | L118: 0 | M118: 8544 | N118: 0 | O118: 964 | P118: 0 | Q118: 2970 | R118: 0 | S118: 170 | T118: 0 | U118: 0 | V118: 2791000 | W118: 0 | Z118: =IF($C118="B","",VLOOKUP($C118,orig_alloc!$A$13:$B$227,2,FALSE)) -> METERS
A119: DEPRECIATION EXPENSE ADJUSTMENT | B119: D162 | C119: K209 | D119: 227766 | E119: 118506 | F119: 54951 | G119: 50 | H119: 205 | I119: 849 | J119: 27 | K119: 30364 | L119: 363 | M119: 12996 | N119: 597 | O119: 1124 | P119: 0 | Q119: 12 | R119: 0 | S119: 7698 | T119: 0 | U119: 24 | V119: 227766 | W119: 0 | Z119: =IF($C119="B","",VLOOKUP($C119,orig_alloc!$A$13:$B$227,2,FALSE)) -> GROSS DISTRIBUTION PLANT EXCL. CCNC
A120: STREET LIGHTS | B120: D164 | C120: K401 | D120: =2467000+1280000+1386000 -> 5133000 | E120: 0 | F120: 0 | G120: 0 | H120: 0 | I120: 0 | J120: 0 | K120: 0 | L120: 0 | M120: 0 | N120: 0 | O120: 0 | P120: 0 | Q120: 0 | R120: 0 | S120: 5133000 | T120: 0 | U120: 0 | V120: 5133000 | W120: 0 | Z120: =IF($C120="B","",VLOOKUP($C120,orig_alloc!$A$13:$B$227,2,FALSE)) -> ASSIGN 100% TO LIGHTING
A121: COMPLETED CONSTRUCTION NOT CLASSIFIED | B121: D162 | C121: K209 | D121: =9164000 -> 9164000 | E121: 4768019 | F121: 2210899 | G121: 2022 | H121: 8266 | I121: 34160 | J121: 1082 | K121: 1221663 | L121: 14594 | M121: 522904 | N121: 24012 | O121: 45220 | P121: 0 | Q121: 489 | R121: 0 | S121: 309704 | T121: 0 | U121: 966 | V121: 9164000 | W121: 0 | Z121: =IF($C121="B","",VLOOKUP($C121,orig_alloc!$A$13:$B$227,2,FALSE)) -> GROSS DISTRIBUTION PLANT EXCL. CCNC
A122: RETIREMENT WORK IN PROGRESS | B122: D166 | C122: K209 | D122: -1581000 | E122: -822592 | F122: -381431 | G122: -349 | H122: -1426 | I122: -5893 | J122: -187 | K122: -210765 | L122: -2518 | M122: -90213 | N122: -4143 | O122: -7801 | P122: 0 | Q122: -84 | R122: 0 | S122: -53431 | T122: 0 | U122: -167 | V122: -1581000 | W122: 0 | Z122: =IF($C122="B","",VLOOKUP($C122,orig_alloc!$A$13:$B$227,2,FALSE)) -> GROSS DISTRIBUTION PLANT EXCL. CCNC
A123: TOTAL DIST DEPREC RESERVE | B123: D191 | D123: =SUM(D112:D122) -> 115730766 | E123: 60558577 | F123: 26888892 | G123: 24614 | H123: 102596 | I123: 428100 | J123: 13266 | K123: 14669569 | L123: 179361 | M123: 5906461 | N123: 271505 | O123: 510616 | P123: 0 | Q123: 3387 | R123: 0 | S123: 6160609 | T123: 0 | U123: 13213 | V123: 115730766 | W123: 0 | Z123: =IF($C123="B","",VLOOKUP($C123,orig_alloc!$A$13:$B$227,2,FALSE)) -> 
Z124: =IF($C124="B","",VLOOKUP($C124,orig_alloc!$A$13:$B$227,2,FALSE)) -> 
A125: TOTAL TRANS & DIST DEPREC RESERVE | D125: =D123+D108 -> 125933766 | E125: 65120640 | F125: 29601822 | G125: 26834 | H125: 114562 | I125: 462675 | J125: 14347 | K125: 16180007 | L125: 196008 | M125: 6753169 | N125: 310591 | O125: 592729 | P125: 0 | Q125: 332563 | R125: 20845 | S125: 6192993 | T125: 0 | U125: 13981 | V125: 125933766 | W125: 0 | Z125: =IF($C125="B","",VLOOKUP($C125,orig_alloc!$A$13:$B$227,2,FALSE)) -> 
A126: TOTAL GROSS PTD PLANT DEPREC RESERVE | D126: =D123+D110 -> 528040766 | E126: 244914563 | F126: 136520184 | G126: 114312 | H126: 586155 | I126: 1825306 | J126: 56964 | K126: 75707385 | L126: 852090 | M126: 40122504 | N126: 1850981 | O126: 3828840 | P126: 0 | Q126: 13305601 | R126: 842350 | S126: 7469269 | T126: 0 | U126: 44262 | V126: 528040766 | W126: 0 | Z126: =IF($C126="B","",VLOOKUP($C126,orig_alloc!$A$13:$B$227,2,FALSE)) -> 
Z127: =IF($C127="B","",VLOOKUP($C127,orig_alloc!$A$13:$B$227,2,FALSE)) -> 
A128: GENERAL & INTANGIBLE PLANT | Z128: =IF($C128="B","",VLOOKUP($C128,orig_alloc!$A$13:$B$227,2,FALSE)) -> 
A129: PRODUCTION-DEMAND | B129: G150 | C129: A300 | D129: =backup!E13 -> 768000 | E129: =V129-SUM(F129:U129) -> 343395 | F129: =ROUND($D129*VLOOKUP($C129,IF(LEFT($C129,1)="K",INDIRECT("TABLE"),INDIRECT("TABLE2")),F$9+1),0) -> 204208 | G129: 167 | H129: 901 | I129: 2602 | J129: 81 | K129: 113694 | L129: 1253 | M129: 63733 | N129: 2942 | O129: 6181 | P129: =ROUND($D129*VLOOKUP($C129,IF(LEFT($C129,1)="K",INDIRECT("TABLE"),INDIRECT("TABLE2")),P$9+1),0) -> 0 | Q129: 24778 | R129: 1569 | S129: 2438 | T129: 0 | U129: 58 | V129: 768000 | W129: =D129-V129 -> 0 | Z129: =IF($C129="B","",VLOOKUP($C129,orig_alloc!$A$13:$B$227,2,FALSE)) -> WTD PROD DEMAND A&G EXP RATIOS
A130: PRODUCTION-ENERGY | B130: G152 | C130: A302 | D130: =backup!E14 -> 334000 | E130: 127241 | F130: 87109 | G130: 26 | H130: 523 | I130: 1180 | J130: 34 | K130: 60981 | L130: 209 | M130: 36377 | N130: 517 | O130: 2863 | P130: 0 | Q130: 14530 | R130: 286 | S130: 2097 | T130: 0 | U130: 27 | V130: 334000 | W130: 0 | Z130: =IF($C130="B","",VLOOKUP($C130,orig_alloc!$A$13:$B$227,2,FALSE)) -> WTD PROD ENERGY A&G EXP RATIOS
A131: TRANSMISSION | B131: G154 | C131: A304 | D131: =backup!E15 -> 49000 | E131: 21909 | F131: 13029 | G131: 11 | H131: 57 | I131: 166 | J131: 5 | K131: 7254 | L131: 80 | M131: 4066 | N131: 188 | O131: 394 | P131: 0 | Q131: 1581 | R131: 100 | S131: 156 | T131: 0 | U131: 4 | V131: 49000 | W131: 0 | Z131: =IF($C131="B","",VLOOKUP($C131,orig_alloc!$A$13:$B$227,2,FALSE)) -> WTD TRANS A&G EXP RATIOS
A132: DISTRIBUTION | B132: G156 | C132: A306 | D132: =backup!E16 -> 321000 | E132: 155003 | F132: 83926 | G132: 76 | H132: 332 | I132: 1153 | J132: 38 | K132: 48669 | L132: 539 | M132: 24017 | N132: 1103 | O132: 2103 | P132: 0 | Q132: 1489 | R132: 93 | S132: 2434 | T132: 0 | U132: 25 | V132: 321000 | W132: 0 | Z132: =IF($C132="B","",VLOOKUP($C132,orig_alloc!$A$13:$B$227,2,FALSE)) -> WTD DIST A&G EXP RATIOS
A133: CUSTOMER ACCOUNTING | B133: G158 | C133: A308 | D133: =backup!E17 -> 318000 | E133: 281481 | F133: 34055 | G133: 28 | H133: 177 | I133: 279 | J133: 44 | K133: 1147 | L133: 15 | M133: 85 | N133: 12 | O133: 32 | P133: 0 | Q133: 31 | R133: 10 | S133: 577 | T133: 0 | U133: 27 | V133: 318000 | W133: 0 | Z133: =IF($C133="B","",VLOOKUP($C133,orig_alloc!$A$13:$B$227,2,FALSE)) -> WTD CUST ACCT A&G EXP RATIOS
A134: CUSTOMER SERVICE & INFORMATION | B134: G160 | C134: A310 | D134: =backup!E18 -> 37000 | E134: 24471 | F134: 11541 | G134: 9 | H134: 140 | I134: 113 | J134: 26 | K134: 167 | L134: 6 | M134: 31 | N134: 5 | O134: 11 | P134: 0 | Q134: 10 | R134: 3 | S134: 457 | T134: 0 | U134: 10 | V134: 37000 | W134: 0 | Z134: =IF($C134="B","",VLOOKUP($C134,orig_alloc!$A$13:$B$227,2,FALSE)) -> WTD CUST SERV & INFO A&G EXP RATIOS
A135: SALES | B135: G162 | C135: A312 | D135: =backup!E19 -> 0 | E135: 0 | F135: 0 | G135: 0 | H135: 0 | I135: 0 | J135: 0 | K135: 0 | L135: 0 | M135: 0 | N135: 0 | O135: 0 | P135: 0 | Q135: 0 | R135: 0 | S135: 0 | T135: 0 | U135: 0 | V135: 0 | W135: 0 | Z135: =IF($C135="B","",VLOOKUP($C135,orig_alloc!$A$13:$B$227,2,FALSE)) -> WTD SALES A&G EXP RATIOS
A136: TOTAL GEN & INTANGIBLE DEPREC RES. | B136: G171 | D136: =SUM(D129:D135) -> 1827000 | E136: 953500 | F136: 433868 | G136: 317 | H136: 2130 | I136: 5493 | J136: 228 | K136: 231912 | L136: 2102 | M136: 128309 | N136: 4767 | O136: 11584 | P136: 0 | Q136: 42419 | R136: 2061 | S136: 8159 | T136: 0 | U136: 151 | V136: 1827000 | W136: 0 | Z136: =IF($C136="B","",VLOOKUP($C136,orig_alloc!$A$13:$B$227,2,FALSE)) -> 
Z137: =IF($C137="B","",VLOOKUP($C137,orig_alloc!$A$13:$B$227,2,FALSE)) -> 
A138: COMMON & OTHER PLANT | Z138: =IF($C138="B","",VLOOKUP($C138,orig_alloc!$A$13:$B$227,2,FALSE)) -> 
A139: PRODUCTION-DEMAND | B139: C150 | C139: A300 | D139: =backup!G13 -> 4301000 | E139: =V139-SUM(F139:U139) -> 1923105 | F139: =ROUND($D139*VLOOKUP($C139,IF(LEFT($C139,1)="K",INDIRECT("TABLE"),INDIRECT("TABLE2")),F$9+1),0) -> 1143616 | G139: 936 | H139: 5044 | I139: 14575 | J139: 456 | K139: 636714 | L139: 7017 | M139: 356924 | N139: 16476 | O139: 34614 | P139: =ROUND($D139*VLOOKUP($C139,IF(LEFT($C139,1)="K",INDIRECT("TABLE"),INDIRECT("TABLE2")),P$9+1),0) -> 0 | Q139: 138761 | R139: 8787 | S139: 13651 | T139: 0 | U139: 324 | V139: 4301000 | W139: =D139-V139 -> 0 | Z139: =IF($C139="B","",VLOOKUP($C139,orig_alloc!$A$13:$B$227,2,FALSE)) -> WTD PROD DEMAND A&G EXP RATIOS
A140: PRODUCTION-ENERGY | B140: C152 | C140: A302 | D140: =backup!G14 -> 1868000 | E140: 711634 | F140: 487186 | G140: 146 | H140: 2925 | I140: 6599 | J140: 189 | K140: 341057 | L140: 1171 | M140: 203448 | N140: 2892 | O140: 16012 | P140: 0 | Q140: 81261 | R140: 1602 | S140: 11726 | T140: 0 | U140: 152 | V140: 1868000 | W140: 0 | Z140: =IF($C140="B","",VLOOKUP($C140,orig_alloc!$A$13:$B$227,2,FALSE)) -> WTD PROD ENERGY A&G EXP RATIOS
A141: TRANSMISSION | B141: C154 | C141: A304 | D141: =backup!G15 -> 276000 | E141: 123409 | F141: 73387 | G141: 60 | H141: 324 | I141: 935 | J141: 29 | K141: 40859 | L141: 450 | M141: 22904 | N141: 1057 | O141: 2221 | P141: 0 | Q141: 8904 | R141: 564 | S141: 876 | T141: 0 | U141: 21 | V141: 276000 | W141: 0 | Z141: =IF($C141="B","",VLOOKUP($C141,orig_alloc!$A$13:$B$227,2,FALSE)) -> WTD TRANS A&G EXP RATIOS
A142: DISTRIBUTION | B142: C156 | C142: A306 | D142: =backup!G16 -> 1796000 | E142: 867236 | F142: 469566 | G142: 424 | H142: 1860 | I142: 6452 | J142: 214 | K142: 272306 | L142: 3016 | M142: 134375 | N142: 6173 | O142: 11765 | P142: 0 | Q142: 8333 | R142: 520 | S142: 13620 | T142: 0 | U142: 140 | V142: 1796000 | W142: 0 | Z142: =IF($C142="B","",VLOOKUP($C142,orig_alloc!$A$13:$B$227,2,FALSE)) -> WTD DIST A&G EXP RATIOS
A143: CUSTOMER ACCOUNTING | B143: C158 | C143: A308 | D143: =backup!G17 -> 1780000 | E143: 1575583 | F143: 190620 | G143: 159 | H143: 988 | I143: 1563 | J143: 249 | K143: 6420 | L143: 84 | M143: 474 | N143: 69 | O143: 181 | P143: 0 | Q143: 175 | R143: 54 | S143: 3231 | T143: 0 | U143: 150 | V143: 1780000 | W143: 0 | Z143: =IF($C143="B","",VLOOKUP($C143,orig_alloc!$A$13:$B$227,2,FALSE)) -> WTD CUST ACCT A&G EXP RATIOS
A144: CUSTOMER SERVICE & INFORMATION | B144: C160 | C144: A310 | D144: =backup!G18 -> 205000 | E144: 135578 | F144: 63944 | G144: 51 | H144: 777 | I144: 626 | J144: 146 | K144: 923 | L144: 31 | M144: 170 | N144: 26 | O144: 63 | P144: 0 | Q144: 57 | R144: 18 | S144: 2533 | T144: 0 | U144: 57 | V144: 205000 | W144: 0 | Z144: =IF($C144="B","",VLOOKUP($C144,orig_alloc!$A$13:$B$227,2,FALSE)) -> WTD CUST SERV & INFO A&G EXP RATIOS
A145: SALES | B145: C162 | C145: A312 | D145: =backup!G19 -> 0 | E145: 0 | F145: 0 | G145: 0 | H145: 0 | I145: 0 | J145: 0 | K145: 0 | L145: 0 | M145: 0 | N145: 0 | O145: 0 | P145: 0 | Q145: 0 | R145: 0 | S145: 0 | T145: 0 | U145: 0 | V145: 0 | W145: 0 | Z145: =IF($C145="B","",VLOOKUP($C145,orig_alloc!$A$13:$B$227,2,FALSE)) -> WTD SALES A&G EXP RATIOS
A146: TOTAL COM & OTHER PLT RESERVE | B146: C171 | D146: =SUM(D139:D145) -> 10226000 | E146: 5336545 | F146: 2428319 | G146: 1776 | H146: 11918 | I146: 30750 | J146: 1283 | K146: 1298279 | L146: 11769 | M146: 718295 | N146: 26693 | O146: 64856 | P146: 0 | Q146: 237491 | R146: 11545 | S146: 45637 | T146: 0 | U146: 844 | V146: 10226000 | W146: 0 | Z146: =IF($C146="B","",VLOOKUP($C146,orig_alloc!$A$13:$B$227,2,FALSE)) -> 
Z147: =IF($C147="B","",VLOOKUP($C147,orig_alloc!$A$13:$B$227,2,FALSE)) -> 
A148: TOTAL DEPRECIATION RESERVE | B148: DR19 | D148: =D146+D136+D123+D108+D103 -> 540093766 | E148: 251204608 | F148: 139382371 | G148: 116405 | H148: 600203 | I148: 1861549 | J148: 58475 | K148: 77237576 | L148: 865961 | M148: 40969108 | N148: 1882441 | O148: 3905280 | P148: 0 | Q148: 13585511 | R148: 855956 | S148: 7523065 | T148: 0 | U148: 45257 | V148: 540093766 | W148: 0 | Z148: =IF($C148="B","",VLOOKUP($C148,orig_alloc!$A$13:$B$227,2,FALSE)) -> 
Z149: =IF($C149="B","",VLOOKUP($C149,orig_alloc!$A$13:$B$227,2,FALSE)) -> 
A150: NET ELECTRIC PLANT IN SERVICE | B150: Schedule 4 | Z150: =IF($C150="B","",VLOOKUP($C150,orig_alloc!$A$13:$B$227,2,FALSE)) -> 
A151: PRODUCTION PLANT | Z151: =IF($C151="B","",VLOOKUP($C151,orig_alloc!$A$13:$B$227,2,FALSE)) -> 
A152: PRODUCTION - STEAM | D152: =D51-D101 -> 225785000 | E152: 100955145 | F152: 60035170 | G152: 49119 | H152: 264803 | I152: 765125 | J152: 23930 | K152: 33424907 | L152: 368393 | M152: 18737041 | N152: 864937 | O152: 1817091 | P152: 0 | Q152: 7284423 | R152: 461278 | S152: 716635 | T152: 0 | U152: 17003 | V152: =SUM(E152:U152) -> 225785000 | W152: =D152-V152 -> 0 | Z152: =IF($C152="B","",VLOOKUP($C152,orig_alloc!$A$13:$B$227,2,FALSE)) -> 
A153: PRODUCTION - OTHER | D153: =D52-D102 -> 151118000 | E153: 67569321 | F153: 40181566 | G153: 32875 | H153: 177233 | I153: 512098 | J153: 16016 | K153: 22371305 | L153: 246566 | M153: 12540710 | N153: 578903 | O153: 1216180 | P153: 0 | Q153: 4875468 | R153: 308734 | S153: 479644 | T153: 0 | U153: 11381 | V153: =SUM(E153:U153) -> 151118000 | W153: =W52-W102 -> 0 | Z153: =IF($C153="B","",VLOOKUP($C153,orig_alloc!$A$13:$B$227,2,FALSE)) -> 
A154: TOTAL PROD | B154: P229 | D154: =SUM(D152:D153) -> 376903000 | E154: 168524466 | F154: 100216736 | G154: 81994 | H154: 442036 | I154: 1277223 | J154: 39946 | K154: 55796212 | L154: 614959 | M154: 31277751 | N154: 1443840 | O154: 3033271 | P154: 0 | Q154: 12159891 | R154: 770012 | S154: 1196279 | T154: 0 | U154: 28384 | V154: 376903000 | W154: 0 | Z154: =IF($C154="B","",VLOOKUP($C154,orig_alloc!$A$13:$B$227,2,FALSE)) -> 
Z155: =IF($C155="B","",VLOOKUP($C155,orig_alloc!$A$13:$B$227,2,FALSE)) -> 
A156: TRANSMISSION PLANT | Z156: =IF($C156="B","",VLOOKUP($C156,orig_alloc!$A$13:$B$227,2,FALSE)) -> 
A157: MAIN STEP-UP TRANSFORMERS | D157: =D56-D106 -> 0 | E157: 0 | F157: 0 | G157: 0 | H157: 0 | I157: 0 | J157: 0 | K157: 0 | L157: 0 | M157: 0 | N157: 0 | O157: 0 | P157: 0 | Q157: 0 | R157: 0 | S157: 0 | T157: 0 | U157: 0 | V157: =SUM(E157:U157) -> 0 | W157: =D157-V157 -> 0 | Z157: =IF($C157="B","",VLOOKUP($C157,orig_alloc!$A$13:$B$227,2,FALSE)) -> 
A158: OTHER TRANSMISSION | D158: =D57-D107 -> 13563000 | E158: 6064416 | F158: 3606338 | G158: 2950 | H158: 15907 | I158: 45962 | J158: 1438 | K158: 2007849 | L158: 22130 | M158: 1125542 | N158: 51957 | O158: 109153 | P158: 0 | Q158: 437578 | R158: 27709 | S158: 43049 | T158: 0 | U158: 1022 | V158: =SUM(E158:U158) -> 13563000 | W158: =D158-V158 -> 0 | Z158: =IF($C158="B","",VLOOKUP($C158,orig_alloc!$A$13:$B$227,2,FALSE)) -> 
A159: TOTAL TRANSMISSION | B159: T229 | D159: =SUM(D157:D158) -> 13563000 | E159: 6064416 | F159: 3606338 | G159: 2950 | H159: 15907 | I159: 45962 | J159: 1438 | K159: 2007849 | L159: 22130 | M159: 1125542 | N159: 51957 | O159: 109153 | P159: 0 | Q159: 437578 | R159: 27709 | S159: 43049 | T159: 0 | U159: 1022 | V159: 13563000 | W159: 0 | Z159: =IF($C159="B","",VLOOKUP($C159,orig_alloc!$A$13:$B$227,2,FALSE)) -> 
Z160: =IF($C160="B","",VLOOKUP($C160,orig_alloc!$A$13:$B$227,2,FALSE)) -> 
A161: NET PROD & TRANS PLANT | D161: =D159+D154 -> 390466000 | E161: 174588882 | F161: 103823074 | G161: 84944 | H161: 457943 | I161: 1323185 | J161: 41384 | K161: 57804061 | L161: 637089 | M161: 32403293 | N161: 1495797 | O161: 3142424 | P161: 0 | Q161: 12597469 | R161: 797721 | S161: 1239328 | T161: 0 | U161: 29406 | V161: 390466000 | W161: 0 | Z161: =IF($C161="B","",VLOOKUP($C161,orig_alloc!$A$13:$B$227,2,FALSE)) -> 
Z162: =IF($C162="B","",VLOOKUP($C162,orig_alloc!$A$13:$B$227,2,FALSE)) -> 
A163: DISTRIBUTION PLANT | Z163: =IF($C163="B","",VLOOKUP($C163,orig_alloc!$A$13:$B$227,2,FALSE)) -> 
A164: SUBSTATIONS | B164: S249 | D164: =D63-D113 -> 29168000 | E164: 13160933 | F164: 7844382 | G164: 7431 | H164: 30639 | I164: 103541 | J164: 3072 | K164: 4686128 | L164: 51812 | M164: 2663216 | N164: 122638 | O164: 230123 | P164: 0 | Q164: 0 | R164: 0 | S164: 261718 | T164: 0 | U164: 2367 | V164: =SUM(E164:U164) -> 29168000 | W164: =D164-V164 -> 0 | Z164: =IF($C164="B","",VLOOKUP($C164,orig_alloc!$A$13:$B$227,2,FALSE)) -> 
A165: POLES, TOWERS & FIXTURES | B165: PL49 | D165: =D64-D114 -> 29826000 | E165: 13684232 | F165: 8156289 | G165: 7727 | H165: 31858 | I165: 107658 | J165: 3195 | K165: 4872457 | L165: 53873 | M165: 2326046 | N165: 107097 | O165: 200984 | P165: 0 | Q165: 0 | R165: 0 | S165: 272124 | T165: 0 | U165: 2460 | V165: 29826000 | W165: 0 | Z165: =IF($C165="B","",VLOOKUP($C165,orig_alloc!$A$13:$B$227,2,FALSE)) -> 
A166: CONDUCTORS | B166: SL49 | D166: =D65-D115 -> 68002000 | E166: 31199464 | F166: 18595988 | G166: 17617 | H166: 72633 | I166: 245456 | J166: 7283 | K166: 11108994 | L166: 122827 | M166: 5303284 | N166: 244177 | O166: 458237 | P166: 0 | Q166: 0 | R166: 0 | S166: 620431 | T166: 0 | U166: 5609 | V166: 68002000 | W166: 0 | Z166: =IF($C166="B","",VLOOKUP($C166,orig_alloc!$A$13:$B$227,2,FALSE)) -> 
A167: TRANSFORMERS | B167: F249 | D167: =D66-D116 -> 24232000 | E167: 16018162 | F167: 5451246 | G167: 5388 | H167: 14250 | I167: 125798 | J167: 2686 | K167: 2439638 | L167: 45185 | M167: 0 | N167: 0 | O167: 0 | P167: 0 | Q167: 0 | R167: 0 | S167: 124008 | T167: 0 | U167: 5639 | V167: 24232000 | W167: 0 | Z167: =IF($C167="B","",VLOOKUP($C167,orig_alloc!$A$13:$B$227,2,FALSE)) -> 
A168: SERVICES | B168: SV49 | D168: =D67-D117 -> 4291000 | E168: 3827455 | F168: 387404 | G168: 0 | H168: 4633 | I168: 11251 | J168: 851 | K168: 47902 | L168: 0 | M168: 0 | N168: 0 | O168: 0 | P168: 0 | Q168: 0 | R168: 0 | S168: 10810 | T168: 0 | U168: 694 | V168: 4291000 | W168: 0 | Z168: =IF($C168="B","",VLOOKUP($C168,orig_alloc!$A$13:$B$227,2,FALSE)) -> 
A169: METERS | B169: M249 | D169: =D68-D118 -> 11071000 | E169: 9568316 | F169: 1310359 | G169: 0 | H169: 0 | I169: 38637 | J169: 3234 | K169: 100282 | L169: 0 | M169: 33891 | N169: 0 | O169: 3825 | P169: 0 | Q169: 11781 | R169: 0 | S169: 675 | T169: 0 | U169: 0 | V169: 11071000 | W169: 0 | Z169: =IF($C169="B","",VLOOKUP($C169,orig_alloc!$A$13:$B$227,2,FALSE)) -> 
A170: OTHER | B170: O249 | D170: =D69-D119 -> -227766 | E170: =E69-E119 -> -118506 | F170: -54951 | G170: -50 | H170: -205 | I170: -849 | J170: -27 | K170: -30364 | L170: -363 | M170: -12996 | N170: -597 | O170: -1124 | P170: 0 | Q170: -12 | R170: 0 | S170: -7698 | T170: 0 | U170: -24 | V170: -227766 | W170: 0 | Z170: =IF($C170="B","",VLOOKUP($C170,orig_alloc!$A$13:$B$227,2,FALSE)) -> 
A171: STREET LIGHTS | B171: L249 | D171: =D70-D120 -> 2164000 | E171: 0 | F171: 0 | G171: 0 | H171: 0 | I171: 0 | J171: 0 | K171: 0 | L171: 0 | M171: 0 | N171: 0 | O171: 0 | P171: 0 | Q171: 0 | R171: 0 | S171: 2164000 | T171: 0 | U171: 0 | V171: 2164000 | W171: 0 | Z171: =IF($C171="B","",VLOOKUP($C171,orig_alloc!$A$13:$B$227,2,FALSE)) -> 
A172: CONSTRUCTION NOT CLASSIFIED | B172: CN49 | D172: =D71-D121 -> 9676000 | E172: 5034413 | F172: 2334424 | G172: 2135 | H172: 8728 | I172: 36068 | J172: 1142 | K172: 1289918 | L172: 15410 | M172: 552120 | N172: 25353 | O172: 47746 | P172: 0 | Q172: 515 | R172: 0 | S172: 327008 | T172: 0 | U172: 1020 | V172: 9676000 | W172: 0 | Z172: =IF($C172="B","",VLOOKUP($C172,orig_alloc!$A$13:$B$227,2,FALSE)) -> 
A173: RETIREMENT WORK IN PROGRESS | D173: =-D122 -> 1581000 | E173: 822592 | F173: 381431 | G173: 349 | H173: 1426 | I173: 5893 | J173: 187 | K173: 210765 | L173: 2518 | M173: 90213 | N173: 4143 | O173: 7801 | P173: 0 | Q173: 84 | R173: 0 | S173: 53431 | T173: 0 | U173: 167 | V173: 1581000 | W173: 0 | Z173: =IF($C173="B","",VLOOKUP($C173,orig_alloc!$A$13:$B$227,2,FALSE)) -> 
A174: TOTAL DIST | B174: D249 | D174: =SUM(D164:D173) -> 179783234 | E174: 93197061 | F174: 44406572 | G174: 40597 | H174: 163962 | I174: 673453 | J174: 21623 | K174: 24725720 | L174: 291262 | M174: 10955774 | N174: 502811 | O174: 947592 | P174: 0 | Q174: 12368 | R174: 0 | S174: 3826507 | T174: 0 | U174: 17932 | V174: 179783234 | W174: =SUM(W163:W173) -> 0 | Z174: =IF($C174="B","",VLOOKUP($C174,orig_alloc!$A$13:$B$227,2,FALSE)) -> 
Z175: =IF($C175="B","",VLOOKUP($C175,orig_alloc!$A$13:$B$227,2,FALSE)) -> 
A176: NET TRANS & DIST PLANT | B176: NT29 | D176: =D174+D159 -> 193346234 | E176: 99261477 | F176: 48012910 | G176: 43547 | H176: 179869 | I176: 719415 | J176: 23061 | K176: 26733569 | L176: 313392 | M176: 12081316 | N176: 554768 | O176: 1056745 | P176: 0 | Q176: 449946 | R176: 27709 | S176: 3869556 | T176: 0 | U176: 18954 | V176: 193346234 | W176: 0 | Z176: =IF($C176="B","",VLOOKUP($C176,orig_alloc!$A$13:$B$227,2,FALSE)) -> 
A177: NET PTD PLANT | B177: NT39 | D177: =D174+D161 -> 570249234 | E177: 267785943 | F177: 148229646 | G177: 125541 | H177: 621905 | I177: 1996638 | J177: 63007 | K177: 82529781 | L177: 928351 | M177: 43359067 | N177: 1998608 | O177: 4090016 | P177: 0 | Q177: 12609837 | R177: 797721 | S177: 5065835 | T177: 0 | U177: 47338 | V177: 570249234 | W177: 0 | Z177: =IF($C177="B","",VLOOKUP($C177,orig_alloc!$A$13:$B$227,2,FALSE)) -> 
Z178: =IF($C178="B","",VLOOKUP($C178,orig_alloc!$A$13:$B$227,2,FALSE)) -> 
A179: GENERAL & INTANGIBLE PLANT | Z179: =IF($C179="B","",VLOOKUP($C179,orig_alloc!$A$13:$B$227,2,FALSE)) -> 
A180: PRODUCTION-DEMAND | D180: =D78-D129 -> 677000 | E180: 302707 | F180: 180011 | G180: 147 | H180: 794 | I180: 2295 | J180: 72 | K180: 100222 | L180: 1105 | M180: 56182 | N180: 2594 | O180: 5448 | P180: 0 | Q180: 21841 | R180: 1383 | S180: 2148 | T180: 0 | U180: 51 | V180: =SUM(E180:U180) -> 677000 | W180: =D180-V180 -> 0 | Z180: =IF($C180="B","",VLOOKUP($C180,orig_alloc!$A$13:$B$227,2,FALSE)) -> 
A181: PRODUCTION-ENERGY | D181: =D79-D130 -> 293000 | E181: 111619 | F181: 76417 | G181: 23 | H181: 459 | I181: 1035 | J181: 29 | K181: 53496 | L181: 184 | M181: 31911 | N181: 454 | O181: 2512 | P181: 0 | Q181: 12746 | R181: 252 | S181: 1839 | T181: 0 | U181: 24 | V181: 293000 | W181: 0 | Z181: =IF($C181="B","",VLOOKUP($C181,orig_alloc!$A$13:$B$227,2,FALSE)) -> 
A182: TRANSMISSION | D182: =D80-D131 -> 44000 | E182: 19675 | F182: 11699 | G182: 9 | H182: 52 | I182: 149 | J182: 5 | K182: 6514 | L182: 72 | M182: 3652 | N182: 168 | O182: 354 | P182: 0 | Q182: 1419 | R182: 90 | S182: 139 | T182: 0 | U182: 3 | V182: 44000 | W182: 0 | Z182: =IF($C182="B","",VLOOKUP($C182,orig_alloc!$A$13:$B$227,2,FALSE)) -> 
A183: DISTRIBUTION | D183: =D81-D132 -> 282000 | E183: 136168 | F183: 73729 | G183: 67 | H183: 292 | I183: 1013 | J183: 34 | K183: 42757 | L183: 474 | M183: 21099 | N183: 969 | O183: 1847 | P183: 0 | Q183: 1309 | R183: 81 | S183: 2139 | T183: 0 | U183: 22 | V183: 282000 | W183: 0 | Z183: =IF($C183="B","",VLOOKUP($C183,orig_alloc!$A$13:$B$227,2,FALSE)) -> 
A184: CUSTOMER ACCOUNTING | D184: =D82-D133 -> 280000 | E184: 247843 | F184: 29985 | G184: 26 | H184: 155 | I184: 246 | J184: 40 | K184: 1010 | L184: 13 | M184: 74 | N184: 11 | O184: 29 | P184: 0 | Q184: 28 | R184: 8 | S184: 509 | T184: 0 | U184: 23 | V184: 280000 | W184: 0 | Z184: =IF($C184="B","",VLOOKUP($C184,orig_alloc!$A$13:$B$227,2,FALSE)) -> 
A185: CUSTOMER SERVICE & INFORMATION | D185: =D83-D134 -> 32000 | E185: 21163 | F185: 9982 | G185: 8 | H185: 121 | I185: 98 | J185: 23 | K185: 144 | L185: 4 | M185: 26 | N185: 4 | O185: 10 | P185: 0 | Q185: 9 | R185: 3 | S185: 396 | T185: 0 | U185: 9 | V185: 32000 | W185: 0 | Z185: =IF($C185="B","",VLOOKUP($C185,orig_alloc!$A$13:$B$227,2,FALSE)) -> 
A186: SALES | D186: =D84-D135 -> 0 | E186: 0 | F186: 0 | G186: 0 | H186: 0 | I186: 0 | J186: 0 | K186: 0 | L186: 0 | M186: 0 | N186: 0 | O186: 0 | P186: 0 | Q186: 0 | R186: 0 | S186: 0 | T186: 0 | U186: 0 | V186: 0 | W186: 0 | Z186: =IF($C186="B","",VLOOKUP($C186,orig_alloc!$A$13:$B$227,2,FALSE)) -> 
A187: TOTAL GENERAL AND INTANGIBLE PLANT | B187: G229 | D187: =SUM(D180:D186) -> 1608000 | E187: 839175 | F187: 381823 | G187: 280 | H187: 1873 | I187: 4836 | J187: 203 | K187: 204143 | L187: 1852 | M187: 112944 | N187: 4200 | O187: 10200 | P187: 0 | Q187: 37352 | R187: 1817 | S187: 7170 | T187: 0 | U187: 132 | V187: 1608000 | W187: 0 | Z187: =IF($C187="B","",VLOOKUP($C187,orig_alloc!$A$13:$B$227,2,FALSE)) -> 
Z188: =IF($C188="B","",VLOOKUP($C188,orig_alloc!$A$13:$B$227,2,FALSE)) -> 
A189: COMMON & OTHER PLANT | Z189: =IF($C189="B","",VLOOKUP($C189,orig_alloc!$A$13:$B$227,2,FALSE)) -> 
A190: PRODUCTION-DEMAND | D190: =D88-D139 -> 4572000 | E190: 2044276 | F190: 1215673 | G190: 995 | H190: 5362 | I190: 15493 | J190: 484 | K190: 676833 | L190: 7460 | M190: 379413 | N190: 17515 | O190: 36795 | P190: 0 | Q190: 147505 | R190: 9340 | S190: 14512 | T190: 0 | U190: 344 | V190: =SUM(E190:U190) -> 4572000 | W190: =D190-V190 -> 0 | Z190: =IF($C190="B","",VLOOKUP($C190,orig_alloc!$A$13:$B$227,2,FALSE)) -> 
A191: PRODUCTION-ENERGY | D191: =D89-D140 -> 1985000 | E191: 756206 | F191: 517701 | G191: 155 | H191: 3108 | I191: 7013 | J191: 201 | K191: 362419 | L191: 1244 | M191: 216191 | N191: 3072 | O191: 17015 | P191: 0 | Q191: 86351 | R191: 1702 | S191: 12461 | T191: 0 | U191: 161 | V191: 1985000 | W191: 0 | Z191: =IF($C191="B","",VLOOKUP($C191,orig_alloc!$A$13:$B$227,2,FALSE)) -> 
A192: TRANSMISSION | D192: =D90-D141 -> 293000 | E192: 131010 | F192: 77907 | G192: 63 | H192: 344 | I192: 993 | J192: 31 | K192: 43375 | L192: 478 | M192: 24315 | N192: 1123 | O192: 2358 | P192: 0 | Q192: 9453 | R192: 598 | S192: 930 | T192: 0 | U192: 22 | V192: 293000 | W192: 0 | Z192: =IF($C192="B","",VLOOKUP($C192,orig_alloc!$A$13:$B$227,2,FALSE)) -> 
A193: DISTRIBUTION | D193: =D91-D142 -> 1912000 | E193: 923253 | F193: 499895 | G193: 452 | H193: 1979 | I193: 6869 | J193: 227 | K193: 289893 | L193: 3210 | M193: 143054 | N193: 6571 | O193: 12524 | P193: 0 | Q193: 8871 | R193: 553 | S193: 14499 | T193: 0 | U193: 150 | V193: 1912000 | W193: 0 | Z193: =IF($C193="B","",VLOOKUP($C193,orig_alloc!$A$13:$B$227,2,FALSE)) -> 
A194: CUSTOMER ACCOUNTING | D194: =D92-D143 -> 1891000 | E194: 1673833 | F194: 202508 | G194: 170 | H194: 1051 | I194: 1661 | J194: 264 | K194: 6821 | L194: 89 | M194: 504 | N194: 73 | O194: 192 | P194: 0 | Q194: 185 | R194: 57 | S194: 3433 | T194: 0 | U194: 159 | V194: 1891000 | W194: 0 | Z194: =IF($C194="B","",VLOOKUP($C194,orig_alloc!$A$13:$B$227,2,FALSE)) -> 
A195: CUSTOMER SERVICE & INFORMATION | D195: =D93-D144 -> 218000 | E195: 144179 | F195: 67998 | G195: 54 | H195: 825 | I195: 666 | J195: 156 | K195: 982 | L195: 33 | M195: 181 | N195: 27 | O195: 66 | P195: 0 | Q195: 60 | R195: 19 | S195: 2694 | T195: 0 | U195: 60 | V195: 218000 | W195: 0 | Z195: =IF($C195="B","",VLOOKUP($C195,orig_alloc!$A$13:$B$227,2,FALSE)) -> 
A196: SALES | D196: =D94-D145 -> 0 | E196: 0 | F196: 0 | G196: 0 | H196: 0 | I196: 0 | J196: 0 | K196: 0 | L196: 0 | M196: 0 | N196: 0 | O196: 0 | P196: 0 | Q196: 0 | R196: 0 | S196: 0 | T196: 0 | U196: 0 | V196: 0 | W196: 0 | Z196: =IF($C196="B","",VLOOKUP($C196,orig_alloc!$A$13:$B$227,2,FALSE)) -> 
A197: TOTAL COM & OTHER PLT | B197: C229 | D197: =SUM(D189:D196) -> 10871000 | E197: 5672757 | F197: 2581682 | G197: 1889 | H197: 12669 | I197: 32695 | J197: 1363 | K197: 1380323 | L197: 12514 | M197: 763658 | N197: 28381 | O197: 68950 | P197: 0 | Q197: 252425 | R197: 12269 | S197: 48529 | T197: 0 | U197: 896 | V197: 10871000 | W197: 0 | Z197: =IF($C197="B","",VLOOKUP($C197,orig_alloc!$A$13:$B$227,2,FALSE)) -> 
Z198: =IF($C198="B","",VLOOKUP($C198,orig_alloc!$A$13:$B$227,2,FALSE)) -> 
A199: TOTAL ELECTRIC PLANT IN SERVICE | B199: NP29 | D199: =D197+D187+D177 -> 582728234 | E199: 274297875 | F199: 151193151 | G199: 127710 | H199: 636447 | I199: 2034169 | J199: 64573 | K199: 84114247 | L199: 942717 | M199: 44235669 | N199: 2031189 | O199: 4169166 | P199: 0 | Q199: 12899614 | R199: 811807 | S199: 5121534 | T199: 0 | U199: 48366 | V199: 582728234 | W199: 0 | Z199: =IF($C199="B","",VLOOKUP($C199,orig_alloc!$A$13:$B$227,2,FALSE)) -> 
Z200: =IF($C200="B","",VLOOKUP($C200,orig_alloc!$A$13:$B$227,2,FALSE)) -> 
A201: NET ELECTRIC PLANT | B201: Schedule 4a | Z201: =IF($C201="B","",VLOOKUP($C201,orig_alloc!$A$13:$B$227,2,FALSE)) -> 
A202: PRODUCTION PLANT | Z202: =IF($C202="B","",VLOOKUP($C202,orig_alloc!$A$13:$B$227,2,FALSE)) -> 
A203: PRODUCTION PLANT IN SERVICE | B203: =B53 -> P129 | D203: =D53 -> 779010000 | E203: 348318389 | F203: 207135098 | G203: 169472 | H203: 913629 | I203: 2639854 | J203: 82563 | K203: 115323590 | L203: 1271041 | M203: 64647086 | N203: 2984230 | O203: 6269382 | P203: 0 | Q203: 25132929 | R203: 1591517 | S203: 2472555 | T203: 0 | U203: 58665 | V203: 779010000 | W203: 0 | Z203: =IF($C203="B","",VLOOKUP($C203,orig_alloc!$A$13:$B$227,2,FALSE)) -> 
A204: TOTAL PROD DEPRC RESERVE | B204: =B103 -> P171 | D204: =-D103 -> -402107000 | E204: -179793923 | F204: -106918362 | G204: -87478 | H204: -471593 | I204: -1362631 | J204: -42617 | K204: -59527378 | L204: -656082 | M204: -33369335 | N204: -1540390 | O204: -3236111 | P204: 0 | Q204: -12973038 | R204: -821505 | S204: -1276276 | T204: 0 | U204: -30281 | V204: -402107000 | W204: 0 | Z204: =IF($C204="B","",VLOOKUP($C204,orig_alloc!$A$13:$B$227,2,FALSE)) -> 
A205: NET PRODUCTION PLANT | B205: P229 | D205: =SUM(D202:D204) -> 376903000 | E205: 168524466 | F205: 100216736 | G205: 81994 | H205: 442036 | I205: 1277223 | J205: 39946 | K205: 55796212 | L205: 614959 | M205: 31277751 | N205: 1443840 | O205: 3033271 | P205: 0 | Q205: 12159891 | R205: 770012 | S205: 1196279 | T205: 0 | U205: 28384 | V205: 376903000 | W205: 0 | Z205: =IF($C205="B","",VLOOKUP($C205,orig_alloc!$A$13:$B$227,2,FALSE)) -> 
Z206: =IF($C206="B","",VLOOKUP($C206,orig_alloc!$A$13:$B$227,2,FALSE)) -> 
A207: TRANSMISSION PLANT | Z207: =IF($C207="B","",VLOOKUP($C207,orig_alloc!$A$13:$B$227,2,FALSE)) -> 
A208: TRANSMISSION PLANT IN SERVICE | B208: =B58 -> T129 | D208: =D58 -> 23766000 | E208: 10626479 | F208: 6319268 | G208: 5170 | H208: 27873 | I208: 80537 | J208: 2519 | K208: 3518287 | L208: 38777 | M208: 1972250 | N208: 91043 | O208: 191266 | P208: 0 | Q208: 766754 | R208: 48554 | S208: 75433 | T208: 0 | U208: 1790 | V208: 23766000 | W208: 0 | Z208: =IF($C208="B","",VLOOKUP($C208,orig_alloc!$A$13:$B$227,2,FALSE)) -> 
A209: TOTAL TRANS DEPREC RESERVE | B209: =B108 -> T171 | D209: =-D108 -> -10203000 | E209: -4562063 | F209: -2712930 | G209: -2220 | H209: -11966 | I209: -34575 | J209: -1081 | K209: -1510438 | L209: -16647 | M209: -846708 | N209: -39086 | O209: -82113 | P209: 0 | Q209: -329176 | R209: -20845 | S209: -32384 | T209: 0 | U209: -768 | V209: -10203000 | W209: 0 | Z209: =IF($C209="B","",VLOOKUP($C209,orig_alloc!$A$13:$B$227,2,FALSE)) -> 
... 579 more rows

Sheet backup
A1: THE UNION LIGHT, HEAT & POWER COMPANY
A2: COST OF SERVICE STUDY
A3: =orig_alloc!B4 -> TWELVE MONTHS ENDING DECEMBER 31, 2007
A5: ELECTRIC CASE NO: 2006-00172
A6: BACK UP STUDIES
A10: 1. Functionalized General & Common Plant & Depr on Payroll.
D11: OC General | E11: Depr. OC General | F11: OC Common | G11: Depr. OC Common | H11: A&G
C12: ULH&P Payroll | D12: Plant on Payroll | E12: Plant on Payroll | F12: Plant on Payroll | G12: Plant on Payroll | H12: Excl. Adjustments
B13: Prod Plant | C13: 7415988 | D13: =(ROUND((D$20/C$20*$C13)/1000,0))*1000 -> 1445000 | E13: =(ROUND((E$20/$C$20*$C13)/1000,0))*1000 -> 768000 | F13: =(ROUND((F$20/$C$20*$C13)/1000,0))*1000 -> 8873000 | G13: =(ROUND((G$20/$C$20*$C13)/1000,0))*1000 -> 4301000 | H13: =(ROUND((H$20/$C$20*$C13),0)) -> 10928785
B14: Energy Related | C14: 3220299 | D14: =(ROUND((D$20/C$20*$C14)/1000,0))*1000 -> 627000 | E14: =(ROUND((E$20/$C$20*$C14)/1000,0))*1000 -> 334000 | F14: 3853000 | G14: 1868000 | H14: =(ROUND((H$20/$C$20*$C14),0)) -> 4745687
B15: Trans Plant | C15: 475385 | D15: =(ROUND((D$20/C$20*$C15)/1000,0))*1000 -> 93000 | E15: 49000 | F15: 569000 | G15: 276000 | H15: =(ROUND((H$20/$C$20*$C15),0)) -> 700565
B16: Dist Plant | C16: 3098017 | D16: =D20-SUM(D17:D19)-SUM(D13:D15) -> 603000 | E16: =E20-SUM(E17:E19)-SUM(E13:E15) -> 321000 | F16: =F20-SUM(F17:F19)-SUM(F13:F15) -> 3708000 | G16: =G20-SUM(G17:G19)-SUM(G13:G15) -> 1796000 | H16: =H20-SUM(H17:H19)-SUM(H13:H15) -> 4565482
B17: Customer Acctg | C17: 3068395 | D17: =(ROUND((D$20/C$20*$C17)/1000,0))*1000 -> 598000 | E17: 318000 | F17: 3671000 | G17: 1780000 | H17: 4521829
B18: Cust Service & Info | C18: 353775 | D18: =(ROUND((D$20/C$20*$C18)/1000,0))*1000 -> 69000 | E18: 37000 | F18: 423000 | G18: 205000 | H18: 521351
B19: Sales | C19: 0 | D19: =(ROUND((D$20/C$20*$C19)/1000,0))*1000 -> 0 | E19: 0 | F19: 0 | G19: 0 | H19: 0
B20: Total O&M excl A&G | C20: =SUM(C13:C19) -> 17631859 | D20: 3435000 | E20: 1827000 | F20: 21097000 | G20: 10226000 | H20: 25983699
B21: A&G | C21: 6332295 | H21: C2.1
B22: Total O&M | C22: =SUM(C20:C21) -> 23964154

Sheet rateincr_exhibit
A2: =+coss!A1 -> DUKE ENERGY KENTUCKY
A3: =VERSION -> FR-9v-1 KW ( 12 COIN PEAK )
A4: =+coss!A6 -> ELECTRIC CASE NO: 2006-00172
A5: COMPUTATION OF THE RATE INCREASE AMOUNT BY RATE CLASS
A6: =+coss!A3 -> TWELVE MONTHS ENDING DECEMBER 31, 2007
G12: Gross | I12: =+coss!C734 -> 0.25 | N12: Proposed
G13: Revenues | I13: Reduction | L13: Proposed | M13: ROR | N13: Increase
D14: Present | E14: Net Operating | F14: Present | G14: At Average | H14: Subsidy () | I14: In Subsidy () | J14: Rate | K14: Proposed | L14: Percent | M14: At Proposed | N14: Including
A15: Line | C15: Capitalization | D15: Revenues | E15: Income | F15: ROR | G15: ROR | H15: Excess | I15: Excess | J15: Increase | K15: Revenues | L15: Increase | M15: Rates | N15: Subsidy/Excess
A16: No. | B16: Rate Class | C16: (A) | D16: (B) | E16: (C) | F16: (D) | G16: (E) | H16: (F) | I16: (G) | J16: (H) | K16: (I) | L16: (J) | M16: (K) | N16: (L)
F17: (C) / (A) | I17: ="(F) * "&I12*100&"%" -> (F) * 25% | K17: (B) - (G) + (H)
A19: 1 | B19: Rate RS | C19: =+coss!$E$17 -> 260738880 | D19: =+coss!$E$729 -> 97639085 | E19: =+coss!$E$731 -> 135024 | F19: =IF(C19=0,"-",ROUND(E19/C19,8)) -> 0.00051785 | G19: =+coss!$E$732 -> 103567898 | H19: =+coss!$E$733 -> -5928813 | I19: =+coss!$E$734 -> -1482204 | J19: =+J36-SUM(J20:J35) -> 31153475 | K19: =+D19-I19+J19 -> 130274764 | L19: =IF(D19=0,"-",ROUND((J19-I19)/D19,4)) -> 0.3342 | M19: =IF(C19=0,"-",((N19*$C$39)+E19)/C19) -> 0.07716695218 | N19: =+J19-I19 -> 32635679
A20: 2 | B20: Rate DS | C20: =+coss!$F$17 -> 144231279 | D20: =+coss!$F$729 -> 66709383 | E20: =+coss!$F$731 -> 5730869 | F20: =IF(C20=0,"-",ROUND(E20/C20,8)) -> 0.03973388 | G20: =+coss!$F$732 -> 60752583 | H20: =+coss!$F$733 -> 5956800 | I20: =+coss!$F$734 -> 1489200 | J20: =ROUND($J$36/$C$36*C20,0) -> 17232970 | K20: =+D20-I20+J20 -> 82453153 | L20: 0.236 | M20: =IF(C20=0,"-",((N20*$C$39)+E20)/C20) -> 0.106578971 | N20: =+J20-I20 -> 15743770
A21: 3 | B21: Rate DS-RTP | C21: =+coss!$G$17 -> 122605 | D21: =+coss!$G$729 -> 70100 | E21: =+coss!$G$731 -> 24610 | F21: =IF(C21=0,"-",ROUND(E21/C21,8)) -> 0.20072591 | G21: =+coss!$G$732 -> 32804 | H21: =+coss!$G$733 -> 37296 | I21: =+coss!$G$734 -> 9324 | J21: 14649 | K21: 75425 | L21: 0.076 | M21: 0.2273228462 | N21: 5325
A22: 4 | B22: Rate GS-FL | C22: =+coss!$H$17 -> 618721 | D22: =+coss!$H$729 -> 471911 | E22: =+coss!$H$731 -> 101409 | F22: =IF(C22=0,"-",ROUND(E22/C22,8)) -> 0.16390102 | G22: =+coss!$H$732 -> 320905 | H22: =+coss!$H$733 -> 151006 | I22: =+coss!$H$734 -> 37752 | J22: 73926 | K22: 508085 | L22: 0.0767 | M22: 0.1997042185 | N22: 36174
A23: 5 | B23: Rate EH | C23: =+coss!$I$17 -> 1942428 | D23: =+coss!$I$729 -> 694501 | E23: =+coss!$I$731 -> -39580 | F23: -0.02037656 | G23: =+coss!$I$732 -> 804945 | H23: =+coss!$I$733 -> -110444 | I23: =+coss!$I$734 -> -27611 | J23: 232084 | K23: 954196 | L23: 0.3739 | M23: 0.06149609369 | N23: 259695
A24: 6 | B24: Rate SP | C24: =+coss!$J$17 -> 61611 | D24: =+coss!$J$729 -> 35117 | E24: =+coss!$J$731 -> 6745 | F24: 0.1094772 | G24: =+coss!$J$732 -> 25556 | H24: =+coss!$J$733 -> 9561 | I24: =+coss!$J$734 -> 2390 | J24: 7361 | K24: 40088 | L24: 0.1416 | M24: 0.1588861637 | N24: 4971
A25: 7 | B25: Rate DT - Secondary | C25: =+coss!$K$17 -> 81087630 | D25: =+coss!$K$729 -> 38378456 | E25: =+coss!$K$731 -> 1354947 | F25: 0.01670966 | G25: =+coss!$K$732 -> 38078242 | H25: =+coss!$K$733 -> 300214 | I25: =+coss!$K$734 -> 75054 | J25: 9688472 | K25: 47991874 | L25: 0.2505 | M25: 0.089310801 | N25: 9613418
A26: 8 | B26: Rate DT RTP-Sec. | C26: =+coss!$L$17 -> 907692 | D26: =+coss!$L$729 -> 343715 | E26: =+coss!$L$731 -> 75379 | F26: 0.08304469 | G26: =+coss!$L$732 -> 242030 | H26: =+coss!$L$733 -> 101685 | I26: =+coss!$L$734 -> 25421 | J26: 108452 | K26: 426746 | L26: 0.2416 | M26: 0.1390619628 | N26: 83031
A27: 9 | B27: Rate DT-Primary | C27: =+coss!$M$17 -> 42899388 | D27: =+coss!$M$729 -> 19862321 | E27: =+coss!$M$731 -> -615107 | F27: -0.01433836 | G27: =+coss!$M$732 -> 21878521 | H27: =+coss!$M$733 -> -2016200 | I27: =+coss!$M$734 -> -504050 | J27: 5125683 | K27: 25492054 | L27: 0.2834 | M27: 0.066024779 | N27: 5629733
A28: 10 | B28: Rate DT RTP-Primary | C28: =+coss!$N$17 -> 1967407 | D28: =+coss!$N$729 -> 782491 | E28: =+coss!$N$731 -> 164685 | F28: 0.08370663 | G28: =+coss!$N$732 -> 559964 | H28: =+coss!$N$733 -> 222527 | I28: =+coss!$N$734 -> 55632 | J28: 235069 | K28: 961928 | L28: 0.2293 | M28: 0.1395585305 | N28: 179437
A29: 11 | B29: Rate DP | C29: =+coss!$O$17 -> 3998327 | D29: =+coss!$O$729 -> 1764802 | E29: =+coss!$O$731 -> 6349 | F29: 0.00158791 | G29: =+coss!$O$732 -> 1848731 | H29: =+coss!$O$733 -> -83929 | I29: =+coss!$O$734 -> -20982 | J29: 477726 | K29: 2263510 | L29: 0.2826 | M29: 0.07796942283 | N29: 498708
A30: 12 | B30: Rate DP-RTP | C30: =+coss!$P$17 -> 0 | D30: =+coss!$P$729 -> 0 | E30: =+coss!$P$731 -> 0 | F30: - | G30: =+coss!$P$732 -> 0 | H30: =+coss!$P$733 -> 0 | I30: =+coss!$P$734 -> 0 | J30: 0 | K30: 0 | L30: - | M30: - | N30: 0
A31: 13 | B31: Rate TT | C31: =+coss!$Q$17 -> 12710431 | D31: =+coss!$Q$729 -> 8534952 | E31: =+coss!$Q$731 -> 451451 | F31: 0.03551815 | G31: =+coss!$Q$732 -> 8097508 | H31: =+coss!$Q$733 -> 437444 | I31: =+coss!$Q$734 -> 109361 | J31: 1518661 | K31: 9944252 | L31: 0.1651 | M31: 0.1034171509 | N31: 1409300
A32: 14 | B32: Rate TT-RTP | C32: =+coss!$R$17 -> 799385 | D32: =+coss!$R$729 -> 404272 | E32: =+coss!$R$731 -> 95134 | F32: 0.11900899 | G32: =+coss!$R$732 -> 267773 | H32: =+coss!$R$733 -> 136499 | I32: =+coss!$R$734 -> 34125 | J32: 95512 | K32: 465659 | L32: 0.1518 | M32: 0.1660352678 | N32: 61387
A33: 15 | B33: Lighting | C33: =+coss!$S$17 -> 4948623 | D33: =+coss!$S$729 -> 2194212 | E33: =+coss!$S$731 -> 557207 | F33: 0.11259839 | G33: =+coss!$S$732 -> 1401015 | H33: =+coss!$S$733 -> 793197 | I33: =+coss!$S$734 -> 198299 | J33: 591269 | K33: 2587182 | L33: 0.1791 | M33: 0.1612273818 | N33: 392970
B34: Blank | C34: =+coss!$T$17 -> 0 | D34: =+coss!$T$729 -> 0 | E34: =+coss!$T$731 -> 0 | F34: - | G34: =+coss!$T$732 -> 0 | H34: =+coss!$T$733 -> 0 | I34: =+coss!$T$734 -> 0 | J34: 0 | K34: 0 | L34: - | M34: - | N34: 0
A35: 16 | B35: Other | C35: =+coss!$U$17 -> 46295 | D35: =+coss!$U$729 -> 12408 | E35: =+coss!$U$731 -> -3522 | F35: -0.07607733 | G35: =+coss!$U$732 -> 19251 | H35: =+coss!$U$733 -> -6843 | I35: =+coss!$U$734 -> -1711 | J35: 5531 | K35: 19650 | L35: 0.5837 | M35: 0.01971806627 | N35: 7242
A36: 17 | B36: Total | C36: =SUM(C19:C35) -> 557080702 | D36: =SUM(D19:D35) -> 237897726 | E36: =SUM(E19:E35) -> 8045600 | F36: =IF(C36=0,"-",ROUND(E36/C36,8)) -> 0.01444243 | G36: =SUM(G19:G35) -> 237897726 | H36: =SUM(H19:H35) -> 0 | I36: =SUM(I19:I35) -> 0 | J36: 66560840 | K36: =SUM(K19:K35) -> 304458566 | L36: 0.2798 | M36: =ROUND(IF(C36=0,"-",((N36*$C$39)+E36)/C36),5) -> 0.08761 | N36: =SUM(N19:N35) -> 66560840
C37: =IF(C36-coss!V17=0," ","check #") -> 
B39: Tax Complement | C39: =+coss!C736 -> 0.612378884

Sheet SFR_tie
D2: COSS | E2: Rev Req Mod | F2: Difference
A3: Gross Plant | D3: =+coss!V97 -> 1122822000 | E3: =+[2]!PLANT_IN_SERVICE -> 1122822000 | F3: =E3-D3 -> 0
A4: Depreciation | D4: =+coss!V148 -> 540093766 | E4: =-[2]SCH_B1!$I$20 -> 540093766 | F4: =E4-D4 -> 0
A5: Net Plant | D5: =+D3-D4 -> 582728234 | E5: =+E3-E4 -> 582728234 | F5: =+F3-F4 -> 0
A7: WORKING CAPITAL
A8: Cash WC | D8: =coss!V324 -> 13994731 | E8: =+[2]SCH_B5s!$O$17 -> 13962791 | F8: =E8-D8 -> -31940
A9: Fuel stock | D9: =+coss!D301 -> 8873933 | E9: =+[2]SCH_B5s!$O$26 -> 8873933 | F9: =E9-D9 -> 0
A10: Mat & Supp | D10: =+coss!D310 -> 8467889 | E10: =+[2]SCH_B5s!$O$34 -> 8467889 | F10: 0
A11: prepayment | D11: =coss!V317 -> 6699569 | E11: =+[2]SCH_B5s!$O$36 -> 6699569 | F11: 0
A12: PIPP Uncollectibles/oth | F12: 0
A13: Emission Allowances | D13: =+coss!D302 -> 5919968 | E13: =+[2]SCH_B5s!$O$32 -> 5919968 | F13: 0
A14: SUM WORKING CAPITAL | D14: =SUM(D8:D13) -> 43956090 | E14: =SUM(E8:E13) -> 43924150 | F14: =SUM(F8:F13) -> -31940
A15: Tot WC | D15: =coss!V330 -> 43956090 | E15: =+[2]SCH_B1!$I$26+[2]SCH_B1!$I$28 -> 43924150 | F15: -31940
A17: Contributions in Aid of Construction (a) | B17: Acct 271 | D17: 0 | F17: 0
A18: Postretirement Benefits | B18: Acct 252 | F18: 0
A21: CWIP | D21: =coss!V292 -> 4263000 | E21: =+[2]SCH_B1!$I$24 -> 4263000 | F21: =E21-D21 -> 0
A23: Additive | B23: Acct 190 | D23: =coss!V273 -> 1295808 | E23: =+'[2]WPB-6''s'!$T$103 -> 1295808 | F23: 0
A24: Other Additive Adjustments | D24: =coss!V281 -> 0 | F24: =E24-D24 -> 0
D25: =SUM(D21:D24) -> 5558808 | E25: =SUM(E21:E24) -> 5558808 | F25: =SUM(F21:F24) -> 0
E27: WPB-6
A28: Subtractive | B28: Acct 282 | D28: =coss!V247 -> 41336603 | E28: =-'[2]WPB-6''s'!$T$104-'[2]WPB-6''s'!$T$105 -> 41336603 | F28: =E28-D28 -> 0
A29: Subtractive | B29: Acct 283-4 | D29: =coss!V256 -> -34872 | E29: =-'[2]WPB-6''s'!$T$106 -> -34872 | F29: 0
A30: ITC & other Acct 255 etc | B30: ITC Acct 255 | D30: =coss!V259 -> 0 | E30: =-[2]SCH_B6!$P$25 -> 0 | F30: =E30-D30 -> 0
A31: Subtractive | F31: 0
D32: =SUM(D28:D31) -> 41301731 | E32: =SUM(E28:E31) -> 41301731 | F32: =SUM(F28:F31) -> 0
A33: Def Inc Taxes Acct 190-284 | B33: Tot Def IT | D33: =+D25-D32 -> -35742923 | E33: =+E25-E32 -> -35742923 | F33: =+F25-F32 -> 0
A35: Other Rate Base Adjustments | E35: =+[2]SCH_B6!$P$34 -> 0 | F35: =E35-D35 -> 0
A37: Jurisdictional Rate Base | D37: =+coss!V336 -> 590941401 | E37: =+[2]SCH_B1!$I$40 -> 590909461 | F37: =E37-D37 -> -31940
A39: O&M Expenses | B39: Prod | D39: =coss!V362 -> 143824037 | E39: =+[2]SCH_C2!$N$27 -> 58082367 | F39: =E39-D39 -> -85741670 | G39: fuel = 85,741,670
B40: Trans | D40: =coss!V369 -> 16939554 | E40: =+[2]SCH_C2!$N$29 -> 16939554 | F40: 0
B41: Dist | D41: =coss!V383 -> 6730324 | E41: =+[2]SCH_C2!$N$30 -> 6730324 | F41: 0
B42: Cust Acct | D42: =coss!V391 -> 5788726 | E42: =+[2]SCH_C2!$N$31 -> 5533205 | F42: -255521
B43: Cust serv | D43: =coss!V398 -> 105046 | E43: =+[2]SCH_C2!$N$32 -> 105046 | F43: 0
B44: Sales | D44: =coss!V404 -> 728 | E44: =+[2]SCH_C2!$N$33 -> 728 | F44: 0
B45: A&G & AMOT OF DEF EXP | D45: =coss!V434 -> 24311101 | E45: =+[2]SCH_C2!$N$34+[2]SCH_C2!$N$35 -> 24311101 | F45: 0
B46: Amort of def Exp
B47: total O&M | D47: =SUM(D39:D46) -> 197699516 | E47: =+[2]SCH_C2!$N$36 -> 111702325 | F47: -85997191
A48: Depreciation | B48: Total Deprec Exp | D48: =coss!V464 -> 33172220 | E48: =+[2]SCH_C2!$N$38 -> 33172220 | F48: 0
A49: Property Tax | B49: Property Tax | D49: =coss!V472 -> 5695145 | E49: =+'[2]SCH_C2.1 - Forecast Period'!$J$269+'[2]SCH_C2.1 - Forecast Period'!$J$270+'[2]SCH_C2.1 - Forecast Period'!$J$271+'[2]SCH_C2.1 - Forecast Period'!$J$272+[2]SCH_D2.35!$S$68 -> 5625540 | F49: -69605
A50: Misc taxes | B50: Misc taxes & Exp. | D50: =coss!V483 -> 1861675 | E50: =+[2]SCH_C2!$N$43-E49 -> 1931280 | F50: 69605
A51: total prop & misc taxes | B51: total prop & misc taxes | D51: =D50+D49 -> 7556820 | E51: =+[2]SCH_C2!$N$43 -> 7556820 | F51: =E51-D51 -> 0
B52: Misc. Expenses | D52: =coss!V488 -> 77689 | E52: =+[2]SCH_C1!$P$62 -> 77689 | F52: =E52-D52 -> 0 | G52: Change in Uncollectibles, OCC/PUCO Maint. Due to revenue increase
B53: Total O&M, Depr & MISC TAX | D53: =D47+D48+D51+D52 -> 238506245 | E53: =E47+E48+E51+E52 -> 152509054 | F53: -85997191
B54: FIT Tax Calculation
B55: interest deduction | D55: =coss!V502 -> 16237028 | E55: =-[2]SCH_E1!$Q$23 -> 16237028 | F55: =E55-D55 -> 0
B56: Oth Deductions | D56: =coss!V518 -> 6767194 | E56: =([2]SCH_E1!$Q$28+[2]SCH_E1!$Q$36)*-1 -> 6767194 | F56: =E56-D56 -> 0
B57: FIT prov Acct 410.1 | D57: =coss!V536 -> 1874337 | E57: =[2]SCH_E1!$Q$123 -> 1874337 | F57: =E57-D57 -> 0
B58: FIT Acct 411.1 & ITC | D58: =coss!V552-coss!V557 -> -143846 | E58: =[2]SCH_E1!$Q$124 -> -143846 | F58: =E58-D58 -> 0
B60: Total FIT Adj | D60: =SUM(D57:D59) -> 1730491 | E60: =E58+E57 -> 1730491 | F60: =E60-D60 -> 0
B61: Fed Inc Tax Allowable | D61: =coss!V580 -> 16566971 | E61: =[2]SCH_E1!$M$126 -> 1339384 | F61: =E61-D61 -> -15227587 | G61: =[2]SCH_E1!$M$121/[2]SCH_E1!$M$114 -> 0.3497935799
E62: =[2]SCH_C1!$G$26 -> 15227942
B63: SIT Tax Calculation
B65: SIT prov Acct 410.1 | D65: =coss!V609 -> 394834 | E65: =[2]SCH_E1!$Q$105 -> 394834 | F65: =E65-D65 -> 0
B66: SIT Acct 411.1 & ITC | D66: =coss!V620 -> 0 | F66: 0
B67: SIT Adj - Current | D67: =coss!V624 -> 0 | F67: 0
B68: Total SIT Adj | D68: =SUM(D65:D67) -> 394834 | E68: =SUM(E65:E67) -> 394834 | F68: 0
B69: State Inc Tax | D69: =coss!V639 -> 2536069 | E69: =[2]SCH_E1!$Q$106 -> 0 | F69: -2536069 | G69: =[2]SCH_E1!$Q$81/[2]SCH_E1!$Q$73 -> 0.05787808495
B70: Sate Inc Allow | D70: =D69+D68 -> 2930903 | E70: =E69+E68 -> 394834 | F70: -2536069
D71: =+D70-D69 -> 394834 | E71: =[2]SCH_C1!$G$25 -> 2678861
B72: Deficiency @ROR | D72: =coss!V691 -> -319 | E72: =[2]SCH_C1!$I$32*-1 -> -48805840 | F72: -48805521 | G72: =F70+F61 -> -17763656
E73: =[2]SCH_A!$I$31*-1 -> -46520476 | F73: =E73-D72 -> -46520157
B74: Incr Uncollectible Exp/Ucoll | E74: =[2]SCH_C1!$G$20 -> 255521 | F74: =E74-D74 -> 255521
B75: Incremental tax | D75: =+coss!D487 -> 77689 | E75: =[2]SCH_C1!$G$22 -> 77689 | F75: =E75-D75 -> 0
B76: Other Operating Revenue | D76: =+coss!D669 -> 1978260 | E76: =[2]SCH_C2!$N$19 -> 2036580 | F76: =+D76-E76 -> -58320
B77: Revenue | D77: =+revenue -> 237897726 | E77: =+[2]SCH_C2!$N$17 -> 172138103 | F77: =+D77-E77 -> 65759623 | G77: =F77+F76 -> 65701303
B78: Total | D78: =SUM(D76:D77) -> 239875986 | E78: =SUM(E76:E77) -> 174174683 | F78: =SUM(F76:F77) -> 65701303
D79: =D78-G77 -> 174174683
B80: Capitalization | D80: =+CAPITALIZATION -> 557080702 | E80: =+[2]SCH_A!$I$17 -> 557080702 | F80: =+D80-E80 -> 0
B81: Capitalization Amounts
B82: Long Term Debt | D82: =+coss!D700 -> 275774125 | E82: =[2]SCH_J1.1!$G$18 -> 275774125 | F82: =+D82-E82 -> 0
B83: Preferred Stock | D83: =+coss!D701 -> 0 | E83: 0 | F83: =+D83-E83 -> 0
B84: Common Stock | D84: =+coss!D702 -> 345393322 | E84: =[2]SCH_J1.1!$G$17 -> 345393322 | F84: 0
B85: Short Term Debt | D85: =+coss!D703 -> 57645769 | E85: =[2]SCH_J1.1!$G$19 -> 57645769.23 | F85: -0.2307692319
B86: Unamortized Discount | D86: =+coss!D704 -> 0 | E86: 0 | F86: 0
B87: Total | D87: =SUM(D81:D86) -> 678813216 | E87: =SUM(E81:E86) -> 678813216.2 | F87: -0.2307692766
B89: Cost Of Capital
B90: Long Term Debt | D90: =+coss!D708 -> 0.0609 | E90: =[2]SCH_J1.1!$K$18 -> 0.0609 | F90: 0
B91: Preferred Stock | D91: =+coss!D709 -> 0 | E91: 0 | F91: 0
B92: Common Stock | D92: =+coss!D710 -> 0.115 | E92: =[2]SCH_J1.1!$K$17 -> 0.115 | F92: 0
B93: Short Term Debt | D93: =+coss!D711 -> 0.05138 | E93: =[2]SCH_J1.1!$K$19 -> 0.05138 | F93: 0
B94: Unamortized Discount | D94: =+coss!D712 -> 0 | E94: 0 | F94: 0
